Workbook

Sheet Main
B10: 2019-01-31
B12: Sheet No. | C12: Template Name | D12: Summary
B13: 1 | C13: Future Intra | D13: For Intraday trading in F&O segment
B14: 2 | C14: Cash Intra | D14: For Intraday trading in cash market segment
B15: 3 | C15: Mid-cap Intra | D15: For Intraday trading in Mid-cap stocks
B16: 4 | C16: Bulk Deals | D16: Reveals Bulk Deals carried on NSE & BSE
B17: 5 | C17: Call Tracker

Sheet Future Intra
M5: Back to Main Page
A6: FOR INTRA DAY TRADING | L6: =Main!B10 -> 2019-01-31
A9: Sr.no | B9: Sector | C9: Scrip | D9: CLOSE RATE | E9: Pivot Point | F9: Supports | I9: Resistances
B10: Sector | D10: Point | E10: Point | F10: S1 | G10: S2 | H10: S3 | I10: R1 | J10: R2 | K10: R3 | L10: HIGH | M10: LOW | N10: OI | O10: % Change in OI
A11: 1 | B11: Index | C11: BANKNIFTY | D11: 26820.90 | E11: 26808.30 | F11: 26699.10 | G11: 26577.30 | H11: 26468.10 | I11: 26930.10 | J11: 27039.30 | K11: 27161.10 | L11: 26917.5 | M11: 26686.5 | N11: 1821300 | O11: -3.17%
A12: 2 | B12: Index | C12: NIFTY | D12: 10642.90 | E12: 10654.30 | F12: 10594.60 | G12: 10546.30 | H12: 10486.60 | I12: 10702.60 | J12: 10762.30 | K12: 10810.60 | L12: 10714 | M12: 10606 | N12: 29753250 | O12: 1.96%
A13: 3 | B13: Index | C13: NIFTYIT | D13: 15239.00 | E13: 15253.33 | F13: 15137.67 | G13: 15036.33 | H13: 14920.67 | I13: 15354.67 | J13: 15470.33 | K13: 15571.67 | L13: 15369 | M13: 15152 | N13: 22350 | O13: -8.40%
A14: 4 | B14: Cement | C14: ACC | D14: 1387.10 | E14: 1373.52 | F14: 1353.63 | G14: 1320.17 | H14: 1300.28 | I14: 1406.98 | J14: 1426.87 | K14: 1460.33 | L14: 1393.4 | M14: 1340.05 | N14: 1619200 | O14: -7.07%
A15: 5 | B15: Others | C15: ADANIENT | D15: 140.50 | E15: 139.65 | F15: 137.45 | G15: 134.40 | H15: 132.20 | I15: 142.70 | J15: 144.90 | K15: 147.95 | L15: 141.85 | M15: 136.6 | N15: 42292000 | O15: -5.17%
A16: 6 | B16: Others | C16: ADANIPORTS | D16: 338.35 | E16: 340.35 | F16: 333.70 | G16: 329.05 | H16: 322.40 | I16: 345.00 | J16: 351.65 | K16: 356.30 | L16: 347 | M16: 335.7 | N16: 25897500 | O16: 4.27%
A17: 7 | B17: Power | C17: ADANIPOWER | D17: 44.45 | E17: 44.32 | F17: 43.23 | G17: 42.02 | H17: 40.93 | I17: 45.53 | J17: 46.62 | K17: 47.83 | L17: 45.4 | M17: 43.1 | N17: 168720000 | O17: -5.85%
A18: 8 | B18: Pharma | C18: AJANTPHARM | D18: 1083.20 | E18: 1083.05 | F18: 1063.25 | G18: 1043.30 | H18: 1023.50 | I18: 1103.00 | J18: 1122.80 | K18: 1142.75 | L18: 1102.85 | M18: 1063.1 | N18: 678500 | O18: -5.04%
A19: 9 | B19: Banking | C19: ALBK | D19: 44.65 | E19: 44.40 | F19: 43.65 | G19: 42.65 | H19: 41.90 | I19: 45.40 | J19: 46.15 | K19: 47.15 | L19: 45.15 | M19: 43.4 | N19: 17407000 | O19: -11.15%
A20: 10 | B20: Automobile | C20: AMARAJABAT | D20: 752.15 | E20: 754.67 | F20: 744.58 | G20: 737.02 | H20: 726.93 | I20: 762.23 | J20: 772.32 | K20: 779.88 | L20: 764.75 | M20: 747.1 | N20: 1251600 | O20: 0.73%
A21: 11 | B21: Cement | C21: AMBUJACEM | D21: 204.80 | E21: 203.00 | F21: 200.35 | G21: 195.90 | H21: 193.25 | I21: 207.45 | J21: 210.10 | K21: 214.55 | L21: 205.65 | M21: 198.55 | N21: 16072500 | O21: -3.02%
A22: 12 | B22: Others | C22: APOLLOHOSP | D22: 1320.20 | E22: 1313.48 | F22: 1303.37 | G22: 1286.53 | H22: 1276.42 | I22: 1330.32 | J22: 1340.43 | K22: 1357.27 | L22: 1323.6 | M22: 1296.65 | N22: 992500 | O22: -5.21%
A23: 13 | B23: Automobile | C23: APOLLOTYRE | D23: 203.45 | E23: 204.07 | F23: 200.78 | G23: 198.12 | H23: 194.83 | I23: 206.73 | J23: 210.02 | K23: 212.68 | L23: 207.35 | M23: 201.4 | N23: 10719000 | O23: -4.80%
A24: 14 | B24: Textile | C24: ARVIND | D24: 91.20 | E24: 90.65 | F24: 89.80 | G24: 88.40 | H24: 87.55 | I24: 92.05 | J24: 92.90 | K24: 94.30 | L24: 91.5 | M24: 89.25 | N24: 7368000 | O24: -8.88%
A25: 15 | B25: Automobile | C25: ASHOKLEY | D25: 81.10 | E25: 81.72 | F25: 80.23 | G25: 79.37 | H25: 77.88 | I25: 82.58 | J25: 84.07 | K25: 84.93 | L25: 83.2 | M25: 80.85 | N25: 88096000 | O25: 2.81%
A26: 16 | B26: FMCG | C26: ASIANPAINT | D26: 1389.00 | E26: 1392.13 | F26: 1369.17 | G26: 1349.33 | H26: 1326.37 | I26: 1411.97 | J26: 1434.93 | K26: 1454.77 | L26: 1415.1 | M26: 1372.3 | N26: 6312600 | O26: -2.76%
A27: 17 | B27: Pharma | C27: AUROPHARMA | D27: 778.05 | E27: 774.63 | F27: 767.97 | G27: 757.88 | H27: 751.22 | I27: 784.72 | J27: 791.38 | K27: 801.47 | L27: 781.3 | M27: 764.55 | N27: 16993000 | O27: -2.01%
A28: 18 | B28: Banking | C28: AXISBANK | D28: 689.40 | E28: 691.63 | F28: 680.97 | G28: 672.53 | H28: 661.87 | I28: 700.07 | J28: 710.73 | K28: 719.17 | L28: 702.3 | M28: 683.2 | N28: 39818400 | O28: 2.54%
A29: 19 | B29: Automobile | C29: BAJAJ-AUTO | D29: 2497.80 | E29: 2545.25 | F29: 2435.50 | G29: 2373.20 | H29: 2263.45 | I29: 2607.55 | J29: 2717.30 | K29: 2779.60 | L29: 2655 | M29: 2482.95 | N29: 2820000 | O29: 10.79%
A30: 20 | B30: Others | C30: BAJAJFINSV | D30: 6243.60 | E30: 6276.58 | F30: 6180.17 | G30: 6116.73 | H30: 6020.32 | I30: 6340.02 | J30: 6436.43 | K30: 6499.87 | L30: 6373 | M30: 6213.15 | N30: 705000 | O30: 4.97%
A31: 21 | B31: Finance | C31: BAJFINANCE | D31: 2594.10 | E31: 2589.95 | F31: 2551.80 | G31: 2509.50 | H31: 2471.35 | I31: 2632.25 | J31: 2670.40 | K31: 2712.70 | L31: 2628.1 | M31: 2547.65 | N31: 6803250 | O31: -5.93%
A32: 22 | B32: Others | C32: BALKRISIND | D32: 813.30 | E32: 812.50 | F32: 804.50 | G32: 795.70 | H32: 787.70 | I32: 821.30 | J32: 829.30 | K32: 838.10 | L32: 820.5 | M32: 803.7 | N32: 3144000 | O32: -0.05%
A33: 23 | B33: Banking | C33: BANKBARODA | D33: 113.90 | E33: 114.93 | F33: 111.42 | G33: 108.93 | H33: 105.42 | I33: 117.42 | J33: 120.93 | K33: 123.42 | L33: 118.45 | M33: 112.45 | N33: 68360000 | O33: 6.34%
A34: 24 | B34: Banking | C34: BANKINDIA | D34: 99.55 | E34: 98.52 | F34: 96.63 | G34: 93.72 | H34: 91.83 | I34: 101.43 | J34: 103.32 | K34: 106.23 | L34: 100.4 | M34: 95.6 | N34: 31020000 | O34: -17.68%
A35: 25 | B35: FMCG | C35: BATAINDIA | D35: 1104.70 | E35: 1102.88 | F35: 1085.82 | G35: 1066.93 | H35: 1049.87 | I35: 1121.77 | J35: 1138.83 | K35: 1157.72 | L35: 1119.95 | M35: 1084 | N35: 2205500 | O35: -13.05%
A36: 26 | B36: Capital_Goods | C36: BEL | D36: 84.10 | E36: 83.75 | F36: 82.85 | G36: 81.60 | H36: 80.70 | I36: 85.00 | J36: 85.90 | K36: 87.15 | L36: 84.65 | M36: 82.5 | N36: 39504000 | O36: 12.16%
A37: 27 | B37: Infrastructure | C37: BEML | D37: 797.40 | E37: 795.08 | F37: 786.67 | G37: 775.93 | H37: 767.52 | I37: 805.82 | J37: 814.23 | K37: 824.97 | L37: 803.5 | M37: 784.35 | N37: 1504300 | O37: -6.12%
A38: 28 | B38: Others | C38: BERGEPAINT | D38: 317.90 | E38: 316.00 | F38: 311.00 | G38: 304.10 | H38: 299.10 | I38: 322.90 | J38: 327.90 | K38: 334.80 | L38: 321 | M38: 309.1 | N38: 6784800 | O38: 6.23%
A39: 29 | B39: Finance | C39: BHARATFIN | D39: 932.15 | E39: 931.93 | F39: 922.37 | G39: 912.58 | H39: 903.02 | I39: 941.72 | J39: 951.28 | K39: 961.07 | L39: 941.5 | M39: 922.15 | N39: 4259000 | O39: -1.02%
A40: 30 | B40: Automobile | C40: BHARATFORG | D40: 475.75 | E40: 479.47 | F40: 470.28 | G40: 464.82 | H40: 455.63 | I40: 484.93 | J40: 494.12 | K40: 499.58 | L40: 488.65 | M40: 474 | N40: 13726800 | O40: -1.12%
A41: 31 | B41: Telecom | C41: BHARTIARTL | D41: 302.90 | E41: 305.00 | F41: 297.45 | G41: 292.00 | H41: 284.45 | I41: 310.45 | J41: 318.00 | K41: 323.45 | L41: 312.55 | M41: 299.55 | N41: 35290300 | O41: 0.31%
A42: 32 | B42: Capital_Goods | C42: BHEL | D42: 63.95 | E42: 64.25 | F42: 63.40 | G42: 62.85 | H42: 62.00 | I42: 64.80 | J42: 65.65 | K42: 66.20 | L42: 65.1 | M42: 63.7 | N42: 52087500 | O42: 10.27%
A43: 33 | B43: Pharma | C43: BIOCON | D43: 646.80 | E43: 648.35 | F43: 642.00 | G43: 637.20 | H43: 630.85 | I43: 653.15 | J43: 659.50 | K43: 664.30 | L43: 654.7 | M43: 643.55 | N43: 5459400 | O43: 0.05%
A44: 34 | B44: Automobile | C44: BOSCHLTD | D44: 18487.95 | E44: 18436.35 | F44: 18267.60 | G44: 18047.25 | H44: 17878.50 | I44: 18656.70 | J44: 18825.45 | K44: 19045.80 | L44: 18605.1 | M44: 18216 | N44: 167880 | O44: -0.34%
A45: 35 | B45: Oil_Gas | C45: BPCL | D45: 341.65 | E45: 340.62 | F45: 337.63 | G45: 333.62 | H45: 330.63 | I45: 344.63 | J45: 347.62 | K45: 351.63 | L45: 343.6 | M45: 336.6 | N45: 9178200 | O45: -1.28%
A46: 36 | B46: FMCG | C46: BRITANNIA | D46: 3212.70 | E46: 3209.78 | F46: 3190.67 | G46: 3168.63 | H46: 3149.52 | I46: 3231.82 | J46: 3250.93 | K46: 3272.97 | L46: 3228.9 | M46: 3187.75 | N46: 2986600 | O46: 0.63%
A47: 37 | B47: Pharma | C47: CADILAHC | D47: 319.70 | E47: 319.95 | F47: 314.55 | G47: 309.40 | H47: 304.00 | I47: 325.10 | J47: 330.50 | K47: 335.65 | L47: 325.35 | M47: 314.8 | N47: 8617600 | O47: -1.93%
A48: 38 | B48: Banking | C48: CANBK | D48: 250.05 | E48: 249.18 | F48: 246.07 | G48: 242.08 | H48: 238.97 | I48: 253.17 | J48: 256.28 | K48: 260.27 | L48: 252.3 | M48: 245.2 | N48: 11046000 | O48: -2.99%
A49: 39 | B49: Others | C49: CANFINHOME | D49: 253.00 | E49: 251.38 | F49: 248.47 | G49: 243.93 | H49: 241.02 | I49: 255.92 | J49: 258.83 | K49: 263.37 | L49: 254.3 | M49: 246.85 | N49: 4294800 | O49: -1.89%
A50: 40 | B50: Oil_Gas | C50: CASTROLIND | D50: 163.75 | E50: 164.12 | F50: 162.03 | G50: 160.32 | H50: 158.23 | I50: 165.83 | J50: 167.92 | K50: 169.63 | L50: 166.2 | M50: 162.4 | N50: 8588400 | O50: 12.52%
A51: 41 | B51: Automobile | C51: CEATLTD | D51: 1084.90 | E51: 1091.88 | F51: 1065.52 | G51: 1046.13 | H51: 1019.77 | I51: 1111.27 | J51: 1137.63 | K51: 1157.02 | L51: 1118.25 | M51: 1072.5 | N51: 1391200 | O51: 24.35%
A52: 42 | B52: Textile | C52: CENTURYTEX | D52: 801.30 | E52: 797.57 | F52: 788.23 | G52: 775.17 | H52: 765.83 | I52: 810.63 | J52: 819.97 | K52: 833.03 | L52: 806.9 | M52: 784.5 | N52: 4708800 | O52: -2.70%
A53: 43 | B53: Power | C53: CESC | D53: 690.20 | E53: 688.10 | F53: 681.65 | G53: 673.10 | H53: 666.65 | I53: 696.65 | J53: 703.10 | K53: 711.65 | L53: 694.55 | M53: 679.55 | N53: 1273800 | O53: 3.39%
A54: 44 | B54: Power | C54: CGPOWER | D54: 37.45 | E54: 37.37 | F54: 36.68 | G54: 35.92 | H54: 35.23 | I54: 38.13 | J54: 38.82 | K54: 39.58 | L54: 38.05 | M54: 36.6 | N54: 50148000 | O54: -0.41%
A55: 45 | B55: Others | C55: CHENNPETRO | D55: 242.60 | E55: 241.55 | F55: 239.05 | G55: 235.50 | H55: 233.00 | I55: 245.10 | J55: 247.60 | K55: 251.15 | L55: 244.05 | M55: 238 | N55: 1474200 | O55: -15.13%
A56: 46 | B56: Others | C56: CHOLAFIN | D56: 1130.70 | E56: 1119.98 | F56: 1102.92 | G56: 1075.13 | H56: 1058.07 | I56: 1147.77 | J56: 1164.83 | K56: 1192.62 | L56: 1137.05 | M56: 1092.2 | N56: 1184000 | O56: 0.25%
A57: 47 | B57: Pharma | C57: CIPLA | D57: 505.25 | E57: 503.38 | F57: 499.67 | G57: 494.08 | H57: 490.37 | I57: 508.97 | J57: 512.68 | K57: 518.27 | L57: 507.1 | M57: 497.8 | N57: 8344000 | O57: -3.45%
A58: 48 | B58: Others | C58: COALINDIA | D58: 225.35 | E58: 224.33 | F58: 220.57 | G58: 215.78 | H58: 212.02 | I58: 229.12 | J58: 232.88 | K58: 237.67 | L58: 228.1 | M58: 219.55 | N58: 26059000 | O58: 1.15%
A59: 49 | B59: FMCG | C59: COLPAL | D59: 1273.05 | E59: 1277.93 | F59: 1264.37 | G59: 1255.68 | H59: 1242.12 | I59: 1286.62 | J59: 1300.18 | K59: 1308.87 | L59: 1291.5 | M59: 1269.25 | N59: 1671600 | O59: -2.29%
A60: 50 | B60: Others | C60: CONCOR | D60: 660.90 | E60: 655.10 | F60: 646.30 | G60: 631.70 | H60: 622.90 | I60: 669.70 | J60: 678.50 | K60: 693.10 | L60: 663.9 | M60: 640.5 | N60: 2880000 | O60: -3.60%
A61: 51 | B61: Capital_Goods | C61: CUMMINSIND | D61: 800.30 | E61: 795.27 | F61: 788.43 | G61: 776.57 | H61: 769.73 | I61: 807.13 | J61: 813.97 | K61: 825.83 | L61: 802.1 | M61: 783.4 | N61: 1624000 | O61: -2.07%
A62: 52 | B62: FMCG | C62: DABUR | D62: 431.60 | E62: 429.67 | F62: 426.33 | G62: 421.07 | H62: 417.73 | I62: 434.93 | J62: 438.27 | K62: 443.53 | L62: 433 | M62: 424.4 | N62: 13882500 | O62: -0.54%
A63: 53 | B63: Banking | C63: DCBBANK | D63: 177.65 | E63: 176.87 | F63: 175.18 | G63: 172.72 | H63: 171.03 | I63: 179.33 | J63: 181.02 | K63: 183.48 | L63: 178.55 | M63: 174.4 | N63: 3622500 | O63: -7.79%
A64: 54 | B64: Finance | C64: DHFL | D64: 162.50 | E64: 162.17 | F64: 153.83 | G64: 145.17 | H64: 136.83 | I64: 170.83 | J64: 179.17 | K64: 187.83 | L64: 170.5 | M64: 153.5 | N64: 24361500 | O64: -5.00%
A65: 55 | B65: Media | C65: DISHTV | D65: 24.15 | E65: 23.23 | F65: 22.02 | G65: 19.88 | H65: 18.67 | I65: 25.37 | J65: 26.58 | K65: 28.72 | L65: 24.45 | M65: 21.1 | N65: 73576000 | O65: -4.80%
A66: 56 | B66: Pharma | C66: DIVISLAB | D66: 1506.05 | E66: 1504.35 | F66: 1495.70 | G66: 1485.35 | H66: 1476.70 | I66: 1514.70 | J66: 1523.35 | K66: 1533.70 | L66: 1513 | M66: 1494 | N66: 3214000 | O66: -0.92%
A67: 57 | B67: Realty | C67: DLF | D67: 164.30 | E67: 163.43 | F67: 160.92 | G67: 157.53 | H67: 155.02 | I67: 166.82 | J67: 169.33 | K67: 172.72 | L67: 165.95 | M67: 160.05 | N67: 24232000 | O67: -3.62%
A68: 58 | B68: Pharma | C68: DRREDDY | D68: 2660.85 | E68: 2658.65 | F68: 2638.30 | G68: 2615.75 | H68: 2595.40 | I68: 2681.20 | J68: 2701.55 | K68: 2724.10 | L68: 2679 | M68: 2636.1 | N68: 4022750 | O68: -4.43%
A69: 59 | B69: Automobile | C69: EICHERMOT | D69: 18944.00 | E69: 18955.57 | F69: 18788.58 | G69: 18633.17 | H69: 18466.18 | I69: 19110.98 | J69: 19277.97 | K69: 19433.38 | L69: 19122.55 | M69: 18800.15 | N69: 392675 | O69: -0.14%
A70: 60 | B70: Infrastructure | C70: ENGINERSIN | D70: 115.00 | E70: 115.37 | F70: 113.83 | G70: 112.67 | H70: 111.13 | I70: 116.53 | J70: 118.07 | K70: 119.23 | L70: 116.9 | M70: 114.2 | N70: 8995400 | O70: -2.36%
A71: 61 | B71: Finance | C71: EQUITAS | D71: 118.50 | E71: 117.73 | F71: 116.32 | G71: 114.13 | H71: 112.72 | I71: 119.92 | J71: 121.33 | K71: 123.52 | L71: 119.15 | M71: 115.55 | N71: 11492000 | O71: 3.68%
A72: 62 | B72: Automobile | C72: ESCORTS | D72: 655.75 | E72: 653.77 | F72: 644.78 | G72: 633.82 | H72: 624.83 | I72: 664.73 | J72: 673.72 | K72: 684.68 | L72: 662.75 | M72: 642.8 | N72: 4090900 | O72: -7.16%
A73: 63 | B73: Automobile | C73: EXIDEIND | D73: 222.45 | E73: 221.45 | F73: 219.10 | G73: 215.75 | H73: 213.40 | I73: 224.80 | J73: 227.15 | K73: 230.50 | L73: 223.8 | M73: 218.1 | N73: 8678000 | O73: -3.10%
A74: 64 | B74: Banking | C74: FEDERALBNK | D74: 86.30 | E74: 86.08 | F74: 84.87 | G74: 83.43 | H74: 82.22 | I74: 87.52 | J74: 88.73 | K74: 90.17 | L74: 87.3 | M74: 84.65 | N74: 60018000 | O74: 3.90%
A75: 65 | B75: Oil_Gas | C75: GAIL | D75: 322.20 | E75: 323.48 | F75: 319.37 | G75: 316.53 | H75: 312.42 | I75: 326.32 | J75: 330.43 | K75: 333.27 | L75: 327.6 | M75: 320.65 | N75: 13393674 | O75: 0.26%
A76: 66 | B76: Pharma | C76: GLENMARK | D76: 639.45 | E76: 638.88 | F76: 632.32 | G76: 625.18 | H76: 618.62 | I76: 646.02 | J76: 652.58 | K76: 659.72 | L76: 645.45 | M76: 631.75 | N76: 3983000 | O76: -5.75%
A77: 67 | B77: Infrastructure | C77: GMRINFRA | D77: 15.50 | E77: 15.50 | F77: 15.30 | G77: 15.10 | H77: 14.90 | I77: 15.70 | J77: 15.90 | K77: 16.10 | L77: 15.7 | M77: 15.3 | N77: 208890000 | O77: 8.43%
A78: 68 | B78: Others | C78: GODFRYPHLP | D78: 937.20 | E78: 933.35 | F78: 924.40 | G78: 911.60 | H78: 902.65 | I78: 946.15 | J78: 955.10 | K78: 967.90 | L78: 942.3 | M78: 920.55 | N78: 480900 | O78: -8.28%
A79: 69 | B79: FMCG | C79: GODREJCP | D79: 696.40 | E79: 707.92 | F79: 673.83 | G79: 651.27 | H79: 617.18 | I79: 730.48 | J79: 764.57 | K79: 787.13 | L79: 742 | M79: 685.35 | N79: 5618400 | O79: 11.53%
A80: 70 | B80: FMCG | C80: GODREJIND | D80: 495.45 | E80: 499.70 | F80: 488.75 | G80: 482.05 | H80: 471.10 | I80: 506.40 | J80: 517.35 | K80: 524.05 | L80: 510.65 | M80: 493 | N80: 1663500 | O80: 6.84%
A81: 71 | B81: Cement | C81: GRASIM | D81: 725.20 | E81: 728.08 | F81: 715.87 | G81: 706.53 | H81: 694.32 | I81: 737.42 | J81: 749.63 | K81: 758.97 | L81: 740.3 | M81: 718.75 | N81: 11251500 | O81: 2.04%
A82: 72 | B82: Others | C82: GSFC | D82: 94.60 | E82: 94.75 | F82: 93.90 | G82: 93.20 | H82: 92.35 | I82: 95.45 | J82: 96.30 | K82: 97.00 | L82: 95.6 | M82: 94.05 | N82: 13907300 | O82: -3.02%
A83: 73 | B83: Others | C83: HAVELLS | D83: 704.55 | E83: 704.18 | F83: 698.17 | G83: 691.78 | H83: 685.77 | I83: 710.57 | J83: 716.58 | K83: 722.97 | L83: 710.2 | M83: 697.8 | N83: 5045000 | O83: -0.61%
A84: 74 | B84: Technology | C84: HCLTECH | D84: 1015.75 | E84: 1017.32 | F84: 999.63 | G84: 983.52 | H84: 965.83 | I84: 1033.43 | J84: 1051.12 | K84: 1067.23 | L84: 1035 | M84: 1001.2 | N84: 10322200 | O84: 8.09%
A85: 75 | B85: Finance | C85: HDFC | D85: 1884.10 | E85: 1896.95 | F85: 1859.50 | G85: 1834.90 | H85: 1797.45 | I85: 1921.55 | J85: 1959.00 | K85: 1983.60 | L85: 1934.4 | M85: 1872.35 | N85: 28225500 | O85: 1.11%
A86: 76 | B86: Banking | C86: HDFCBANK | D86: 2033.00 | E86: 2041.42 | F86: 2018.13 | G86: 2003.27 | H86: 1979.98 | I86: 2056.28 | J86: 2079.57 | K86: 2094.43 | L86: 2064.7 | M86: 2026.55 | N86: 14249750 | O86: 0.68%
A87: 77 | B87: Automobile | C87: HEROMOTOCO | D87: 2616.25 | E87: 2622.95 | F87: 2589.30 | G87: 2562.35 | H87: 2528.70 | I87: 2649.90 | J87: 2683.55 | K87: 2710.50 | L87: 2656.6 | M87: 2596 | N87: 2347200 | O87: 1.07%
A88: 78 | B88: Technology | C88: HEXAWARE | D88: 323.30 | E88: 323.50 | F88: 317.60 | G88: 311.90 | H88: 306.00 | I88: 329.20 | J88: 335.10 | K88: 340.80 | L88: 329.4 | M88: 317.8 | N88: 3325500 | O88: -5.38%
A89: 79 | B89: Metals | C89: HINDALCO | D89: 205.70 | E89: 204.17 | F89: 201.83 | G89: 197.97 | H89: 195.63 | I89: 208.03 | J89: 210.37 | K89: 214.23 | L89: 206.5 | M89: 200.3 | N89: 38255000 | O89: -2.65%
A90: 80 | B90: Oil_Gas | C90: HINDPETRO | D90: 230.95 | E90: 230.68 | F90: 226.27 | G90: 221.58 | H90: 217.17 | I90: 235.37 | J90: 239.78 | K90: 244.47 | L90: 235.1 | M90: 226 | N90: 15147300 | O90: 0.57%
A91: 81 | B91: FMCG | C91: HINDUNILVR | D91: 1731.80 | E91: 1739.62 | F91: 1719.98 | G91: 1708.17 | H91: 1688.53 | I91: 1751.43 | J91: 1771.07 | K91: 1782.88 | L91: 1759.25 | M91: 1727.8 | N91: 11205000 | O91: -0.39%
A92: 82 | B92: Metals | C92: HINDZINC | D92: 262.60 | E92: 262.15 | F92: 260.55 | G92: 258.50 | H92: 256.90 | I92: 264.20 | J92: 265.80 | K92: 267.85 | L92: 263.75 | M92: 260.1 | N92: 5708800 | O92: -10.13%
A93: 83 | B93: Finance | C93: IBULHSGFIN | D93: 673.15 | E93: 686.78 | F93: 644.57 | G93: 615.98 | H93: 573.77 | I93: 715.37 | J93: 757.58 | K93: 786.17 | L93: 729 | M93: 658.2 | N93: 14211000 | O93: 7.88%
A94: 84 | B94: Banking | C94: ICICIBANK | D94: 366.20 | E94: 362.17 | F94: 355.83 | G94: 345.47 | H94: 339.13 | I94: 372.53 | J94: 378.87 | K94: 389.23 | L94: 368.5 | M94: 351.8 | N94: 118351750 | O94: 1.72%
A95: 85 | B95: Others | C95: ICICIPRULI | D95: 292.50 | E95: 293.15 | F95: 290.20 | G95: 287.90 | H95: 284.95 | I95: 295.45 | J95: 298.40 | K95: 300.70 | L95: 296.1 | M95: 290.85 | N95: 6640500 | O95: -0.98%
A96: 86 | B96: Banking | C96: IDBI | D96: 54.45 | E96: 54.92 | F96: 53.38 | G96: 52.32 | H96: 50.78 | I96: 55.98 | J96: 57.52 | K96: 58.58 | L96: 56.45 | M96: 53.85 | N96: 34370000 | O96: -2.47%
A97: 87 | B97: Telecom | C97: IDEA | D97: 30.55 | E97: 30.75 | F97: 30.10 | G97: 29.65 | H97: 29.00 | I97: 31.20 | J97: 31.85 | K97: 32.30 | L97: 31.4 | M97: 30.3 | N97: 167784000 | O97: 0.87%
A98: 88 | B98: Finance | C98: IDFC | D98: 38.70 | E98: 38.95 | F98: 38.25 | G98: 37.80 | H98: 37.10 | I98: 39.40 | J98: 40.10 | K98: 40.55 | L98: 39.65 | M98: 38.5 | N98: 127921200 | O98: 6.32%
A99: 89 | B99: Banking | C99: IDFCFIRSTB | D99: 44.80 | E99: 45.23 | F99: 44.12 | G99: 43.43 | H99: 42.32 | I99: 45.92 | J99: 47.03 | K99: 47.72 | L99: 46.35 | M99: 44.55 | N99: 170568000 | O99: 6.02%
A100: 90 | B100: Finance | C100: IFCI | D100: 13.60 | E100: 13.72 | F100: 13.33 | G100: 13.07 | H100: 12.68 | I100: 13.98 | J100: 14.37 | K100: 14.63 | L100: 14.1 | M100: 13.45 | N100: 70595000 | O100: 12.06%
A101: 91 | B101: Oil_Gas | C101: IGL | D101: 278.25 | E101: 274.73 | F101: 269.72 | G101: 261.18 | H101: 256.17 | I101: 283.27 | J101: 288.28 | K101: 296.82 | L101: 279.75 | M101: 266.2 | N101: 3476000 | O101: -10.16%
A102: 92 | B102: Cement | C102: INDIACEM | D102: 84.70 | E102: 83.87 | F102: 82.03 | G102: 79.37 | H102: 77.53 | I102: 86.53 | J102: 88.37 | K102: 91.03 | L102: 85.7 | M102: 81.2 | N102: 20484000 | O102: -4.47%
A103: 93 | B103: Banking | C103: INDIANB | D103: 226.15 | E103: 225.53 | F103: 222.87 | G103: 219.58 | H103: 216.92 | I103: 228.82 | J103: 231.48 | K103: 234.77 | L103: 228.2 | M103: 222.25 | N103: 3458000 | O103: -8.42%
A104: 94 | B104: Others | C104: INDIGO | D104: 1177.20 | E104: 1178.90 | F104: 1167.80 | G104: 1158.40 | H104: 1147.30 | I104: 1188.30 | J104: 1199.40 | K104: 1208.80 | L104: 1190 | M104: 1169.5 | N104: 2725800 | O104: -0.72%
A105: 95 | B105: Banking | C105: INDUSINDBK | D105: 1475.10 | E105: 1474.53 | F105: 1459.57 | G105: 1444.03 | H105: 1429.07 | I105: 1490.07 | J105: 1505.03 | K105: 1520.57 | L105: 1489.5 | M105: 1459 | N105: 8125800 | O105: 0.09%
A106: 96 | B106: Technology | C106: INFIBEAM | D106: 38.70 | E106: 39.15 | F106: 37.65 | G106: 36.60 | H106: 35.10 | I106: 40.20 | J106: 41.70 | K106: 42.75 | L106: 40.65 | M106: 38.1 | N106: 18932000 | O106: 2.80%
A107: 97 | B107: Telecom | C107: INFRATEL | D107: 290.30 | E107: 291.67 | F107: 284.23 | G107: 278.17 | H107: 270.73 | I107: 297.73 | J107: 305.17 | K107: 311.23 | L107: 299.1 | M107: 285.6 | N107: 9830000 | O107: -0.61%
A108: 98 | B108: Technology | C108: INFY | D108: 724.90 | E108: 726.93 | F108: 719.22 | G108: 713.53 | H108: 705.82 | I108: 732.62 | J108: 740.33 | K108: 746.02 | L108: 734.65 | M108: 721.25 | N108: 42480000 | O108: 2.49%
A109: 99 | B109: Oil_Gas | C109: IOC | D109: 134.50 | E109: 134.95 | F109: 132.10 | G109: 129.70 | H109: 126.85 | I109: 137.35 | J109: 140.20 | K109: 142.60 | L109: 137.8 | M109: 132.55 | N109: 42735000 | O109: -5.51%
A110: 100 | B110: Infrastructure | C110: IRB | D110: 145.65 | E110: 147.07 | F110: 143.13 | G110: 140.62 | H110: 136.68 | I110: 149.58 | J110: 153.52 | K110: 156.03 | L110: 151 | M110: 144.55 | N110: 7676800 | O110: 2.96%
A111: 101 | B111: FMCG | C111: ITC | D111: 275.20 | E111: 276.42 | F111: 272.78 | G111: 270.37 | H111: 266.73 | I111: 278.83 | J111: 282.47 | K111: 284.88 | L111: 280.05 | M111: 274 | N111: 81984000 | O111: 0.62%
A112: 102 | B112: Others | C112: JETAIRWAYS | D112: 242.75 | E112: 241.12 | F112: 236.03 | G112: 229.32 | H112: 224.23 | I112: 247.83 | J112: 252.92 | K112: 259.63 | L112: 246.2 | M112: 234.4 | N112: 5568200 | O112: 4.72%
A113: 103 | B113: Metals | C113: JINDALSTEL | D113: 130.25 | E113: 130.20 | F113: 127.25 | G113: 124.25 | H113: 121.30 | I113: 133.20 | J113: 136.15 | K113: 139.15 | L113: 133.15 | M113: 127.2 | N113: 30165750 | O113: 1.75%
A114: 104 | B114: Others | C114: JISLJALEQS | D114: 58.90 | E114: 58.82 | F114: 58.13 | G114: 57.37 | H114: 56.68 | I114: 59.58 | J114: 60.27 | K114: 61.03 | L114: 59.5 | M114: 58.05 | N114: 37413000 | O114: -0.36%
A115: 105 | B115: Realty | C115: JPASSOCIAT | D115: 6.45 | E115: 6.47 | F115: 6.38 | G115: 6.32 | H115: 6.23 | I115: 6.53 | J115: 6.62 | K115: 6.68 | L115: 6.55 | M115: 6.4 | N115: 160930000 | O115: 8.13%
A116: 106 | B116: Metals | C116: JSWSTEEL | D116: 269.00 | E116: 268.45 | F116: 263.20 | G116: 257.40 | H116: 252.15 | I116: 274.25 | J116: 279.50 | K116: 285.30 | L116: 273.7 | M116: 262.65 | N116: 54316500 | O116: 2.79%
A117: 107 | B117: Others | C117: JUBLFOOD | D117: 1200.20 | E117: 1205.47 | F117: 1169.93 | G117: 1139.67 | H117: 1104.13 | I117: 1235.73 | J117: 1271.27 | K117: 1301.53 | L117: 1241 | M117: 1175.2 | N117: 4776000 | O117: 9.09%
A118: 108 | B118: Others | C118: JUSTDIAL | D118: 469.20 | E118: 468.95 | F118: 459.90 | G118: 450.60 | H118: 441.55 | I118: 478.25 | J118: 487.30 | K118: 496.60 | L118: 478 | M118: 459.65 | N118: 2629200 | O118: -15.14%
A119: 109 | B119: Others | C119: KAJARIACER | D119: 534.65 | E119: 535.17 | F119: 528.03 | G119: 521.42 | H119: 514.28 | I119: 541.78 | J119: 548.92 | K119: 555.53 | L119: 542.3 | M119: 528.55 | N119: 2849600 | O119: -1.70%
A120: 110 | B120: Banking | C120: KOTAKBANK | D120: 1222.20 | E120: 1230.90 | F120: 1208.65 | G120: 1195.10 | H120: 1172.85 | I120: 1244.45 | J120: 1266.70 | K120: 1280.25 | L120: 1253.15 | M120: 1217.35 | N120: 11392000 | O120: 0.86%
A121: 111 | B121: Technology | C121: KPIT | D121: 115.30 | E121: 114.68 | F121: 112.57 | G121: 109.83 | H121: 107.72 | I121: 117.42 | J121: 119.53 | K121: 122.27 | L121: 116.8 | M121: 111.95 | N121: 2517750 | O121: -8.65%
A122: 112 | B122: Others | C122: KSCL | D122: 590.85 | E122: 586.40 | F122: 576.75 | G122: 562.65 | H122: 553.00 | I122: 600.50 | J122: 610.15 | K122: 624.25 | L122: 596.05 | M122: 572.3 | N122: 1228500 | O122: -12.96%
A123: 113 | B123: Banking | C123: KTKBANK | D123: 118.30 | E123: 118.12 | F123: 116.68 | G123: 115.07 | H123: 113.63 | I123: 119.73 | J123: 121.17 | K123: 122.78 | L123: 119.55 | M123: 116.5 | N123: 13813300 | O123: -1.87%
A124: 114 | B124: Finance | C124: L&TFH | D124: 132.80 | E124: 131.83 | F124: 130.22 | G124: 127.63 | H124: 126.02 | I124: 134.42 | J124: 136.03 | K124: 138.62 | L124: 133.45 | M124: 129.25 | N124: 26914500 | O124: -0.83%
A125: 115 | B125: Finance | C125: LICHSGFIN | D125: 434.55 | E125: 440.03 | F125: 424.92 | G125: 415.28 | H125: 400.17 | I125: 449.67 | J125: 464.78 | K125: 474.42 | L125: 455.15 | M125: 430.4 | N125: 9908800 | O125: 6.62%
A126: 116 | B126: Capital_Goods | C126: LT | D126: 1294.40 | E126: 1295.07 | F126: 1279.53 | G126: 1264.67 | H126: 1249.13 | I126: 1309.93 | J126: 1325.47 | K126: 1340.33 | L126: 1310.6 | M126: 1280.2 | N126: 11772375 | O126: -7.19%
A127: 117 | B127: Pharma | C127: LUPIN | D127: 865.55 | E127: 866.60 | F127: 860.15 | G127: 854.75 | H127: 848.30 | I127: 872.00 | J127: 878.45 | K127: 883.85 | L127: 873.05 | M127: 861.2 | N127: 8381800 | O127: -1.07%
A128: 118 | B128: Automobile | C128: M&M | D128: 678.05 | E128: 676.22 | F128: 672.33 | G128: 666.62 | H128: 662.73 | I128: 681.93 | J128: 685.82 | K128: 691.53 | L128: 680.1 | M128: 670.5 | N128: 18586000 | O128: -2.30%
A129: 119 | B129: Finance | C129: M&MFIN | D129: 405.45 | E129: 405.10 | F129: 399.05 | G129: 392.65 | H129: 386.60 | I129: 411.50 | J129: 417.55 | K129: 423.95 | L129: 411.15 | M129: 398.7 | N129: 12301250 | O129: -0.37%
A130: 120 | B130: Others | C130: MANAPPURAM | D130: 91.35 | E130: 91.12 | F130: 90.08 | G130: 88.82 | H130: 87.78 | I130: 92.38 | J130: 93.42 | K130: 94.68 | L130: 92.15 | M130: 89.85 | N130: 9264000 | O130: -2.95%
A131: 121 | B131: FMCG | C131: MARICO | D131: 366.10 | E131: 366.27 | F131: 362.23 | G131: 358.37 | H131: 354.33 | I131: 370.13 | J131: 374.17 | K131: 378.03 | L131: 370.3 | M131: 362.4 | N131: 7295600 | O131: -1.27%
A132: 122 | B132: Automobile | C132: MARUTI | D132: 6550.60 | E132: 6549.32 | F132: 6508.63 | G132: 6466.67 | H132: 6425.98 | I132: 6591.28 | J132: 6631.97 | K132: 6673.93 | L132: 6590 | M132: 6507.35 | N132: 2992500 | O132: -0.20%
A133: 123 | B133: FMCG | C133: MCDOWELL-N | D133: 549.85 | E133: 551.37 | F133: 543.43 | G133: 537.02 | H133: 529.08 | I133: 557.78 | J133: 565.72 | K133: 572.13 | L133: 559.3 | M133: 544.95 | N133: 12893750 | O133: -0.30%
A134: 124 | B134: Others | C134: MCX | D134: 715.75 | E134: 714.85 | F134: 707.90 | G134: 700.05 | H134: 693.10 | I134: 722.70 | J134: 729.65 | K134: 737.50 | L134: 721.8 | M134: 707 | N134: 2417100 | O134: -1.12%
A135: 125 | B135: Finance | C135: MFSL | D135: 418.90 | E135: 416.22 | F135: 410.58 | G135: 402.27 | H135: 396.63 | I135: 424.53 | J135: 430.17 | K135: 438.48 | L135: 421.85 | M135: 407.9 | N135: 2152800 | O135: -3.13%
A136: 126 | B136: Others | C136: MGL | D136: 911.90 | E136: 914.20 | F136: 898.75 | G136: 885.60 | H136: 870.15 | I136: 927.35 | J136: 942.80 | K136: 955.95 | L136: 929.65 | M136: 901.05 | N136: 877800 | O136: -10.74%
A137: 127 | B137: Technology | C137: MINDTREE | D137: 891.15 | E137: 898.30 | F137: 879.95 | G137: 868.75 | H137: 850.40 | I137: 909.50 | J137: 927.85 | K137: 939.05 | L137: 916.65 | M137: 887.1 | N137: 2914800 | O137: -4.78%
A138: 128 | B138: Automobile | C138: MOTHERSUMI | D138: 141.70 | E138: 141.82 | F138: 139.93 | G138: 138.17 | H138: 136.28 | I138: 143.58 | J138: 145.47 | K138: 147.23 | L138: 143.7 | M138: 140.05 | N138: 28443000 | O138: -0.12%
A139: 129 | B139: Automobile | C139: MRF | D139: 61274.80 | E139: 61532.23 | F139: 60899.77 | G139: 60524.73 | H139: 59892.27 | I139: 61907.27 | J139: 62539.73 | K139: 62914.77 | L139: 62164.7 | M139: 61157.2 | N139: 29100 | O139: 2.57%
A140: 130 | B140: Others | C140: MRPL | D140: 68.30 | E140: 68.02 | F140: 67.33 | G140: 66.37 | H140: 65.68 | I140: 68.98 | J140: 69.67 | K140: 70.63 | L140: 68.7 | M140: 67.05 | N140: 6027000 | O140: 2.01%
A141: 131 | B141: Finance | C141: MUTHOOTFIN | D141: 501.25 | E141: 499.63 | F141: 494.52 | G141: 487.78 | H141: 482.67 | I141: 506.37 | J141: 511.48 | K141: 518.22 | L141: 504.75 | M141: 492.9 | N141: 1944000 | O141: -8.86%
A142: 132 | B142: Others | C142: NATIONALUM | D142: 60.00 | E142: 60.07 | F142: 59.68 | G142: 59.37 | H142: 58.98 | I142: 60.38 | J142: 60.77 | K142: 61.08 | L142: 60.45 | M142: 59.75 | N142: 26064000 | O142: 2.26%
A143: 133 | B143: Others | C143: NBCC | D143: 60.00 | E143: 59.32 | F143: 58.48 | G143: 56.97 | H143: 56.13 | I143: 60.83 | J143: 61.67 | K143: 63.18 | L143: 60.15 | M143: 57.8 | N143: 34816000 | O143: -5.54%
A144: 134 | B144: Infrastructure | C144: NCC | D144: 80.30 | E144: 80.65 | F144: 79.35 | G144: 78.40 | H144: 77.10 | I144: 81.60 | J144: 82.90 | K144: 83.85 | L144: 81.95 | M144: 79.7 | N144: 47400000 | O144: 0.58%
A145: 135 | B145: Others | C145: NESTLEIND | D145: 11416.50 | E145: 11395.50 | F145: 11326.00 | G145: 11235.50 | H145: 11166.00 | I145: 11486.00 | J145: 11555.50 | K145: 11646.00 | L145: 11465 | M145: 11305 | N145: 295600 | O145: -0.56%
A146: 136 | B146: Power | C146: NHPC | D146: 24.50 | E146: 24.47 | F146: 24.23 | G146: 23.97 | H146: 23.73 | I146: 24.73 | J146: 24.97 | K146: 25.23 | L146: 24.7 | M146: 24.2 | N146: 18873000 | O146: 2.19%
A147: 137 | B147: Technology | C147: NIITTECH | D147: 1288.65 | E147: 1294.60 | F147: 1270.65 | G147: 1252.65 | H147: 1228.70 | I147: 1312.60 | J147: 1336.55 | K147: 1354.55 | L147: 1318.55 | M147: 1276.6 | N147: 1819500 | O147: -6.01%
A148: 138 | B148: Metals | C148: NMDC | D148: 96.35 | E148: 95.20 | F148: 93.70 | G148: 91.05 | H148: 89.55 | I148: 97.85 | J148: 99.35 | K148: 102.00 | L148: 96.7 | M148: 92.55 | N148: 26598000 | O148: 13.09%
A149: 139 | B149: Power | C149: NTPC | D149: 138.80 | E149: 139.20 | F149: 137.85 | G149: 136.90 | H149: 135.55 | I149: 140.15 | J149: 141.50 | K149: 142.45 | L149: 140.55 | M149: 138.25 | N149: 39120000 | O149: -0.11%
A150: 140 | B150: Technology | C150: OFSS | D150: 3768.45 | E150: 3744.50 | F150: 3694.00 | G150: 3619.55 | H150: 3569.05 | I150: 3818.95 | J150: 3869.45 | K150: 3943.90 | L150: 3795 | M150: 3670.05 | N150: 155250 | O150: -0.19%
A151: 141 | B151: Oil_Gas | C151: OIL | D151: 166.75 | E151: 167.87 | F151: 164.38 | G151: 162.02 | H151: 158.53 | I151: 170.23 | J151: 173.72 | K151: 176.08 | L151: 171.35 | M151: 165.5 | N151: 7318047 | O151: 3.11%
A152: 142 | B152: Oil_Gas | C152: ONGC | D152: 139.60 | E152: 139.87 | F152: 138.38 | G152: 137.17 | H152: 135.68 | I152: 141.08 | J152: 142.57 | K152: 143.78 | L152: 141.35 | M152: 138.65 | N152: 45438750 | O152: 6.88%
A153: 143 | B153: Banking | C153: ORIENTBANK | D153: 95.35 | E153: 95.35 | F153: 93.55 | G153: 91.75 | H153: 89.95 | I153: 97.15 | J153: 98.95 | K153: 100.75 | L153: 97.15 | M153: 93.55 | N153: 12985000 | O153: -1.96%
A154: 144 | B154: Textile | C154: PAGEIND | D154: 23165.35 | E154: 23032.97 | F154: 22833.28 | G154: 22501.22 | H154: 22301.53 | I154: 23365.03 | J154: 23564.72 | K154: 23896.78 | L154: 23232.65 | M154: 22700.9 | N154: 232100 | O154: -2.81%
A155: 145 | B155: Others | C155: PCJEWELLER | D155: 73.35 | E155: 73.28 | F155: 71.82 | G155: 70.28 | H155: 68.82 | I155: 74.82 | J155: 76.28 | K155: 77.82 | L155: 74.75 | M155: 71.75 | N155: 9113000 | O155: -4.17%
A156: 146 | B156: Pharma | C156: PEL | D156: 2079.80 | E156: 2081.68 | F156: 2000.37 | G156: 1920.93 | H156: 1839.62 | I156: 2161.12 | J156: 2242.43 | K156: 2321.87 | L156: 2163 | M156: 2002.25 | N156: 3593196 | O156: 2.66%
A157: 147 | B157: Oil_Gas | C157: PETRONET | D157: 225.40 | E157: 226.03 | F157: 223.62 | G157: 221.83 | H157: 219.42 | I157: 227.82 | J157: 230.23 | K157: 232.02 | L157: 228.45 | M157: 224.25 | N157: 13311000 | O157: 1.16%
A158: 148 | B158: Finance | C158: PFC | D158: 100.60 | E158: 100.67 | F158: 99.48 | G158: 98.37 | H158: 97.18 | I158: 101.78 | J158: 102.97 | K158: 104.08 | L158: 101.85 | M158: 99.55 | N158: 41180400 | O158: 1.95%
A159: 149 | B159: FMCG | C159: PIDILITIND | D159: 1109.90 | E159: 1100.27 | F159: 1083.63 | G159: 1057.37 | H159: 1040.73 | I159: 1126.53 | J159: 1143.17 | K159: 1169.43 | L159: 1116.9 | M159: 1074 | N159: 2458000 | O159: -1.74%
A160: 150 | B160: Banking | C160: PNB | D160: 77.15 | E160: 77.37 | F160: 76.48 | G160: 75.82 | H160: 74.93 | I160: 78.03 | J160: 78.92 | K160: 79.58 | L160: 78.25 | M160: 76.7 | N160: 113603000 | O160: -6.34%
A161: 151 | B161: Power | C161: POWERGRID | D161: 187.30 | E161: 186.43 | F161: 184.97 | G161: 182.63 | H161: 181.17 | I161: 188.77 | J161: 190.23 | K161: 192.57 | L161: 187.9 | M161: 184.1 | N161: 20468000 | O161: -8.23%
A162: 152 | B162: Power | C162: PTC | D162: 75.30 | E162: 75.63 | F162: 72.07 | G162: 68.83 | H162: 65.27 | I162: 78.87 | J162: 82.43 | K162: 85.67 | L162: 79.2 | M162: 72.4 | N162: 2536000 | O162: -44.77%
A163: 153 | B163: Others | C163: PVR | D163: 1602.90 | E163: 1603.20 | F163: 1593.40 | G163: 1583.90 | H163: 1574.10 | I163: 1612.70 | J163: 1622.50 | K163: 1632.00 | L163: 1613 | M163: 1593.7 | N163: 1835200 | O163: 3.57%
A164: 154 | B164: Cement | C164: RAMCOCEM | D164: 592.05 | E164: 586.00 | F164: 571.30 | G164: 550.55 | H164: 535.85 | I164: 606.75 | J164: 621.45 | K164: 642.20 | L164: 600.7 | M164: 565.25 | N164: 892800 | O164: 4.30%
A165: 155 | B165: Others | C165: RAYMOND | D165: 764.35 | E165: 762.47 | F165: 752.88 | G165: 741.42 | H165: 731.83 | I165: 773.93 | J165: 783.52 | K165: 794.98 | L165: 772.05 | M165: 751 | N165: 4031200 | O165: -2.53%
A166: 156 | B166: Banking | C166: RBLBANK | D166: 561.95 | E166: 558.90 | F166: 553.95 | G166: 545.95 | H166: 541.00 | I166: 566.90 | J166: 571.85 | K166: 579.85 | L166: 563.85 | M166: 550.9 | N166: 6559200 | O166: -2.45%
A167: 157 | B167: Telecom | C167: RCOM | D167: 11.55 | E167: 11.75 | F167: 11.20 | G167: 10.85 | H167: 10.30 | I167: 12.10 | J167: 12.65 | K167: 13.00 | L167: 12.3 | M167: 11.4 | N167: 101660000 | O167: -3.14%
A168: 158 | B168: Power | C168: RECLTD | D168: 125.15 | E168: 124.47 | F168: 123.13 | G168: 121.12 | H168: 119.78 | I168: 126.48 | J168: 127.82 | K168: 129.83 | L168: 125.8 | M168: 122.45 | N168: 39000000 | O168: -0.37%
A169: 159 | B169: Finance | C169: RELCAPITAL | D169: 198.75 | E169: 199.45 | F169: 195.80 | G169: 192.85 | H169: 189.20 | I169: 202.40 | J169: 206.05 | K169: 209.00 | L169: 203.1 | M169: 196.5 | N169: 12478500 | O169: -3.79%
A170: 160 | B170: Oil_Gas | C170: RELIANCE | D170: 1195.65 | E170: 1204.72 | F170: 1182.83 | G170: 1170.02 | H170: 1148.13 | I170: 1217.53 | J170: 1239.42 | K170: 1252.23 | L170: 1226.6 | M170: 1191.9 | N170: 51256000 | O170: 2.50%
A171: 161 | B171: Power | C171: RELINFRA | D171: 269.25 | E171: 270.02 | F171: 262.43 | G171: 255.62 | H171: 248.03 | I171: 276.83 | J171: 284.42 | K171: 291.23 | L171: 277.6 | M171: 263.2 | N171: 11048700 | O171: -3.73%
A172: 162 | B172: Others | C172: REPCOHOME | D172: 398.55 | E172: 398.53 | F172: 393.57 | G172: 388.58 | H172: 383.62 | I172: 403.52 | J172: 408.48 | K172: 413.47 | L172: 403.5 | M172: 393.55 | N172: 940500 | O172: 2.52%
A173: 163 | B173: Power | C173: RPOWER | D173: 26.60 | E173: 26.67 | F173: 26.33 | G173: 26.07 | H173: 25.73 | I173: 26.93 | J173: 27.27 | K173: 27.53 | L173: 27 | M173: 26.4 | N173: 50480000 | O173: 5.87%
A174: 164 | B174: Metals | C174: SAIL | D174: 47.40 | E174: 47.28 | F174: 46.67 | G174: 45.93 | H174: 45.32 | I174: 48.02 | J174: 48.63 | K174: 49.37 | L174: 47.9 | M174: 46.55 | N174: 91848000 | O174: -1.67%
A175: 165 | B175: Banking | C175: SBIN | D175: 287.85 | E175: 286.10 | F175: 282.35 | G175: 276.85 | H175: 273.10 | I175: 291.60 | J175: 295.35 | K175: 300.85 | L175: 289.85 | M175: 280.6 | N175: 85623000 | O175: 1.76%
A176: 166 | B176: Cement | C176: SHREECEM | D176: 15454.10 | E176: 15418.63 | F176: 15237.27 | G176: 15020.43 | H176: 14839.07 | I176: 15635.47 | J176: 15816.83 | K176: 16033.67 | L176: 15600 | M176: 15201.8 | N176: 89000 | O176: -0.78%
A177: 167 | B177: Capital_Goods | C177: SIEMENS | D177: 1011.85 | E177: 1010.83 | F177: 1000.97 | G177: 990.08 | H177: 980.22 | I177: 1021.72 | J177: 1031.58 | K177: 1042.47 | L177: 1020.7 | M177: 999.95 | N177: 1802350 | O177: -2.00%
A178: 168 | B178: Banking | C178: SOUTHBANK | D178: 13.15 | E178: 13.23 | F178: 13.02 | G178: 12.88 | H178: 12.67 | I178: 13.37 | J178: 13.58 | K178: 13.72 | L178: 13.45 | M178: 13.1 | N178: 193278312 | O178: -2.15%
A179: 169 | B179: Others | C179: SREINFRA | D179: 29.80 | E179: 29.78 | F179: 29.12 | G179: 28.43 | H179: 27.77 | I179: 30.47 | J179: 31.13 | K179: 31.82 | L179: 30.45 | M179: 29.1 | N179: 14508000 | O179: -8.89%
A180: 170 | B180: Textile | C180: SRF | D180: 2037.85 | E180: 2029.85 | F180: 2015.70 | G180: 1993.55 | H180: 1979.40 | I180: 2052.00 | J180: 2066.15 | K180: 2088.30 | L180: 2044 | M180: 2007.7 | N180: 684500 | O180: -2.14%
A181: 171 | B181: Finance | C181: SRTRANSFIN | D181: 1015.50 | E181: 1022.53 | F181: 996.42 | G181: 977.33 | H181: 951.22 | I181: 1041.62 | J181: 1067.73 | K181: 1086.82 | L181: 1048.65 | M181: 1003.45 | N181: 5054400 | O181: 0.91%
A182: 172 | B182: Pharma | C182: STAR | D182: 476.40 | E182: 486.30 | F182: 460.90 | G182: 445.40 | H182: 420.00 | I182: 501.80 | J182: 527.20 | K182: 542.70 | L182: 511.7 | M182: 470.8 | N182: 3991900 | O182: -10.97%
A183: 173 | B183: Pharma | C183: SUNPHARMA | D183: 418.05 | E183: 420.17 | F183: 413.93 | G183: 409.82 | H183: 403.58 | I183: 424.28 | J183: 430.52 | K183: 434.63 | L183: 426.4 | M183: 416.05 | N183: 58845600 | O183: -0.04%
A184: 174 | B184: Media | C184: SUNTV | D184: 534.55 | E184: 534.22 | F184: 527.08 | G184: 519.62 | H184: 512.48 | I184: 541.68 | J184: 548.82 | K184: 556.28 | L184: 541.35 | M184: 526.75 | N184: 7732000 | O184: -1.67%
A185: 175 | B185: Power | C185: SUZLON | D185: 5.00 | E185: 4.98 | F185: 4.92 | G185: 4.83 | H185: 4.77 | I185: 5.07 | J185: 5.13 | K185: 5.22 | L185: 5.05 | M185: 4.9 | N185: 387828000 | O185: 9.41%
A186: 176 | B186: Banking | C186: SYNDIBANK | D186: 36.55 | E186: 36.58 | F186: 35.42 | G186: 34.28 | H186: 33.12 | I186: 37.72 | J186: 38.88 | K186: 40.02 | L186: 37.75 | M186: 35.45 | N186: 24405000 | O186: -2.05%
A187: 177 | B187: Fertilisers | C187: TATACHEM | D187: 680.95 | E187: 676.58 | F187: 670.87 | G187: 660.78 | H187: 655.07 | I187: 686.67 | J187: 692.38 | K187: 702.47 | L187: 682.3 | M187: 666.5 | N187: 2536500 | O187: -11.81%
A188: 178 | B188: Telecom | C188: TATACOMM | D188: 486.30 | E188: 492.88 | F188: 474.92 | G188: 463.53 | H188: 445.57 | I188: 504.27 | J188: 522.23 | K188: 533.62 | L188: 510.85 | M188: 481.5 | N188: 3500000 | O188: 25.04%
A189: 179 | B189: Technology | C189: TATAELXSI | D189: 879.15 | E189: 882.32 | F189: 864.78 | G189: 850.42 | H189: 832.88 | I189: 896.68 | J189: 914.22 | K189: 928.58 | L189: 899.85 | M189: 867.95 | N189: 1846800 | O189: 0.13%
A190: 180 | B190: FMCG | C190: TATAGLOBAL | D190: 204.20 | E190: 204.62 | F190: 201.38 | G190: 198.57 | H190: 195.33 | I190: 207.43 | J190: 210.67 | K190: 213.48 | L190: 207.85 | M190: 201.8 | N190: 9956250 | O190: 1.26%
A191: 181 | B191: Automobile | C191: TATAMOTORS | D191: 174.75 | E191: 175.08 | F191: 172.97 | G191: 171.18 | H191: 169.07 | I191: 176.87 | J191: 178.98 | K191: 180.77 | L191: 177.2 | M191: 173.3 | N191: 63032000 | O191: -1.20%
A192: 182 | B192: Automobile | C192: TATAMTRDVR | D192: 90.55 | E192: 90.73 | F192: 89.62 | G192: 88.68 | H192: 87.57 | I192: 91.67 | J192: 92.78 | K192: 93.72 | L192: 91.85 | M192: 89.8 | N192: 32999200 | O192: 1.32%
A193: 183 | B193: Power | C193: TATAPOWER | D193: 68.00 | E193: 69.17 | F193: 66.43 | G193: 64.87 | H193: 62.13 | I193: 70.73 | J193: 73.47 | K193: 75.03 | L193: 71.9 | M193: 67.6 | N193: 49599000 | O193: -5.29%
A194: 184 | B194: Metals | C194: TATASTEEL | D194: 468.05 | E194: 462.72 | F194: 452.98 | G194: 437.92 | H194: 428.18 | I194: 477.78 | J194: 487.52 | K194: 502.58 | L194: 472.45 | M194: 447.65 | N194: 43697285 | O194: 1.76%
A195: 185 | B195: Technology | C195: TCS | D195: 1977.30 | E195: 1973.43 | F195: 1959.87 | G195: 1942.43 | H195: 1928.87 | I195: 1990.87 | J195: 2004.43 | K195: 2021.87 | L195: 1987 | M195: 1956 | N195: 14152500 | O195: 1.46%
A196: 186 | B196: Technology | C196: TECHM | D196: 715.25 | E196: 720.90 | F196: 707.80 | G196: 700.35 | H196: 687.25 | I196: 728.35 | J196: 741.45 | K196: 748.90 | L196: 734 | M196: 713.45 | N196: 12303600 | O196: -0.85%
A197: 187 | B197: FMCG | C197: TITAN | D197: 967.25 | E197: 967.72 | F197: 960.83 | G197: 954.42 | H197: 947.53 | I197: 974.13 | J197: 981.02 | K197: 987.43 | L197: 974.6 | M197: 961.3 | N197: 13572750 | O197: 1.30%
A198: 188 | B198: Pharma | C198: TORNTPHARM | D198: 1850.60 | E198: 1856.17 | F198: 1834.78 | G198: 1818.97 | H198: 1797.58 | I198: 1871.98 | J198: 1893.37 | K198: 1909.18 | L198: 1877.55 | M198: 1840.35 | N198: 538000 | O198: -1.65%
A199: 189 | B199: Power | C199: TORNTPOWER | D199: 247.05 | E199: 246.93 | F199: 244.27 | G199: 241.48 | H199: 238.82 | I199: 249.72 | J199: 252.38 | K199: 255.17 | L199: 249.6 | M199: 244.15 | N199: 2289000 | O199: -4.51%
A200: 190 | B200: Media | C200: TV18BRDCST | D200: 32.70 | E200: 32.78 | F200: 32.27 | G200: 31.83 | H200: 31.32 | I200: 33.22 | J200: 33.73 | K200: 34.17 | L200: 33.3 | M200: 32.35 | N200: 69134000 | O200: 6.00%
A201: 191 | B201: Automobile | C201: TVSMOTOR | D201: 491.15 | E201: 492.72 | F201: 485.73 | G201: 480.32 | H201: 473.33 | I201: 498.13 | J201: 505.12 | K201: 510.53 | L201: 499.7 | M201: 487.3 | N201: 6857000 | O201: 10.06%
A202: 192 | B202: FMCG | C202: UBL | D202: 1427.95 | E202: 1429.62 | F202: 1413.33 | G202: 1398.72 | H202: 1382.43 | I202: 1444.23 | J202: 1460.52 | K202: 1475.13 | L202: 1445.9 | M202: 1415 | N202: 1801100 | O202: -4.60%
A203: 193 | B203: Finance | C203: UJJIVAN | D203: 280.05 | E203: 279.55 | F203: 274.60 | G203: 269.15 | H203: 264.20 | I203: 285.00 | J203: 289.95 | K203: 295.40 | L203: 284.5 | M203: 274.1 | N203: 4486400 | O203: 7.80%
A204: 194 | B204: Cement | C204: ULTRACEMCO | D204: 3446.40 | E204: 3430.35 | F204: 3387.15 | G204: 3327.90 | H204: 3284.70 | I204: 3489.60 | J204: 3532.80 | K204: 3592.05 | L204: 3473.55 | M204: 3371.1 | N204: 2446800 | O204: 1.71%
A205: 195 | B205: Banking | C205: UNIONBANK | D205: 81.10 | E205: 80.80 | F205: 79.75 | G205: 78.40 | H205: 77.35 | I205: 82.15 | J205: 83.20 | K205: 84.55 | L205: 81.85 | M205: 79.45 | N205: 35945000 | O205: -6.57%
A206: 196 | B206: Fertilisers | C206: UPL | D206: 766.60 | E206: 763.72 | F206: 758.93 | G206: 751.27 | H206: 746.48 | I206: 771.38 | J206: 776.17 | K206: 783.83 | L206: 768.5 | M206: 756.05 | N206: 16882800 | O206: -0.57%
... 22 more rows

Sheet Cash Intra
M5: Back to Main Page
A6: FOR INTRA DAY TRADING | K6: =Main!B10 -> 2019-01-31
A8: Sr.no | B8: Scrip | C8: CLOSE RATE | D8: Pivot Point | E8: Supports | H8: Resistances
C9: Point | E9: S1 | F9: S2 | G9: S3 | H9: R1 | I9: R2 | J9: R3 | K9: HIGH | L9: LOW | M9: Total Trade Quanity in Lakhs
A10: 1 | B10: Nifty 50 | C10: 10651.8 | D10: 10658.28 | E10: 10606.37 | F10: 10560.93 | G10: 10509.02 | H10: 10703.72 | I10: 10755.63 | J10: 10801.07 | K10: 10710.2 | L10: 10612.85
A11: 2 | B11: Nifty Bank | C11: 26825.5 | D11: 26811.82 | E11: 26707.38 | F11: 26589.27 | G11: 26484.83 | H11: 26929.93 | I11: 27034.37 | J11: 27152.48 | K11: 26916.25 | L11: 26693.7
A12: 3 | B12: Nifty CPSE | C12: 1963.9 | D12: 1964.90 | E12: 1955.10 | F12: 1946.30 | G12: 1936.50 | H12: 1973.70 | I12: 1983.50 | J12: 1992.30 | K12: 1974.7 | L12: 1956.1
A13: 4 | B13: Nifty Infra | C13: 2949.2 | D13: 2952.83 | E13: 2937.72 | F13: 2926.23 | G13: 2911.12 | H13: 2964.32 | I13: 2979.43 | J13: 2990.92 | K13: 2967.95 | L13: 2941.35
A14: 5 | B14: Nifty IT | C14: 15255.2 | D14: 15276.35 | E14: 15171.25 | F14: 15087.30 | G14: 14982.20 | H14: 15360.30 | I14: 15465.40 | J14: 15549.35 | K14: 15381.45 | L14: 15192.4
A15: 6 | B15: Nifty PSE | C15: 3178.85 | D15: 3176.22 | E15: 3164.33 | F15: 3149.82 | G15: 3137.93 | H15: 3190.73 | I15: 3202.62 | J15: 3217.13 | K15: 3188.1 | L15: 3161.7
A16: 7 | B16: Nifty Midcap 50 | C16: 4661.4 | D16: 4651.97 | E16: 4631.43 | F16: 4601.47 | G16: 4580.93 | H16: 4681.93 | I16: 4702.47 | J16: 4732.43 | K16: 4672.5 | L16: 4622
A17: 8 | B17: ABB | C17: 1264.65 | D17: 1265.45 | E17: 1242.20 | F17: 1219.75 | G17: 1196.50 | H17: 1287.90 | I17: 1311.15 | J17: 1333.60 | K17: 1288.7 | L17: 1243 | M17: 0.74899
A18: 9 | B18: ACC | C18: 1386.6 | D18: 1373.67 | E18: 1352.33 | F18: 1318.07 | G18: 1296.73 | H18: 1407.93 | I18: 1429.27 | J18: 1463.53 | K18: 1395 | L18: 1339.4 | M18: 5.72247
A19: 10 | B19: AIAENG | C19: 1625.05 | D19: 1623.37 | E19: 1601.73 | F19: 1578.42 | G19: 1556.78 | H19: 1646.68 | I19: 1668.32 | J19: 1691.63 | K19: 1645 | L19: 1600.05 | M19: 0.19738
A20: 11 | B20: AUBANK | C20: 586.8 | D20: 587.73 | E20: 580.67 | F20: 574.53 | G20: 567.47 | H20: 593.87 | I20: 600.93 | J20: 607.07 | K20: 594.8 | L20: 581.6 | M20: 2.4835
A21: 12 | B21: ADANIENT | C21: 139.9 | D21: 139.30 | E21: 137.10 | F21: 134.30 | G21: 132.10 | H21: 142.10 | I21: 144.30 | J21: 147.10 | K21: 141.5 | L21: 136.5 | M21: 31.02926
A22: 13 | B22: ADANIPORTS | C22: 338.15 | D22: 340.93 | E22: 332.82 | F22: 327.48 | G22: 319.37 | H22: 346.27 | I22: 354.38 | J22: 359.72 | K22: 349.05 | L22: 335.6 | M22: 76.72859
A23: 14 | B23: ADANIPOWER | C23: 44.5 | D23: 44.18 | E23: 43.12 | F23: 41.73 | G23: 40.67 | H23: 45.57 | I23: 46.63 | J23: 48.02 | K23: 45.25 | L23: 42.8 | M23: 163.23067
A24: 15 | B24: ABFRL | C24: 208.5 | D24: 207.67 | E24: 204.03 | F24: 199.57 | G24: 195.93 | H24: 212.13 | I24: 215.77 | J24: 220.23 | K24: 211.3 | L24: 203.2 | M24: 8.59652
A25: 16 | B25: AJANTPHARM | C25: 1088.85 | D25: 1087.52 | E25: 1067.23 | F25: 1045.62 | G25: 1025.33 | H25: 1109.13 | I25: 1129.42 | J25: 1151.03 | K25: 1107.8 | L25: 1065.9 | M25: 5.63045
A26: 17 | B26: ALKEM | C26: 1869.5 | D26: 1876.55 | E26: 1857.95 | F26: 1846.40 | G26: 1827.80 | H26: 1888.10 | I26: 1906.70 | J26: 1918.25 | K26: 1895.15 | L26: 1865 | M26: 0.13331
A27: 18 | B27: AMARAJABAT | C27: 751.8 | D27: 754.97 | E27: 744.28 | F27: 736.77 | G27: 726.08 | H27: 762.48 | I27: 773.17 | J27: 780.68 | K27: 765.65 | L27: 747.45 | M27: 4.16778
A28: 19 | B28: AMBUJACEM | C28: 204.65 | D28: 202.98 | E28: 200.17 | F28: 195.68 | G28: 192.87 | H28: 207.47 | I28: 210.28 | J28: 214.77 | K28: 205.8 | L28: 198.5 | M28: 14.61921
A29: 20 | B29: APOLLOHOSP | C29: 1319.6 | D29: 1313.37 | E29: 1303.73 | F29: 1287.87 | G29: 1278.23 | H29: 1329.23 | I29: 1338.87 | J29: 1354.73 | K29: 1323 | L29: 1297.5 | M29: 3.15858
A30: 21 | B30: APOLLOTYRE | C30: 203.3 | D30: 203.73 | E30: 200.87 | F30: 198.43 | G30: 195.57 | H30: 206.17 | I30: 209.03 | J30: 211.47 | K30: 206.6 | L30: 201.3 | M30: 14.09006
A31: 22 | B31: ARVIND | C31: 91 | D31: 90.57 | E31: 89.53 | F31: 88.07 | G31: 87.03 | H31: 92.03 | I31: 93.07 | J31: 94.53 | K31: 91.6 | L31: 89.1 | M31: 10.23539
A32: 23 | B32: ASHOKLEY | C32: 80.95 | D32: 81.57 | E32: 80.08 | F32: 79.22 | G32: 77.73 | H32: 82.43 | I32: 83.92 | J32: 84.78 | K32: 83.05 | L32: 80.7 | M32: 172.50863
A33: 24 | B33: ASIANPAINT | C33: 1390.4 | D33: 1393.10 | E33: 1369.40 | F33: 1348.40 | G33: 1324.70 | H33: 1414.10 | I33: 1437.80 | J33: 1458.80 | K33: 1416.8 | L33: 1372.1 | M33: 13.13152
A34: 25 | B34: AUROPHARMA | C34: 778.3 | D34: 774.43 | E34: 767.87 | F34: 757.43 | G34: 750.87 | H34: 784.87 | I34: 791.43 | J34: 801.87 | K34: 781 | L34: 764 | M34: 14.04668
A35: 26 | B35: DMART | C35: 1374.2 | D35: 1378.73 | E35: 1360.47 | F35: 1346.73 | G35: 1328.47 | H35: 1392.47 | I35: 1410.73 | J35: 1424.47 | K35: 1397 | L35: 1365 | M35: 2.3806
A36: 27 | B36: AXISBANK | C36: 690.95 | D36: 692.68 | E36: 682.02 | F36: 673.08 | G36: 662.42 | H36: 701.62 | I36: 712.28 | J36: 721.22 | K36: 703.35 | L36: 683.75 | M36: 469.1223
A37: 28 | B37: BAJAJ-AUTO | C37: 2499.7 | D37: 2546.02 | E37: 2438.68 | F37: 2377.67 | G37: 2270.33 | H37: 2607.03 | I37: 2714.37 | J37: 2775.38 | K37: 2653.35 | L37: 2485 | M37: 24.50943
A38: 29 | B38: BAJFINANCE | C38: 2595.5 | D38: 2588.40 | E38: 2553.10 | F38: 2510.70 | G38: 2475.40 | H38: 2630.80 | I38: 2666.10 | J38: 2708.50 | K38: 2623.7 | L38: 2546 | M38: 38.79707
A39: 30 | B39: BAJAJFINSV | C39: 6247.2 | D39: 6272.12 | E39: 6175.43 | F39: 6103.67 | G39: 6006.98 | H39: 6343.88 | I39: 6440.57 | J39: 6512.33 | K39: 6368.8 | L39: 6200.35 | M39: 3.38788
A40: 31 | B40: BALKRISIND | C40: 811.55 | D40: 810.88 | E40: 802.02 | F40: 792.48 | G40: 783.62 | H40: 820.42 | I40: 829.28 | J40: 838.82 | K40: 819.75 | L40: 801.35 | M40: 4.04674
A41: 32 | B41: BANKBARODA | C41: 113.7 | D41: 114.77 | E41: 111.23 | F41: 108.77 | G41: 105.23 | H41: 117.23 | I41: 120.77 | J41: 123.23 | K41: 118.3 | L41: 112.3 | M41: 327.10788
A42: 33 | B42: BANKINDIA | C42: 99.15 | D42: 98.30 | E42: 96.40 | F42: 93.65 | G42: 91.75 | H42: 101.05 | I42: 102.95 | J42: 105.70 | K42: 100.2 | L42: 95.55 | M42: 146.37481
A43: 34 | B43: BATAINDIA | C43: 1103.8 | D43: 1100.85 | E43: 1083.70 | F43: 1063.60 | G43: 1046.45 | H43: 1120.95 | I43: 1138.10 | J43: 1158.20 | K43: 1118 | L43: 1080.75 | M43: 5.74214
A44: 35 | B44: BERGEPAINT | C44: 317 | D44: 315.45 | E44: 310.60 | F44: 304.20 | G44: 299.35 | H44: 321.85 | I44: 326.70 | J44: 333.10 | K44: 320.3 | L44: 309.05 | M44: 9.66291
A45: 36 | B45: BEL | C45: 84 | D45: 83.55 | E45: 82.45 | F45: 80.90 | G45: 79.80 | H45: 85.10 | I45: 86.20 | J45: 87.75 | K45: 84.65 | L45: 82 | M45: 77.71973
A46: 37 | B46: BHARATFIN | C46: 932.3 | D46: 931.68 | E46: 920.27 | F46: 908.23 | G46: 896.82 | H46: 943.72 | I46: 955.13 | J46: 967.17 | K46: 943.1 | L46: 919.65 | M46: 14.24142
A47: 38 | B47: BHARATFORG | C47: 475.3 | D47: 479.20 | E47: 469.90 | F47: 464.50 | G47: 455.20 | H47: 484.60 | I47: 493.90 | J47: 499.30 | K47: 488.5 | L47: 473.8 | M47: 10.08221
A48: 39 | B48: BHEL | C48: 63.9 | D48: 64.15 | E48: 63.35 | F48: 62.80 | G48: 62.00 | H48: 64.70 | I48: 65.50 | J48: 66.05 | K48: 64.95 | L48: 63.6 | M48: 75.09058
A49: 40 | B49: BPCL | C49: 342.7 | D49: 341.33 | E49: 337.87 | F49: 333.03 | G49: 329.57 | H49: 346.17 | I49: 349.63 | J49: 354.47 | K49: 344.8 | L49: 336.5 | M49: 27.82631
A50: 41 | B50: BHARTIARTL | C50: 303.7 | D50: 305.57 | E50: 298.23 | F50: 292.77 | G50: 285.43 | H50: 311.03 | I50: 318.37 | J50: 323.83 | K50: 312.9 | L50: 300.1 | M50: 59.06356
A51: 42 | B51: INFRATEL | C51: 290.3 | D51: 291.98 | E51: 284.37 | F51: 278.43 | G51: 270.82 | H51: 297.92 | I51: 305.53 | J51: 311.47 | K51: 299.6 | L51: 286.05 | M51: 62.93196
A52: 43 | B52: BIOCON | C52: 646.1 | D52: 648.10 | E52: 641.55 | F52: 637.00 | G52: 630.45 | H52: 652.65 | I52: 659.20 | J52: 663.75 | K52: 654.65 | L52: 643.55 | M52: 18.65144
A53: 44 | B53: BOSCHLTD | C53: 18454.1 | D53: 18409.62 | E53: 18239.23 | F53: 18024.37 | G53: 17853.98 | H53: 18624.48 | I53: 18794.87 | J53: 19009.73 | K53: 18580 | L53: 18194.75 | M53: 0.18985
A54: 45 | B54: BRITANNIA | C54: 3208.8 | D54: 3203.63 | E54: 3185.27 | F54: 3161.73 | G54: 3143.37 | H54: 3227.17 | I54: 3245.53 | J54: 3269.07 | K54: 3222 | L54: 3180.1 | M54: 1.16521
A55: 46 | B55: CRISIL | C55: 1662.85 | D55: 1657.65 | E55: 1645.35 | F55: 1627.85 | G55: 1615.55 | H55: 1675.15 | I55: 1687.45 | J55: 1704.95 | K55: 1669.95 | L55: 1640.15 | M55: 0.01597
A56: 47 | B56: CADILAHC | C56: 319.15 | D56: 319.82 | E56: 313.73 | F56: 308.32 | G56: 302.23 | H56: 325.23 | I56: 331.32 | J56: 336.73 | K56: 325.9 | L56: 314.4 | M56: 12.76905
A57: 48 | B57: CANBK | C57: 249.75 | D57: 248.93 | E57: 246.02 | F57: 242.28 | G57: 239.37 | H57: 252.67 | I57: 255.58 | J57: 259.32 | K57: 251.85 | L57: 245.2 | M57: 44.1731
A58: 49 | B58: CASTROLIND | C58: 163.15 | D58: 163.40 | E58: 160.75 | F58: 158.35 | G58: 155.70 | H58: 165.80 | I58: 168.45 | J58: 170.85 | K58: 166.05 | L58: 161 | M58: 16.36676
A59: 50 | B59: CENTRALBK | C59: 31.35 | D59: 31.37 | E59: 30.98 | F59: 30.62 | G59: 30.23 | H59: 31.73 | I59: 32.12 | J59: 32.48 | K59: 31.75 | L59: 31 | M59: 2.43658
A60: 51 | B60: CENTURYTEX | C60: 800.05 | D60: 796.05 | E60: 787.05 | F60: 774.05 | G60: 765.05 | H60: 809.05 | I60: 818.05 | J60: 831.05 | K60: 805.05 | L60: 783.05 | M60: 3.95184
A61: 52 | B61: CHOLAFIN | C61: 1131.35 | D61: 1122.25 | E61: 1100.10 | F61: 1068.85 | G61: 1046.70 | H61: 1153.50 | I61: 1175.65 | J61: 1206.90 | K61: 1144.4 | L61: 1091 | M61: 3.07024
A62: 53 | B62: CIPLA | C62: 505.8 | D62: 503.53 | E62: 499.97 | F62: 494.13 | G62: 490.57 | H62: 509.37 | I62: 512.93 | J62: 518.77 | K62: 507.1 | L62: 497.7 | M62: 15.24621
A63: 54 | B63: COALINDIA | C63: 225.2 | D63: 224.58 | E63: 221.17 | F63: 217.13 | G63: 213.72 | H63: 228.62 | I63: 232.03 | J63: 236.07 | K63: 228 | L63: 220.55 | M63: 73.49253
A64: 55 | B64: COLPAL | C64: 1272.9 | D64: 1277.12 | E64: 1262.83 | F64: 1252.77 | G64: 1238.48 | H64: 1287.18 | I64: 1301.47 | J64: 1311.53 | K64: 1291.4 | L64: 1267.05 | M64: 5.68374
A65: 56 | B65: CONCOR | C65: 661.45 | D65: 654.68 | E65: 644.77 | F65: 628.08 | G65: 618.17 | H65: 671.37 | I65: 681.28 | J65: 697.97 | K65: 664.6 | L65: 638 | M65: 6.51614
A66: 57 | B66: COROMANDEL | C66: 448 | D66: 447.52 | E66: 441.03 | F66: 434.07 | G66: 427.58 | H66: 454.48 | I66: 460.97 | J66: 467.93 | K66: 454 | L66: 440.55 | M66: 1.41954
A67: 58 | B67: CROMPTON | C67: 216.45 | D67: 216.60 | E67: 212.05 | F67: 207.65 | G67: 203.10 | H67: 221.00 | I67: 225.55 | J67: 229.95 | K67: 221.15 | L67: 212.2 | M67: 8.10986
A68: 59 | B68: CUMMINSIND | C68: 799.35 | D68: 793.60 | E68: 786.00 | F68: 772.65 | G68: 765.05 | H68: 806.95 | I68: 814.55 | J68: 827.90 | K68: 801.2 | L68: 780.25 | M68: 3.83639
A69: 60 | B69: DLF | C69: 164.2 | D69: 163.55 | E69: 160.70 | F69: 157.20 | G69: 154.35 | H69: 167.05 | I69: 169.90 | J69: 173.40 | K69: 166.4 | L69: 160.05 | M69: 43.79914
A70: 61 | B70: DABUR | C70: 431.15 | D70: 429.32 | E70: 426.18 | F70: 421.22 | G70: 418.08 | H70: 434.28 | I70: 437.42 | J70: 442.38 | K70: 432.45 | L70: 424.35 | M70: 19.19495
A71: 62 | B71: DHFL | C71: 161.45 | D71: 161.53 | E71: 153.47 | F71: 145.48 | G71: 137.42 | H71: 169.52 | I71: 177.58 | J71: 185.57 | K71: 169.6 | L71: 153.55 | M71: 573.07542
A72: 63 | B72: DISHTV | C72: 24.05 | D72: 23.17 | E72: 21.88 | F72: 19.72 | G72: 18.43 | H72: 25.33 | I72: 26.62 | J72: 28.78 | K72: 24.45 | L72: 21 | M72: 602.60998
A73: 64 | B73: DIVISLAB | C73: 1503.15 | D73: 1502.72 | E73: 1492.48 | F73: 1481.82 | G73: 1471.58 | H73: 1513.38 | I73: 1523.62 | J73: 1534.28 | K73: 1512.95 | L73: 1492.05 | M73: 2.18871
A74: 65 | B74: LALPATHLAB | C74: 1066.6 | D74: 1050.93 | E74: 1027.87 | F74: 989.13 | G74: 966.07 | H74: 1089.67 | I74: 1112.73 | J74: 1151.47 | K74: 1074 | L74: 1012.2 | M74: 0.47716
A75: 66 | B75: DRREDDY | C75: 2665.4 | D75: 2660.95 | E75: 2641.90 | F75: 2618.40 | G75: 2599.35 | H75: 2684.45 | I75: 2703.50 | J75: 2727.00 | K75: 2680 | L75: 2637.45 | M75: 6.57014
A76: 67 | B76: EDELWEISS | C76: 154.8 | D76: 154.65 | E76: 152.80 | F76: 150.80 | G76: 148.95 | H76: 156.65 | I76: 158.50 | J76: 160.50 | K76: 156.5 | L76: 152.65 | M76: 28.7378
A77: 68 | B77: EICHERMOT | C77: 18919.15 | D77: 18938.02 | E77: 18781.13 | F77: 18643.12 | G77: 18486.23 | H77: 19076.03 | I77: 19232.92 | J77: 19370.93 | K77: 19094.9 | L77: 18800 | M77: 1.02632
A78: 69 | B78: EMAMILTD | C78: 415.75 | D78: 413.00 | E78: 401.05 | F78: 386.35 | G78: 374.40 | H78: 427.70 | I78: 439.65 | J78: 454.35 | K78: 424.95 | L78: 398.3 | M78: 2.5961
A79: 70 | B79: ENDURANCE | C79: 1126.2 | D79: 1123.05 | E79: 1116.05 | F79: 1105.90 | G79: 1098.90 | H79: 1133.20 | I79: 1140.20 | J79: 1150.35 | K79: 1130.05 | L79: 1112.9 | M79: 0.07052
A80: 71 | B80: ENGINERSIN | C80: 114.85 | D80: 114.88 | E80: 113.97 | F80: 113.08 | G80: 112.17 | H80: 115.77 | I80: 116.68 | J80: 117.57 | K80: 115.8 | L80: 114 | M80: 5.98267
A81: 72 | B81: EXIDEIND | C81: 222.6 | D81: 221.42 | E81: 218.88 | F81: 215.17 | G81: 212.63 | H81: 225.13 | I81: 227.67 | J81: 231.38 | K81: 223.95 | L81: 217.7 | M81: 47.76065
A82: 73 | B82: FEDERALBNK | C82: 86.5 | D82: 86.08 | E82: 85.07 | F82: 83.63 | G82: 82.62 | H82: 87.52 | I82: 88.53 | J82: 89.97 | K82: 87.1 | L82: 84.65 | M82: 76.28375
A83: 74 | B83: GAIL | C83: 321.6 | D83: 323.03 | E83: 318.47 | F83: 315.33 | G83: 310.77 | H83: 326.17 | I83: 330.73 | J83: 333.87 | K83: 327.6 | L83: 319.9 | M83: 61.59363
A84: 75 | B84: GMRINFRA | C84: 15.55 | D84: 15.52 | E84: 15.33 | F84: 15.12 | G84: 14.93 | H84: 15.73 | I84: 15.92 | J84: 16.13 | K84: 15.7 | L84: 15.3 | M84: 171.56388
A85: 76 | B85: GSKCONS | C85: 7190.25 | D85: 7214.22 | E85: 7149.48 | F85: 7108.72 | G85: 7043.98 | H85: 7254.98 | I85: 7319.72 | J85: 7360.48 | K85: 7278.95 | L85: 7173.45 | M85: 0.07573
A86: 77 | B86: GLAXO | C86: 1426.6 | D86: 1423.65 | E86: 1403.30 | F86: 1380.00 | G86: 1359.65 | H86: 1446.95 | I86: 1467.30 | J86: 1490.60 | K86: 1444 | L86: 1400.35 | M86: 0.10102
A87: 78 | B87: GLENMARK | C87: 638.6 | D87: 637.98 | E87: 630.87 | F87: 623.13 | G87: 616.02 | H87: 645.72 | I87: 652.83 | J87: 660.57 | K87: 645.1 | L87: 630.25 | M87: 3.67742
A88: 79 | B88: GODREJCP | C88: 693.5 | D88: 705.33 | E88: 671.47 | F88: 649.43 | G88: 615.57 | H88: 727.37 | I88: 761.23 | J88: 783.27 | K88: 739.2 | L88: 683.3 | M88: 45.95384
A89: 80 | B89: GODREJIND | C89: 494.75 | D89: 499.78 | E89: 487.57 | F89: 480.38 | G89: 468.17 | H89: 506.97 | I89: 519.18 | J89: 526.37 | K89: 512 | L89: 492.6 | M89: 3.88464
A90: 81 | B90: GRUH | C90: 212.35 | D90: 213.65 | E90: 209.30 | F90: 206.25 | G90: 201.90 | H90: 216.70 | I90: 221.05 | J90: 224.10 | K90: 218 | L90: 210.6 | M90: 10.66505
A91: 82 | B91: GPPL | C91: 85.65 | D91: 86.67 | E91: 84.03 | F91: 82.42 | G91: 79.78 | H91: 88.28 | I91: 90.92 | J91: 92.53 | K91: 89.3 | L91: 85.05 | M91: 2.01891
A92: 83 | B92: GSPL | C92: 177.95 | D92: 177.08 | E92: 175.17 | F92: 172.38 | G92: 170.47 | H92: 179.87 | I92: 181.78 | J92: 184.57 | K92: 179 | L92: 174.3 | M92: 3.87821
A93: 84 | B93: HCLTECH | C93: 1018.4 | D93: 1018.30 | E93: 1001.60 | F93: 984.80 | G93: 968.10 | H93: 1035.10 | I93: 1051.80 | J93: 1068.60 | K93: 1035 | L93: 1001.5 | M93: 70.26674
A94: 85 | B94: HDFCBANK | C94: 2034.7 | D94: 2039.98 | E94: 2022.72 | F94: 2010.73 | G94: 1993.47 | H94: 2051.97 | I94: 2069.23 | J94: 2081.22 | K94: 2057.25 | L94: 2028 | M94: 46.2854
A95: 86 | B95: HAVELLS | C95: 703.35 | D95: 702.50 | E95: 696.85 | F95: 690.35 | G95: 684.70 | H95: 709.00 | I95: 714.65 | J95: 721.15 | K95: 708.15 | L95: 696 | M95: 8.61622
A96: 87 | B96: HEROMOTOCO | C96: 2611 | D96: 2617.53 | E96: 2585.07 | F96: 2559.13 | G96: 2526.67 | H96: 2643.47 | I96: 2675.93 | J96: 2701.87 | K96: 2650 | L96: 2591.6 | M96: 6.96557
A97: 88 | B97: HEXAWARE | C97: 322.6 | D97: 324.98 | E97: 315.02 | F97: 307.43 | G97: 297.47 | H97: 332.57 | I97: 342.53 | J97: 350.12 | K97: 334.95 | L97: 317.4 | M97: 11.09975
A98: 89 | B98: HINDALCO | C98: 205.8 | D98: 204.15 | E98: 202.05 | F98: 198.30 | G98: 196.20 | H98: 207.90 | I98: 210.00 | J98: 213.75 | K98: 206.25 | L98: 200.4 | M98: 56.19506
A99: 90 | B99: HINDPETRO | C99: 231.15 | D99: 231.13 | E99: 226.87 | F99: 222.58 | G99: 218.32 | H99: 235.42 | I99: 239.68 | J99: 243.97 | K99: 235.4 | L99: 226.85 | M99: 42.84743
A100: 91 | B100: HINDUNILVR | C100: 1733.35 | D100: 1740.73 | E100: 1720.72 | F100: 1708.08 | G100: 1688.07 | H100: 1753.37 | I100: 1773.38 | J100: 1786.02 | K100: 1760.75 | L100: 1728.1 | M100: 12.59978
A101: 92 | B101: HINDZINC | C101: 261.65 | D101: 261.48 | E101: 259.67 | F101: 257.68 | G101: 255.87 | H101: 263.47 | I101: 265.28 | J101: 267.27 | K101: 263.3 | L101: 259.5 | M101: 5.97557
A102: 93 | B102: HUDCO | C102: 41.55 | D102: 41.53 | E102: 41.12 | F102: 40.68 | G102: 40.27 | H102: 41.97 | I102: 42.38 | J102: 42.82 | K102: 41.95 | L102: 41.1 | M102: 6.19066
A103: 94 | B103: HDFC | C103: 1885.8 | D103: 1894.87 | E103: 1860.43 | F103: 1835.07 | G103: 1800.63 | H103: 1920.23 | I103: 1954.67 | J103: 1980.03 | K103: 1929.3 | L103: 1869.5 | M103: 41.27767
A104: 95 | B104: ITC | C104: 275.5 | D104: 276.63 | E104: 273.07 | F104: 270.63 | G104: 267.07 | H104: 279.07 | I104: 282.63 | J104: 285.07 | K104: 280.2 | L104: 274.2 | M104: 104.49713
A105: 96 | B105: ICICIBANK | C105: 365.9 | D105: 361.83 | E105: 355.07 | F105: 344.23 | G105: 337.47 | H105: 372.67 | I105: 379.43 | J105: 390.27 | K105: 368.6 | L105: 351 | M105: 394.00056
A106: 97 | B106: ICICIPRULI | C106: 292.15 | D106: 292.87 | E106: 290.28 | F106: 288.42 | G106: 285.83 | H106: 294.73 | I106: 297.32 | J106: 299.18 | K106: 295.45 | L106: 291 | M106: 5.6077
A107: 98 | B107: IDBI | C107: 54.4 | D107: 54.90 | E107: 53.40 | F107: 52.40 | G107: 50.90 | H107: 55.90 | I107: 57.40 | J107: 58.40 | K107: 56.4 | L107: 53.9 | M107: 31.7922
A108: 99 | B108: IDFCFIRSTB | C108: 44.75 | D108: 45.28 | E108: 44.07 | F108: 43.38 | G108: 42.17 | H108: 45.97 | I108: 47.18 | J108: 47.87 | K108: 46.5 | L108: 44.6 | M108: 154.19653
A109: 100 | B109: IDFC | C109: 38.7 | D109: 38.92 | E109: 38.28 | F109: 37.87 | G109: 37.23 | H109: 39.33 | I109: 39.97 | J109: 40.38 | K109: 39.55 | L109: 38.5 | M109: 16.64668
A110: 101 | B110: IRB | C110: 145.5 | D110: 146.70 | E110: 143.00 | F110: 140.50 | G110: 136.80 | H110: 149.20 | I110: 152.90 | J110: 155.40 | K110: 150.4 | L110: 144.2 | M110: 8.63721
A111: 102 | B111: IDEA | C111: 30.55 | D111: 30.72 | E111: 30.03 | F111: 29.52 | G111: 28.83 | H111: 31.23 | I111: 31.92 | J111: 32.43 | K111: 31.4 | L111: 30.2 | M111: 164.9618
A112: 103 | B112: IBULHSGFIN | C112: 672.9 | D112: 686.83 | E112: 645.67 | F112: 618.43 | G112: 577.27 | H112: 714.07 | I112: 755.23 | J112: 782.47 | K112: 728 | L112: 659.6 | M112: 140.13626
A113: 104 | B113: INDIANB | C113: 227.2 | D113: 226.20 | E113: 223.65 | F113: 220.10 | G113: 217.55 | H113: 229.75 | I113: 232.30 | J113: 235.85 | K113: 228.75 | L113: 222.65 | M113: 24.63501
A114: 105 | B114: INDHOTEL | C114: 133.35 | D114: 133.63 | E114: 132.27 | F114: 131.18 | G114: 129.82 | H114: 134.72 | I114: 136.08 | J114: 137.17 | K114: 135 | L114: 132.55 | M114: 3.51636
A115: 106 | B115: IOC | C115: 134.55 | D115: 135.07 | E115: 132.13 | F115: 129.72 | G115: 126.78 | H115: 137.48 | I115: 140.42 | J115: 142.83 | K115: 138 | L115: 132.65 | M115: 166.1325
A116: 107 | B116: IGL | C116: 278.6 | D116: 274.80 | E116: 269.60 | F116: 260.60 | G116: 255.40 | H116: 283.80 | I116: 289.00 | J116: 298.00 | K116: 280 | L116: 265.8 | M116: 18.37149
A117: 108 | B117: INDUSINDBK | C117: 1476.1 | D117: 1474.70 | E117: 1459.40 | F117: 1442.70 | G117: 1427.40 | H117: 1491.40 | I117: 1506.70 | J117: 1523.40 | K117: 1490 | L117: 1458 | M117: 31.93022
A118: 109 | B118: NAUKRI | C118: 1705.25 | D118: 1694.75 | E118: 1671.50 | F118: 1637.75 | G118: 1614.50 | H118: 1728.50 | I118: 1751.75 | J118: 1785.50 | K118: 1718 | L118: 1661 | M118: 6.58955
A119: 110 | B119: INFY | C119: 725.9 | D119: 727.27 | E119: 719.73 | F119: 713.57 | G119: 706.03 | H119: 733.43 | I119: 740.97 | J119: 747.13 | K119: 734.8 | L119: 721.1 | M119: 57.63026
A120: 111 | B120: INDIGO | C120: 1174.75 | D120: 1177.10 | E120: 1165.65 | F120: 1156.55 | G120: 1145.10 | H120: 1186.20 | I120: 1197.65 | J120: 1206.75 | K120: 1188.55 | L120: 1168 | M120: 6.05748
A121: 112 | B121: IPCALAB | C121: 781.75 | D121: 779.62 | E121: 774.43 | F121: 767.12 | G121: 761.93 | H121: 786.93 | I121: 792.12 | J121: 799.43 | K121: 784.8 | L121: 772.3 | M121: 0.47528
A122: 113 | B122: JSWENERGY | C122: 67.85 | D122: 67.50 | E122: 64.65 | F122: 61.45 | G122: 58.60 | H122: 70.70 | I122: 73.55 | J122: 76.75 | K122: 70.35 | L122: 64.3 | M122: 28.02144
A123: 114 | B123: JSWSTEEL | C123: 268.9 | D123: 268.18 | E123: 262.92 | F123: 256.93 | G123: 251.67 | H123: 274.17 | I123: 279.43 | J123: 285.42 | K123: 273.45 | L123: 262.2 | M123: 69.41276
A124: 115 | B124: JINDALSTEL | C124: 129.95 | D124: 129.95 | E124: 127.10 | F124: 124.25 | G124: 121.40 | H124: 132.80 | I124: 135.65 | J124: 138.50 | K124: 132.8 | L124: 127.1 | M124: 126.65753
A125: 116 | B125: JUBLFOOD | C125: 1200.2 | D125: 1204.30 | E125: 1169.70 | F125: 1139.20 | G125: 1104.60 | H125: 1234.80 | I125: 1269.40 | J125: 1299.90 | K125: 1238.9 | L125: 1173.8 | M125: 69.94644
A126: 117 | B126: JUBILANT | C126: 705.85 | D126: 709.45 | E126: 699.40 | F126: 692.95 | G126: 682.90 | H126: 715.90 | I126: 725.95 | J126: 732.40 | K126: 719.5 | L126: 703 | M126: 3.07775
A127: 118 | B127: KARURVYSYA | C127: 86.95 | D127: 87.75 | E127: 85.30 | F127: 83.65 | G127: 81.20 | H127: 89.40 | I127: 91.85 | J127: 93.50 | K127: 90.2 | L127: 86.1 | M127: 8.22203
A128: 119 | B128: KOTAKBANK | C128: 1222.2 | D128: 1231.83 | E128: 1208.17 | F128: 1194.13 | G128: 1170.47 | H128: 1245.87 | I128: 1269.53 | J128: 1283.57 | K128: 1255.5 | L128: 1217.8 | M128: 27.54232
A129: 120 | B129: L&TFH | C129: 132.7 | D129: 131.80 | E129: 130.15 | F129: 127.60 | G129: 125.95 | H129: 134.35 | I129: 136.00 | J129: 138.55 | K129: 133.45 | L129: 129.25 | M129: 64.91534
A130: 121 | B130: LICHSGFIN | C130: 433.5 | D130: 439.55 | E130: 423.55 | F130: 413.60 | G130: 397.60 | H130: 449.50 | I130: 465.50 | J130: 475.45 | K130: 455.55 | L130: 429.6 | M130: 27.85978
A131: 122 | B131: LT | C131: 1294.45 | D131: 1294.82 | E131: 1280.63 | F131: 1266.82 | G131: 1252.63 | H131: 1308.63 | I131: 1322.82 | J131: 1336.63 | K131: 1309 | L131: 1281 | M131: 23.85425
A132: 123 | B132: LUPIN | C132: 866.9 | D132: 866.80 | E132: 861.10 | F132: 855.30 | G132: 849.60 | H132: 872.60 | I132: 878.30 | J132: 884.10 | K132: 872.5 | L132: 861 | M132: 9.30968
A133: 124 | B133: MRF | C133: 61329.4 | D133: 61621.13 | E133: 60858.27 | F133: 60387.13 | G133: 59624.27 | H133: 62092.27 | I133: 62855.13 | J133: 63326.27 | K133: 62384 | L133: 61150 | M133: 0.06589
A134: 125 | B134: MGL | C134: 911.8 | D134: 914.43 | E134: 899.92 | F134: 888.03 | G134: 873.52 | H134: 926.32 | I134: 940.83 | J134: 952.72 | K134: 928.95 | L134: 902.55 | M134: 7.65729
A135: 126 | B135: M&MFIN | C135: 405.05 | D135: 403.98 | E135: 399.17 | F135: 393.28 | G135: 388.47 | H135: 409.87 | I135: 414.68 | J135: 420.57 | K135: 408.8 | L135: 398.1 | M135: 10.69316
A136: 127 | B136: M&M | C136: 678.65 | D136: 676.32 | E136: 672.63 | F136: 666.62 | G136: 662.93 | H136: 682.33 | I136: 686.02 | J136: 692.03 | K136: 680 | L136: 670.3 | M136: 27.38163
A137: 128 | B137: MANAPPURAM | C137: 91.25 | D137: 90.90 | E137: 90.10 | F137: 88.95 | G137: 88.15 | H137: 92.05 | I137: 92.85 | J137: 94.00 | K137: 91.7 | L137: 89.75 | M137: 21.27891
A138: 129 | B138: MRPL | C138: 68.35 | D138: 67.98 | E138: 67.27 | F138: 66.18 | G138: 65.47 | H138: 69.07 | I138: 69.78 | J138: 70.87 | K138: 68.7 | L138: 66.9 | M138: 13.60363
A139: 130 | B139: MARICO | C139: 365.9 | D139: 365.88 | E139: 361.62 | F139: 357.33 | G139: 353.07 | H139: 370.17 | I139: 374.43 | J139: 378.72 | K139: 370.15 | L139: 361.6 | M139: 17.86445
A140: 131 | B140: MARUTI | C140: 6548.25 | D140: 6548.08 | E140: 6508.17 | F140: 6468.08 | G140: 6428.17 | H140: 6588.17 | I140: 6628.08 | J140: 6668.17 | K140: 6588 | L140: 6508 | M140: 5.83773
A141: 132 | B141: MFSL | C141: 418.7 | D141: 415.47 | E141: 409.73 | F141: 400.77 | G141: 395.03 | H141: 424.43 | I141: 430.17 | J141: 439.13 | K141: 421.2 | L141: 406.5 | M141: 2.75829
A142: 133 | B142: MINDTREE | C142: 890.45 | D142: 898.18 | E142: 877.37 | F142: 864.28 | G142: 843.47 | H142: 911.27 | I142: 932.08 | J142: 945.17 | K142: 919 | L142: 885.1 | M142: 16.61063
A143: 134 | B143: MOTHERSUMI | C143: 141.3 | D143: 141.60 | E143: 139.45 | F143: 137.60 | G143: 135.45 | H143: 143.45 | I143: 145.60 | J143: 147.45 | K143: 143.75 | L143: 139.75 | M143: 43.32416
A144: 135 | B144: MPHASIS | C144: 1011.2 | D144: 1001.73 | E144: 987.47 | F144: 963.73 | G144: 949.47 | H144: 1025.47 | I144: 1039.73 | J144: 1063.47 | K144: 1016 | L144: 978 | M144: 8.7264
A145: 136 | B145: MUTHOOTFIN | C145: 500.5 | D145: 498.62 | E145: 493.43 | F145: 486.37 | G145: 481.18 | H145: 505.68 | I145: 510.87 | J145: 517.93 | K145: 503.8 | L145: 491.55 | M145: 4.52304
A146: 137 | B146: NATCOPHARM | C146: 679.7 | D146: 676.65 | E146: 667.30 | F146: 654.90 | G146: 645.55 | H146: 689.05 | I146: 698.40 | J146: 710.80 | K146: 686 | L146: 664.25 | M146: 1.12219
A147: 138 | B147: NBCC | C147: 60.05 | D147: 59.33 | E147: 58.47 | F147: 56.88 | G147: 56.02 | H147: 60.92 | I147: 61.78 | J147: 63.37 | K147: 60.2 | L147: 57.75 | M147: 84.64543
A148: 139 | B148: NHPC | C148: 24.5 | D148: 24.42 | E148: 24.13 | F148: 23.77 | G148: 23.48 | H148: 24.78 | I148: 25.07 | J148: 25.43 | K148: 24.7 | L148: 24.05 | M148: 23.25256
A149: 140 | B149: NMDC | C149: 96.1 | D149: 94.97 | E149: 93.43 | F149: 90.77 | G149: 89.23 | H149: 97.63 | I149: 99.17 | J149: 101.83 | K149: 96.5 | L149: 92.3 | M149: 77.68913
A150: 141 | B150: NTPC | C150: 138.7 | D150: 139.07 | E150: 137.73 | F150: 136.77 | G150: 135.43 | H150: 140.03 | I150: 141.37 | J150: 142.33 | K150: 140.4 | L150: 138.1 | M150: 114.81494
A151: 142 | B151: NATIONALUM | C151: 60 | D151: 60.07 | E151: 59.68 | F151: 59.37 | G151: 58.98 | H151: 60.38 | I151: 60.77 | J151: 61.08 | K151: 60.45 | L151: 59.75 | M151: 34.98115
A152: 143 | B152: OBEROIRLTY | C152: 433.3 | D152: 437.10 | E152: 428.25 | F152: 423.20 | G152: 414.35 | H152: 442.15 | I152: 451.00 | J152: 456.05 | K152: 445.95 | L152: 432.05 | M152: 1.98099
A153: 144 | B153: ONGC | C153: 139.7 | D153: 139.90 | E153: 138.30 | F153: 136.90 | G153: 135.30 | H153: 141.30 | I153: 142.90 | J153: 144.30 | K153: 141.5 | L153: 138.5 | M153: 85.11453
A154: 145 | B154: OIL | C154: 166.6 | D154: 167.83 | E154: 163.87 | F154: 161.13 | G154: 157.17 | H154: 170.57 | I154: 174.53 | J154: 177.27 | K154: 171.8 | L154: 165.1 | M154: 17.89394
A155: 146 | B155: OFSS | C155: 3768.95 | D155: 3760.57 | E155: 3726.13 | F155: 3683.32 | G155: 3648.88 | H155: 3803.38 | I155: 3837.82 | J155: 3880.63 | K155: 3795 | L155: 3717.75 | M155: 0.2717
A156: 147 | B156: PCJEWELLER | C156: 73.15 | D156: 73.18 | E156: 71.77 | F156: 70.38 | G156: 68.97 | H156: 74.57 | I156: 75.98 | J156: 77.37 | K156: 74.6 | L156: 71.8 | M156: 55.13701
A157: 148 | B157: PIIND | C157: 843.9 | D157: 846.75 | E157: 837.95 | F157: 832.00 | G157: 823.20 | H157: 852.70 | I157: 861.50 | J157: 867.45 | K157: 855.55 | L157: 840.8 | M157: 0.38634
A158: 149 | B158: PNBHOUSING | C158: 932.8 | D158: 921.50 | E158: 908.00 | F158: 883.20 | G158: 869.70 | H158: 946.30 | I158: 959.80 | J158: 984.60 | K158: 935 | L158: 896.7 | M158: 4.81417
A159: 150 | B159: PAGEIND | C159: 23157.7 | D159: 23052.18 | E159: 22728.42 | F159: 22299.13 | G159: 21975.37 | H159: 23481.47 | I159: 23805.23 | J159: 24234.52 | K159: 23375.95 | L159: 22622.9 | M159: 0.30436
A160: 151 | B160: PETRONET | C160: 225.6 | D160: 226.22 | E160: 223.53 | F160: 221.47 | G160: 218.78 | H160: 228.28 | I160: 230.97 | J160: 233.03 | K160: 228.9 | L160: 224.15 | M160: 33.83553
A161: 152 | B161: PIDILITIND | C161: 1110.1 | D161: 1100.08 | E161: 1082.17 | F161: 1054.23 | G161: 1036.32 | H161: 1128.02 | I161: 1145.93 | J161: 1173.87 | K161: 1118 | L161: 1072.15 | M161: 10.00557
A162: 153 | B162: PEL | C162: 2075.35 | D162: 2080.78 | E162: 1995.57 | F162: 1915.78 | G162: 1830.57 | H162: 2160.57 | I162: 2245.78 | J162: 2325.57 | K162: 2166 | L162: 2001 | M162: 12.33683
A163: 154 | B163: PFC | C163: 100.6 | D163: 100.67 | E163: 99.53 | F163: 98.47 | G163: 97.33 | H163: 101.73 | I163: 102.87 | J163: 103.93 | K163: 101.8 | L163: 99.6 | M163: 61.976
A164: 155 | B164: POWERGRID | C164: 187.1 | D164: 186.13 | E164: 184.37 | F164: 181.63 | G164: 179.87 | H164: 188.87 | I164: 190.63 | J164: 193.37 | K164: 187.9 | L164: 183.4 | M164: 71.50221
A165: 156 | B165: PRESTIGE | C165: 200.95 | D165: 200.30 | E165: 197.00 | F165: 193.05 | G165: 189.75 | H165: 204.25 | I165: 207.55 | J165: 211.50 | K165: 203.6 | L165: 196.35 | M165: 14.85682
A166: 157 | B166: PGHH | C166: 9919.6 | D166: 9876.88 | E166: 9808.77 | F166: 9697.93 | G166: 9629.82 | H166: 9987.72 | I166: 10055.83 | J166: 10166.67 | K166: 9945 | L166: 9766.05 | M166: 0.01369
A167: 158 | B167: PNB | C167: 77.25 | D167: 77.40 | E167: 76.55 | F167: 75.85 | G167: 75.00 | H167: 78.10 | I167: 78.95 | J167: 79.65 | K167: 78.25 | L167: 76.7 | M167: 112.38545
A168: 159 | B168: RBLBANK | C168: 563 | D168: 559.75 | E168: 554.50 | F168: 546.00 | G168: 540.75 | H168: 568.25 | I168: 573.50 | J168: 582.00 | K168: 565 | L168: 551.25 | M168: 11.64482
A169: 160 | B169: RAJESHEXPO | C169: 616.4 | D169: 609.97 | E169: 596.53 | F169: 576.67 | G169: 563.23 | H169: 629.83 | I169: 643.27 | J169: 663.13 | K169: 623.4 | L169: 590.1 | M169: 1.46134
A170: 161 | B170: RELCAPITAL | C170: 198.65 | D170: 199.62 | E170: 196.43 | F170: 194.22 | G170: 191.03 | H170: 201.83 | I170: 205.02 | J170: 207.23 | K170: 202.8 | L170: 197.4 | M170: 30.17605
A171: 162 | B171: RCOM | C171: 11.55 | D171: 11.75 | E171: 11.15 | F171: 10.75 | G171: 10.15 | H171: 12.15 | I171: 12.75 | J171: 13.15 | K171: 12.35 | L171: 11.35 | M171: 436.66454
A172: 163 | B172: RELIANCE | C172: 1195.7 | D172: 1203.93 | E172: 1182.87 | F172: 1170.03 | G172: 1148.97 | H172: 1216.77 | I172: 1237.83 | J172: 1250.67 | K172: 1225 | L172: 1191.1 | M172: 78.4694
A173: 164 | B173: RELINFRA | C173: 269.2 | D173: 268.08 | E173: 264.67 | F173: 260.13 | G173: 256.72 | H173: 272.62 | I173: 276.03 | J173: 280.57 | K173: 271.5 | L173: 263.55 | M173: 27.24905
A174: 165 | B174: RPOWER | C174: 26.65 | D174: 26.73 | E174: 26.37 | F174: 26.08 | G174: 25.72 | H174: 27.02 | I174: 27.38 | J174: 27.67 | K174: 27.1 | L174: 26.45 | M174: 41.60107
A175: 166 | B175: RECLTD | C175: 125.3 | D175: 124.63 | E175: 123.27 | F175: 121.23 | G175: 119.87 | H175: 126.67 | I175: 128.03 | J175: 130.07 | K175: 126 | L175: 122.6 | M175: 111.03647
A176: 167 | B176: SRF | C176: 2035.2 | D176: 2028.25 | E176: 2014.30 | F176: 1993.40 | G176: 1979.45 | H176: 2049.15 | I176: 2063.10 | J176: 2084.00 | K176: 2042.2 | L176: 2007.35 | M176: 1.43998
A177: 168 | B177: SHREECEM | C177: 15450.35 | D177: 15405.30 | E177: 15220.35 | F177: 14990.35 | G177: 14805.40 | H177: 15635.30 | I177: 15820.25 | J177: 16050.25 | K177: 15590.25 | L177: 15175.3 | M177: 0.16654
A178: 169 | B178: SRTRANSFIN | C178: 1014.7 | D178: 1017.97 | E178: 999.33 | F178: 983.97 | G178: 965.33 | H178: 1033.33 | I178: 1051.97 | J178: 1067.33 | K178: 1036.6 | L178: 1002.6 | M178: 17.22444
A179: 170 | B179: SIEMENS | C179: 1013.45 | D179: 1011.00 | E179: 1001.45 | F179: 989.45 | G179: 979.90 | H179: 1023.00 | I179: 1032.55 | J179: 1044.55 | K179: 1020.55 | L179: 999 | M179: 1.91122
A180: 171 | B180: SBIN | C180: 287.45 | D180: 285.70 | E180: 282.00 | F180: 276.55 | G180: 272.85 | H180: 291.15 | I180: 294.85 | J180: 300.30 | K180: 289.4 | L180: 280.25 | M180: 189.08654
A181: 172 | B181: SAIL | C181: 47.3 | D181: 47.22 | E181: 46.58 | F181: 45.87 | G181: 45.23 | H181: 47.93 | I181: 48.57 | J181: 49.28 | K181: 47.85 | L181: 46.5 | M181: 97.42271
A182: 173 | B182: SPARC | C182: 157.5 | D182: 159.70 | E182: 154.40 | F182: 151.30 | G182: 146.00 | H182: 162.80 | I182: 168.10 | J182: 171.20 | K182: 165 | L182: 156.6 | M182: 6.16715
A183: 174 | B183: SUNPHARMA | C183: 417.95 | D183: 420.05 | E183: 414.10 | F183: 410.25 | G183: 404.30 | H183: 423.90 | I183: 429.85 | J183: 433.70 | K183: 426 | L183: 416.2 | M183: 43.5153
A184: 175 | B184: SUNTV | C184: 533.65 | D184: 533.40 | E184: 525.65 | F184: 517.65 | G184: 509.90 | H184: 541.40 | I184: 549.15 | J184: 557.15 | K184: 541.15 | L184: 525.4 | M184: 16.04734
A185: 176 | B185: SUZLON | C185: 5 | D185: 4.98 | E185: 4.92 | F185: 4.83 | G185: 4.77 | H185: 5.07 | I185: 5.13 | J185: 5.22 | K185: 5.05 | L185: 4.9 | M185: 134.20926
A186: 177 | B186: SYNDIBANK | C186: 36.55 | D186: 36.48 | E186: 35.27 | F186: 33.98 | G186: 32.77 | H186: 37.77 | I186: 38.98 | J186: 40.27 | K186: 37.7 | L186: 35.2 | M186: 62.56215
A187: 178 | B187: SYNGENE | C187: 565.1 | D187: 563.00 | E187: 557.25 | F187: 549.40 | G187: 543.65 | H187: 570.85 | I187: 576.60 | J187: 584.45 | K187: 568.75 | L187: 555.15 | M187: 0.81656
A188: 179 | B188: TV18BRDCST | C188: 32.75 | D188: 32.82 | E188: 32.28 | F188: 31.82 | G188: 31.28 | H188: 33.28 | I188: 33.82 | J188: 34.28 | K188: 33.35 | L188: 32.35 | M188: 29.83644
A189: 180 | B189: TVSMOTOR | C189: 492 | D189: 492.83 | E189: 486.17 | F189: 480.33 | G189: 473.67 | H189: 498.67 | I189: 505.33 | J189: 511.17 | K189: 499.5 | L189: 487 | M189: 8.78292
A190: 181 | B190: TATACHEM | C190: 680.3 | D190: 676.40 | E190: 669.90 | F190: 659.50 | G190: 653.00 | H190: 686.80 | I190: 693.30 | J190: 703.70 | K190: 682.9 | L190: 666 | M190: 2.53234
A191: 182 | B191: TATACOMM | C191: 490.25 | D191: 496.23 | E191: 479.72 | F191: 469.18 | G191: 452.67 | H191: 506.77 | I191: 523.28 | J191: 533.82 | K191: 512.75 | L191: 485.7 | M191: 32.0192
A192: 183 | B192: TCS | C192: 1981.4 | D192: 1975.18 | E192: 1960.87 | F192: 1940.33 | G192: 1926.02 | H192: 1995.72 | I192: 2010.03 | J192: 2030.57 | K192: 1989.5 | L192: 1954.65 | M192: 24.29575
A193: 184 | B193: TATAGLOBAL | C193: 204.5 | D193: 204.32 | E193: 202.08 | F193: 199.67 | G193: 197.43 | H193: 206.73 | I193: 208.97 | J193: 211.38 | K193: 206.55 | L193: 201.9 | M193: 14.07845
A194: 185 | B194: TATAMTRDVR | C194: 90.55 | D194: 90.58 | E194: 89.42 | F194: 88.28 | G194: 87.12 | H194: 91.72 | I194: 92.88 | J194: 94.02 | K194: 91.75 | L194: 89.45 | M194: 20.09667
A195: 186 | B195: TATAMOTORS | C195: 174.6 | D195: 174.88 | E195: 173.02 | F195: 171.43 | G195: 169.57 | H195: 176.47 | I195: 178.33 | J195: 179.92 | K195: 176.75 | L195: 173.3 | M195: 77.57847
A196: 187 | B196: TATAPOWER | C196: 68.15 | D196: 69.18 | E196: 66.87 | F196: 65.58 | G196: 63.27 | H196: 70.47 | I196: 72.78 | J196: 74.07 | K196: 71.5 | L196: 67.9 | M196: 48.46733
A197: 188 | B197: TATASTEEL | C197: 467.45 | D197: 461.85 | E197: 452.30 | F197: 437.15 | G197: 427.60 | H197: 477.00 | I197: 486.55 | J197: 501.70 | K197: 471.4 | L197: 446.7 | M197: 108.57925
A198: 189 | B198: TECHM | C198: 714.6 | D198: 719.92 | E198: 706.43 | F198: 698.27 | G198: 684.78 | H198: 728.08 | I198: 741.57 | J198: 749.73 | K198: 733.4 | L198: 711.75 | M198: 21.399
A199: 190 | B199: RAMCOCEM | C199: 592.55 | D199: 585.27 | E199: 571.53 | F199: 550.52 | G199: 536.78 | H199: 606.28 | I199: 620.02 | J199: 641.03 | K199: 599 | L199: 564.25 | M199: 5.25738
A200: 191 | B200: TITAN | C200: 968.9 | D200: 967.97 | E200: 960.98 | F200: 953.07 | G200: 946.08 | H200: 975.88 | I200: 982.87 | J200: 990.78 | K200: 974.95 | L200: 960.05 | M200: 14.68812
A201: 192 | B201: TORNTPHARM | C201: 1850.05 | D201: 1856.83 | E201: 1833.67 | F201: 1817.28 | G201: 1794.12 | H201: 1873.22 | I201: 1896.38 | J201: 1912.77 | K201: 1880 | L201: 1840.45 | M201: 1.12962
A202: 193 | B202: TORNTPOWER | C202: 246.5 | D202: 246.95 | E202: 244.00 | F202: 241.50 | G202: 238.55 | H202: 249.45 | I202: 252.40 | J202: 254.90 | K202: 249.9 | L202: 244.45 | M202: 5.47517
A203: 194 | B203: UPL | C203: 767.35 | D203: 764.22 | E203: 758.43 | F203: 749.52 | G203: 743.73 | H203: 773.13 | I203: 778.92 | J203: 787.83 | K203: 770 | L203: 755.3 | M203: 10.57185
A204: 195 | B204: ULTRACEMCO | C204: 3442.2 | D204: 3424.83 | E204: 3382.37 | F204: 3322.53 | G204: 3280.07 | H204: 3484.67 | I204: 3527.13 | J204: 3586.97 | K204: 3467.3 | L204: 3365 | M204: 3.03793
A205: 196 | B205: UNIONBANK | C205: 81.2 | D205: 80.83 | E205: 79.82 | F205: 78.43 | G205: 77.42 | H205: 82.22 | I205: 83.23 | J205: 84.62 | K205: 81.85 | L205: 79.45 | M205: 66.65473
... 29 more rows

Sheet MidCap Intra
L5: Back To Main Page
A6: FOR INTRA DAY TRADING | K6: =Main!B10 -> 2019-01-31
A9: Sr.no | B9: Scrip | C9: CLOSE RATE | D9: Pivot Point | E9: Supports | H9: Resistances
C10: Point | E10: S1 | F10: S2 | G10: S3 | H10: R1 | I10: R2 | J10: R3 | K10: HIGH | L10: LOW | M10: Total Trade Quanity in Lakhs
A11: 1 | B11: 3MINDIA | C11: 20146.45 | D11: 20159.48 | E11: 20019.02 | F11: 19891.58 | G11: 19751.12 | H11: 20286.92 | I11: 20427.38 | J11: 20554.82 | K11: 20299.95 | L11: 20032.05 | M11: 0.02197
A12: 2 | B12: 8KMILES | C12: 120 | D12: 118.68 | E12: 117.37 | F12: 114.73 | G12: 113.42 | H12: 121.32 | I12: 122.63 | J12: 125.27 | K12: 120 | L12: 116.05 | M12: 0.78243
A13: 3 | B13: AARTIIND | C13: 1600.6 | D13: 1589.87 | E13: 1570.73 | F13: 1540.87 | G13: 1521.73 | H13: 1619.73 | I13: 1638.87 | J13: 1668.73 | K13: 1609 | L13: 1560 | M13: 1.91966
A14: 4 | B14: ABAN | C14: 66.25 | D14: 65.92 | E14: 65.13 | F14: 64.02 | G14: 63.23 | H14: 67.03 | I14: 67.82 | J14: 68.93 | K14: 66.7 | L14: 64.8 | M14: 3.53788
A15: 5 | B15: ABB | C15: 1264.65 | D15: 1265.45 | E15: 1242.20 | F15: 1219.75 | G15: 1196.50 | H15: 1287.90 | I15: 1311.15 | J15: 1333.60 | K15: 1288.7 | L15: 1243 | M15: 0.74899
A16: 6 | B16: ABCAPITAL | C16: 82.3 | D16: 82.73 | E16: 81.57 | F16: 80.83 | G16: 79.67 | H16: 83.47 | I16: 84.63 | J16: 85.37 | K16: 83.9 | L16: 82 | M16: 14.351
A17: 7 | B17: ABFRL | C17: 208.5 | D17: 207.67 | E17: 204.03 | F17: 199.57 | G17: 195.93 | H17: 212.13 | I17: 215.77 | J17: 220.23 | K17: 211.3 | L17: 203.2 | M17: 8.59652
A18: 8 | B18: ACC | C18: 1386.6 | D18: 1373.67 | E18: 1352.33 | F18: 1318.07 | G18: 1296.73 | H18: 1407.93 | I18: 1429.27 | J18: 1463.53 | K18: 1395 | L18: 1339.4 | M18: 5.72247
A19: 9 | B19: ADANIPORTS | C19: 338.15 | D19: 340.93 | E19: 332.82 | F19: 327.48 | G19: 319.37 | H19: 346.27 | I19: 354.38 | J19: 359.72 | K19: 349.05 | L19: 335.6 | M19: 76.72859
A20: 10 | B20: ADANIPOWER | C20: 44.5 | D20: 44.18 | E20: 43.12 | F20: 41.73 | G20: 40.67 | H20: 45.57 | I20: 46.63 | J20: 48.02 | K20: 45.25 | L20: 42.8 | M20: 163.23067
A21: 11 | B21: ADANITRANS | C21: 213.9 | D21: 213.95 | E21: 210.05 | F21: 206.20 | G21: 202.30 | H21: 217.80 | I21: 221.70 | J21: 225.55 | K21: 217.85 | L21: 210.1 | M21: 1.75288
A22: 12 | B22: ADVENZYMES | C22: 161.7 | D22: 161.28 | E22: 158.57 | F22: 155.43 | G22: 152.72 | H22: 164.42 | I22: 167.13 | J22: 170.27 | K22: 164 | L22: 158.15 | M22: 0.6803
A23: 13 | B23: AEGISCHEM | C23: 188.8 | D23: 188.93 | E23: 185.97 | F23: 183.13 | G23: 180.17 | H23: 191.77 | I23: 194.73 | J23: 197.57 | K23: 191.9 | L23: 186.1 | M23: 0.60776
A24: 14 | B24: AIAENG | C24: 1625.05 | D24: 1623.37 | E24: 1601.73 | F24: 1578.42 | G24: 1556.78 | H24: 1646.68 | I24: 1668.32 | J24: 1691.63 | K24: 1645 | L24: 1600.05 | M24: 0.19738
A25: 15 | B25: AJANTPHARM | C25: 1088.85 | D25: 1087.52 | E25: 1067.23 | F25: 1045.62 | G25: 1025.33 | H25: 1109.13 | I25: 1129.42 | J25: 1151.03 | K25: 1107.8 | L25: 1065.9 | M25: 5.63045
A26: 16 | B26: AKZOINDIA | C26: 1728.5 | D26: 1732.85 | E26: 1719.70 | F26: 1710.90 | G26: 1697.75 | H26: 1741.65 | I26: 1754.80 | J26: 1763.60 | K26: 1746 | L26: 1724.05 | M26: 0.0356
A27: 17 | B27: ALBK | C27: 44.9 | D27: 44.62 | E27: 43.98 | F27: 43.07 | G27: 42.43 | H27: 45.53 | I27: 46.17 | J27: 47.08 | K27: 45.25 | L27: 43.7 | M27: 40.59691
A28: 18 | B28: ALKEM | C28: 1869.5 | D28: 1876.55 | E28: 1857.95 | F28: 1846.40 | G28: 1827.80 | H28: 1888.10 | I28: 1906.70 | J28: 1918.25 | K28: 1895.15 | L28: 1865 | M28: 0.13331
A29: 19 | B29: ALLCARGO | C29: 106.75 | D29: 106.30 | E29: 104.60 | F29: 102.45 | G29: 100.75 | H29: 108.45 | I29: 110.15 | J29: 112.30 | K29: 108 | L29: 104.15 | M29: 0.4056
A30: 20 | B30: AMARAJABAT | C30: 751.8 | D30: 754.97 | E30: 744.28 | F30: 736.77 | G30: 726.08 | H30: 762.48 | I30: 773.17 | J30: 780.68 | K30: 765.65 | L30: 747.45 | M30: 4.16778
A31: 21 | B31: AMBUJACEM | C31: 204.65 | D31: 202.98 | E31: 200.17 | F31: 195.68 | G31: 192.87 | H31: 207.47 | I31: 210.28 | J31: 214.77 | K31: 205.8 | L31: 198.5 | M31: 14.61921
A32: 22 | B32: ANDHRABANK | C32: 25.9 | D32: 25.95 | E32: 25.70 | F32: 25.50 | G32: 25.25 | H32: 26.15 | I32: 26.40 | J32: 26.60 | K32: 26.2 | L32: 25.75 | M32: 6.86682
A33: 23 | B33: APLAPOLLO | C33: 1110.8 | D33: 1103.62 | E33: 1090.23 | F33: 1069.67 | G33: 1056.28 | H33: 1124.18 | I33: 1137.57 | J33: 1158.13 | K33: 1117 | L33: 1083.05 | M33: 0.06144
A34: 24 | B34: APLLTD | C34: 599.25 | D34: 601.08 | E34: 592.17 | F34: 585.08 | G34: 576.17 | H34: 608.17 | I34: 617.08 | J34: 624.17 | K34: 610 | L34: 594 | M34: 0.64704
A35: 25 | B35: APOLLOHOSP | C35: 1319.6 | D35: 1313.37 | E35: 1303.73 | F35: 1287.87 | G35: 1278.23 | H35: 1329.23 | I35: 1338.87 | J35: 1354.73 | K35: 1323 | L35: 1297.5 | M35: 3.15858
A36: 26 | B36: APOLLOTYRE | C36: 203.3 | D36: 203.73 | E36: 200.87 | F36: 198.43 | G36: 195.57 | H36: 206.17 | I36: 209.03 | J36: 211.47 | K36: 206.6 | L36: 201.3 | M36: 14.09006
A37: 27 | B37: ARVIND | C37: 91 | D37: 90.57 | E37: 89.53 | F37: 88.07 | G37: 87.03 | H37: 92.03 | I37: 93.07 | J37: 94.53 | K37: 91.6 | L37: 89.1 | M37: 10.23539
A38: 28 | B38: ASAHIINDIA | C38: 255 | D38: 255.42 | E38: 254.58 | F38: 254.17 | G38: 253.33 | H38: 255.83 | I38: 256.67 | J38: 257.08 | K38: 256.25 | L38: 255 | M38: 0.07121
A39: 29 | B39: ASHOKA | C39: 121.85 | D39: 122.12 | E39: 120.73 | F39: 119.62 | G39: 118.23 | H39: 123.23 | I39: 124.62 | J39: 125.73 | K39: 123.5 | L39: 121 | M39: 0.79334
A40: 30 | B40: ASHOKLEY | C40: 80.95 | D40: 81.57 | E40: 80.08 | F40: 79.22 | G40: 77.73 | H40: 82.43 | I40: 83.92 | J40: 84.78 | K40: 83.05 | L40: 80.7 | M40: 172.50863
A41: 31 | B41: ASIANPAINT | C41: 1390.4 | D41: 1393.10 | E41: 1369.40 | F41: 1348.40 | G41: 1324.70 | H41: 1414.10 | I41: 1437.80 | J41: 1458.80 | K41: 1416.8 | L41: 1372.1 | M41: 13.13152
A42: 32 | B42: ASTRAL | C42: 1126.35 | D42: 1118.15 | E42: 1088.30 | F42: 1050.25 | G42: 1020.40 | H42: 1156.20 | I42: 1186.05 | J42: 1224.10 | K42: 1148 | L42: 1080.1 | M42: 2.73249
A43: 33 | B43: ATUL | C43: 3497.85 | D43: 3499.25 | E43: 3453.55 | F43: 3409.25 | G43: 3363.55 | H43: 3543.55 | I43: 3589.25 | J43: 3633.55 | K43: 3544.95 | L43: 3454.95 | M43: 0.16675
A44: 34 | B44: AUBANK | C44: 586.8 | D44: 587.73 | E44: 580.67 | F44: 574.53 | G44: 567.47 | H44: 593.87 | I44: 600.93 | J44: 607.07 | K44: 594.8 | L44: 581.6 | M44: 2.4835
A45: 35 | B45: AUROPHARMA | C45: 778.3 | D45: 774.43 | E45: 767.87 | F45: 757.43 | G45: 750.87 | H45: 784.87 | I45: 791.43 | J45: 801.87 | K45: 781 | L45: 764 | M45: 14.04668
A46: 36 | B46: AVANTIFEED | C46: 316.45 | D46: 316.05 | E46: 310.40 | F46: 304.35 | G46: 298.70 | H46: 322.10 | I46: 327.75 | J46: 333.80 | K46: 321.7 | L46: 310 | M46: 3.09661
A47: 37 | B47: AXISBANK | C47: 690.95 | D47: 692.68 | E47: 682.02 | F47: 673.08 | G47: 662.42 | H47: 701.62 | I47: 712.28 | J47: 721.22 | K47: 703.35 | L47: 683.75 | M47: 469.1223
A48: 38 | B48: BAJAJ-AUTO | C48: 2499.7 | D48: 2546.02 | E48: 2438.68 | F48: 2377.67 | G48: 2270.33 | H48: 2607.03 | I48: 2714.37 | J48: 2775.38 | K48: 2653.35 | L48: 2485 | M48: 24.50943
A49: 39 | B49: BAJAJCON | C49: 351.35 | D49: 350.30 | E49: 345.05 | F49: 338.75 | G49: 333.50 | H49: 356.60 | I49: 361.85 | J49: 368.15 | K49: 355.55 | L49: 344 | M49: 0.364
A50: 40 | B50: BAJAJELEC | C50: 456.7 | D50: 449.88 | E50: 435.77 | F50: 414.83 | G50: 400.72 | H50: 470.82 | I50: 484.93 | J50: 505.87 | K50: 464 | L50: 428.95 | M50: 1.89241
A51: 41 | B51: BAJAJFINSV | C51: 6247.2 | D51: 6272.12 | E51: 6175.43 | F51: 6103.67 | G51: 6006.98 | H51: 6343.88 | I51: 6440.57 | J51: 6512.33 | K51: 6368.8 | L51: 6200.35 | M51: 3.38788
A52: 42 | B52: BAJAJHIND | C52: 8.1 | D52: 8.13 | E52: 8.02 | F52: 7.93 | G52: 7.82 | H52: 8.22 | I52: 8.33 | J52: 8.42 | K52: 8.25 | L52: 8.05 | M52: 10.22464
A53: 43 | B53: BAJAJHLDNG | C53: 2852.65 | D53: 2862.85 | E53: 2831.10 | F53: 2809.55 | G53: 2777.80 | H53: 2884.40 | I53: 2916.15 | J53: 2937.70 | K53: 2894.6 | L53: 2841.3 | M53: 0.10198
A54: 44 | B54: BAJFINANCE | C54: 2595.5 | D54: 2588.40 | E54: 2553.10 | F54: 2510.70 | G54: 2475.40 | H54: 2630.80 | I54: 2666.10 | J54: 2708.50 | K54: 2623.7 | L54: 2546 | M54: 38.79707
A55: 45 | B55: BALKRISIND | C55: 811.55 | D55: 810.88 | E55: 802.02 | F55: 792.48 | G55: 783.62 | H55: 820.42 | I55: 829.28 | J55: 838.82 | K55: 819.75 | L55: 801.35 | M55: 4.04674
A56: 46 | B56: BALLARPUR | C56: 3.7 | D56: 3.75 | E56: 3.60 | F56: 3.50 | G56: 3.35 | H56: 3.85 | I56: 4.00 | J56: 4.10 | K56: 3.9 | L56: 3.65 | M56: 8.51159
A57: 47 | B57: BALMLAWRIE | C57: 186.4 | D57: 186.67 | E57: 185.38 | F57: 184.37 | G57: 183.08 | H57: 187.68 | I57: 188.97 | J57: 189.98 | K57: 187.95 | L57: 185.65 | M57: 0.1194
A58: 48 | B58: BALRAMCHIN | C58: 101.05 | D58: 100.88 | E58: 99.92 | F58: 98.78 | G58: 97.82 | H58: 102.02 | I58: 102.98 | J58: 104.12 | K58: 101.85 | L58: 99.75 | M58: 9.97748
A59: 49 | B59: BANKBARODA | C59: 113.7 | D59: 114.77 | E59: 111.23 | F59: 108.77 | G59: 105.23 | H59: 117.23 | I59: 120.77 | J59: 123.23 | K59: 118.3 | L59: 112.3 | M59: 327.10788
A60: 50 | B60: BANKINDIA | C60: 99.15 | D60: 98.30 | E60: 96.40 | F60: 93.65 | G60: 91.75 | H60: 101.05 | I60: 102.95 | J60: 105.70 | K60: 100.2 | L60: 95.55 | M60: 146.37481
A61: 51 | B61: BASF | C61: 1355.6 | D61: 1353.55 | E61: 1337.30 | F61: 1319.00 | G61: 1302.75 | H61: 1371.85 | I61: 1388.10 | J61: 1406.40 | K61: 1369.8 | L61: 1335.25 | M61: 0.05801
A62: 52 | B62: BATAINDIA | C62: 1103.8 | D62: 1100.85 | E62: 1083.70 | F62: 1063.60 | G62: 1046.45 | H62: 1120.95 | I62: 1138.10 | J62: 1158.20 | K62: 1118 | L62: 1080.75 | M62: 5.74214
A63: 53 | B63: BBTC | C63: 1195.9 | D63: 1203.93 | E63: 1178.17 | F63: 1160.43 | G63: 1134.67 | H63: 1221.67 | I63: 1247.43 | J63: 1265.17 | K63: 1229.7 | L63: 1186.2 | M63: 0.68877
A64: 54 | B64: BEL | C64: 84 | D64: 83.55 | E64: 82.45 | F64: 80.90 | G64: 79.80 | H64: 85.10 | I64: 86.20 | J64: 87.75 | K64: 84.65 | L64: 82 | M64: 77.71973
A65: 55 | B65: BEML | C65: 796.35 | D65: 794.33 | E65: 785.87 | F65: 775.38 | G65: 766.92 | H65: 804.82 | I65: 813.28 | J65: 823.77 | K65: 802.8 | L65: 783.85 | M65: 14.04372
A66: 56 | B66: BERGEPAINT | C66: 317 | D66: 315.45 | E66: 310.60 | F66: 304.20 | G66: 299.35 | H66: 321.85 | I66: 326.70 | J66: 333.10 | K66: 320.3 | L66: 309.05 | M66: 9.66291
A67: 57 | B67: BFUTILITIE | C67: 197.05 | D67: 198.05 | E67: 194.10 | F67: 191.15 | G67: 187.20 | H67: 201.00 | I67: 204.95 | J67: 207.90 | K67: 202 | L67: 195.1 | M67: 3.83429
A68: 58 | B68: BGRENERGY | C68: 54.35 | D68: 54.28 | E68: 52.67 | F68: 50.98 | G68: 49.37 | H68: 55.97 | I68: 57.58 | J68: 59.27 | K68: 55.9 | L68: 52.6 | M68: 0.52859
A69: 59 | B69: BHARATFIN | C69: 932.3 | D69: 931.68 | E69: 920.27 | F69: 908.23 | G69: 896.82 | H69: 943.72 | I69: 955.13 | J69: 967.17 | K69: 943.1 | L69: 919.65 | M69: 14.24142
A70: 60 | B70: BHARATFORG | C70: 475.3 | D70: 479.20 | E70: 469.90 | F70: 464.50 | G70: 455.20 | H70: 484.60 | I70: 493.90 | J70: 499.30 | K70: 488.5 | L70: 473.8 | M70: 10.08221
A71: 61 | B71: BHARTIARTL | C71: 303.7 | D71: 305.57 | E71: 298.23 | F71: 292.77 | G71: 285.43 | H71: 311.03 | I71: 318.37 | J71: 323.83 | K71: 312.9 | L71: 300.1 | M71: 59.06356
A72: 62 | B72: BHEL | C72: 63.9 | D72: 64.15 | E72: 63.35 | F72: 62.80 | G72: 62.00 | H72: 64.70 | I72: 65.50 | J72: 66.05 | K72: 64.95 | L72: 63.6 | M72: 75.09058
A73: 63 | B73: BIOCON | C73: 646.1 | D73: 648.10 | E73: 641.55 | F73: 637.00 | G73: 630.45 | H73: 652.65 | I73: 659.20 | J73: 663.75 | K73: 654.65 | L73: 643.55 | M73: 18.65144
A74: 64 | B74: BIRLACORPN | C74: 489.9 | D74: 492.35 | E74: 482.70 | F74: 475.50 | G74: 465.85 | H74: 499.55 | I74: 509.20 | J74: 516.40 | K74: 502 | L74: 485.15 | M74: 0.6037
A75: 65 | B75: BLISSGVS | C75: 148.1 | D75: 148.82 | E75: 146.28 | F75: 144.47 | G75: 141.93 | H75: 150.63 | I75: 153.17 | J75: 154.98 | K75: 151.35 | L75: 147 | M75: 8.11513
A76: 66 | B76: BLUEDART | C76: 3006.3 | D76: 2985.78 | E76: 2931.57 | F76: 2856.83 | G76: 2802.62 | H76: 3060.52 | I76: 3114.73 | J76: 3189.47 | K76: 3040 | L76: 2911.05 | M76: 0.02138
A77: 67 | B77: BLUESTARCO | C77: 599.65 | D77: 600.45 | E77: 591.20 | F77: 582.75 | G77: 573.50 | H77: 608.90 | I77: 618.15 | J77: 626.60 | K77: 609.7 | L77: 592 | M77: 1.33949
A78: 68 | B78: BOMDYEING | C78: 107.05 | D78: 108.12 | E78: 105.23 | F78: 103.42 | G78: 100.53 | H78: 109.93 | I78: 112.82 | J78: 114.63 | K78: 111 | L78: 106.3 | M78: 4.88112
A79: 69 | B79: BOSCHLTD | C79: 18454.1 | D79: 18409.62 | E79: 18239.23 | F79: 18024.37 | G79: 17853.98 | H79: 18624.48 | I79: 18794.87 | J79: 19009.73 | K79: 18580 | L79: 18194.75 | M79: 0.18985
A80: 70 | B80: BPCL | C80: 342.7 | D80: 341.33 | E80: 337.87 | F80: 333.03 | G80: 329.57 | H80: 346.17 | I80: 349.63 | J80: 354.47 | K80: 344.8 | L80: 336.5 | M80: 27.82631
A81: 71 | B81: BRFL | C81: 8 | D81: 8.02 | E81: 7.88 | F81: 7.77 | G81: 7.63 | H81: 8.13 | I81: 8.27 | J81: 8.38 | K81: 8.15 | L81: 7.9 | M81: 0.32431
A82: 72 | B82: BRIGADE | C82: 208.65 | D82: 209.22 | E82: 203.18 | F82: 197.72 | G82: 191.68 | H82: 214.68 | I82: 220.72 | J82: 226.18 | K82: 215.25 | L82: 203.75 | M82: 0.8782
A83: 73 | B83: BRITANNIA | C83: 3208.8 | D83: 3203.63 | E83: 3185.27 | F83: 3161.73 | G83: 3143.37 | H83: 3227.17 | I83: 3245.53 | J83: 3269.07 | K83: 3222 | L83: 3180.1 | M83: 1.16521
A84: 74 | B84: BSE | C84: 589 | D84: 591.88 | E84: 585.77 | F84: 582.53 | G84: 576.42 | H84: 595.12 | I84: 601.23 | J84: 604.47 | K84: 598 | L84: 588.65 | M84: 0.30904
A85: 75 | B85: CADILAHC | C85: 319.15 | D85: 319.82 | E85: 313.73 | F85: 308.32 | G85: 302.23 | H85: 325.23 | I85: 331.32 | J85: 336.73 | K85: 325.9 | L85: 314.4 | M85: 12.76905
A86: 77 | B86: CANBK | C86: 249.75 | D86: 248.93 | E86: 246.02 | F86: 242.28 | G86: 239.37 | H86: 252.67 | I86: 255.58 | J86: 259.32 | K86: 251.85 | L86: 245.2 | M86: 44.1731
A87: 78 | B87: CANFINHOME | C87: 252.1 | D87: 251.93 | E87: 246.92 | F87: 241.73 | G87: 236.72 | H87: 257.12 | I87: 262.13 | J87: 267.32 | K87: 256.95 | L87: 246.75 | M87: 4.18383
A88: 79 | B88: CAPLIPOINT | C88: 336.3 | D88: 332.13 | E88: 325.47 | F88: 314.63 | G88: 307.97 | H88: 342.97 | I88: 349.63 | J88: 360.47 | K88: 338.8 | L88: 321.3 | M88: 0.44575
A89: 80 | B89: CARBORUNIV | C89: 351.65 | D89: 352.35 | E89: 349.20 | F89: 346.75 | G89: 343.60 | H89: 354.80 | I89: 357.95 | J89: 360.40 | K89: 355.5 | L89: 349.9 | M89: 0.19886
A90: 81 | B90: CARERATING | C90: 1005.7 | D90: 1010.55 | E90: 997.10 | F90: 988.50 | G90: 975.05 | H90: 1019.15 | I90: 1032.60 | J90: 1041.20 | K90: 1024 | L90: 1001.95 | M90: 1.59759
A91: 82 | B91: CASTROLIND | C91: 163.15 | D91: 163.40 | E91: 160.75 | F91: 158.35 | G91: 155.70 | H91: 165.80 | I91: 168.45 | J91: 170.85 | K91: 166.05 | L91: 161 | M91: 16.36676
A92: 83 | B92: CCL | C92: 265.65 | D92: 266.60 | E92: 261.25 | F92: 256.85 | G92: 251.50 | H92: 271.00 | I92: 276.35 | J92: 280.75 | K92: 271.95 | L92: 262.2 | M92: 0.12553
A93: 84 | B93: CDSL | C93: 217.95 | D93: 218.57 | E93: 216.53 | F93: 215.12 | G93: 213.08 | H93: 219.98 | I93: 222.02 | J93: 223.43 | K93: 220.6 | L93: 217.15 | M93: 1.11943
A94: 85 | B94: CEATLTD | C94: 1086.1 | D94: 1090.87 | E94: 1066.73 | F94: 1047.37 | G94: 1023.23 | H94: 1110.23 | I94: 1134.37 | J94: 1153.73 | K94: 1115 | L94: 1071.5 | M94: 9.65933
A95: 86 | B95: CENTRALBK | C95: 31.35 | D95: 31.37 | E95: 30.98 | F95: 30.62 | G95: 30.23 | H95: 31.73 | I95: 32.12 | J95: 32.48 | K95: 31.75 | L95: 31 | M95: 2.43658
A96: 87 | B96: CENTURYPLY | C96: 164.3 | D96: 164.45 | E96: 162.00 | F96: 159.70 | G96: 157.25 | H96: 166.75 | I96: 169.20 | J96: 171.50 | K96: 166.9 | L96: 162.15 | M96: 0.47704
A97: 88 | B97: CENTURYTEX | C97: 800.05 | D97: 796.05 | E97: 787.05 | F97: 774.05 | G97: 765.05 | H97: 809.05 | I97: 818.05 | J97: 831.05 | K97: 805.05 | L97: 783.05 | M97: 3.95184
A98: 89 | B98: CERA | C98: 2480.4 | D98: 2495.82 | E98: 2441.68 | F98: 2402.97 | G98: 2348.83 | H98: 2534.53 | I98: 2588.67 | J98: 2627.38 | K98: 2549.95 | L98: 2457.1 | M98: 0.02693
A99: 90 | B99: CGPOWER | C99: 37.45 | D99: 37.33 | E99: 36.67 | F99: 35.88 | G99: 35.22 | H99: 38.12 | I99: 38.78 | J99: 39.57 | K99: 38 | L99: 36.55 | M99: 47.38617
A100: 91 | B100: CHAMBLFERT | C100: 169.85 | D100: 168.42 | E100: 166.03 | F100: 162.22 | G100: 159.83 | H100: 172.23 | I100: 174.62 | J100: 178.43 | K100: 170.8 | L100: 164.6 | M100: 2.24917
A101: 92 | B101: CHENNPETRO | C101: 242.5 | D101: 241.27 | E101: 238.53 | F101: 234.57 | G101: 231.83 | H101: 245.23 | I101: 247.97 | J101: 251.93 | K101: 244 | L101: 237.3 | M101: 4.31826
A102: 93 | B102: CHOLAFIN | C102: 1131.35 | D102: 1122.25 | E102: 1100.10 | F102: 1068.85 | G102: 1046.70 | H102: 1153.50 | I102: 1175.65 | J102: 1206.90 | K102: 1144.4 | L102: 1091 | M102: 3.07024
A103: 94 | B103: CIPLA | C103: 505.8 | D103: 503.53 | E103: 499.97 | F103: 494.13 | G103: 490.57 | H103: 509.37 | I103: 512.93 | J103: 518.77 | K103: 507.1 | L103: 497.7 | M103: 15.24621
A104: 95 | B104: COALINDIA | C104: 225.2 | D104: 224.58 | E104: 221.17 | F104: 217.13 | G104: 213.72 | H104: 228.62 | I104: 232.03 | J104: 236.07 | K104: 228 | L104: 220.55 | M104: 73.49253
A105: 96 | B105: COCHINSHIP | C105: 361.35 | D105: 360.82 | E105: 359.18 | F105: 357.02 | G105: 355.38 | H105: 362.98 | I105: 364.62 | J105: 366.78 | K105: 362.45 | L105: 358.65 | M105: 0.28936
A106: 97 | B106: COFFEEDAY | C106: 268 | D106: 268.17 | E106: 265.93 | F106: 263.87 | G106: 261.63 | H106: 270.23 | I106: 272.47 | J106: 274.53 | K106: 270.4 | L106: 266.1 | M106: 1.52895
A107: 98 | B107: COLPAL | C107: 1272.9 | D107: 1277.12 | E107: 1262.83 | F107: 1252.77 | G107: 1238.48 | H107: 1287.18 | I107: 1301.47 | J107: 1311.53 | K107: 1291.4 | L107: 1267.05 | M107: 5.68374
A108: 99 | B108: CONCOR | C108: 661.45 | D108: 654.68 | E108: 644.77 | F108: 628.08 | G108: 618.17 | H108: 671.37 | I108: 681.28 | J108: 697.97 | K108: 664.6 | L108: 638 | M108: 6.51614
A109: 100 | B109: COROMANDEL | C109: 448 | D109: 447.52 | E109: 441.03 | F109: 434.07 | G109: 427.58 | H109: 454.48 | I109: 460.97 | J109: 467.93 | K109: 454 | L109: 440.55 | M109: 1.41954
A110: 101 | B110: COX&KINGS | C110: 153.55 | D110: 153.60 | E110: 150.30 | F110: 147.05 | G110: 143.75 | H110: 156.85 | I110: 160.15 | J110: 163.40 | K110: 156.9 | L110: 150.35 | M110: 0.48047
A111: 102 | B111: CRISIL | C111: 1662.85 | D111: 1657.65 | E111: 1645.35 | F111: 1627.85 | G111: 1615.55 | H111: 1675.15 | I111: 1687.45 | J111: 1704.95 | K111: 1669.95 | L111: 1640.15 | M111: 0.01597
A112: 103 | B112: CROMPTON | C112: 216.45 | D112: 216.60 | E112: 212.05 | F112: 207.65 | G112: 203.10 | H112: 221.00 | I112: 225.55 | J112: 229.95 | K112: 221.15 | L112: 212.2 | M112: 8.10986
A113: 104 | B113: CUB | C113: 194 | D113: 192.80 | E113: 191.20 | F113: 188.40 | G113: 186.80 | H113: 195.60 | I113: 197.20 | J113: 200.00 | K113: 194.4 | L113: 190 | M113: 9.45956
A114: 105 | B114: CUMMINSIND | C114: 799.35 | D114: 793.60 | E114: 786.00 | F114: 772.65 | G114: 765.05 | H114: 806.95 | I114: 814.55 | J114: 827.90 | K114: 801.2 | L114: 780.25 | M114: 3.83639
A115: 106 | B115: CYIENT | C115: 612.35 | D115: 609.25 | E115: 603.55 | F115: 594.75 | G115: 589.05 | H115: 618.05 | I115: 623.75 | J115: 632.55 | K115: 614.95 | L115: 600.45 | M115: 1.64943
A116: 107 | B116: DABUR | C116: 431.15 | D116: 429.32 | E116: 426.18 | F116: 421.22 | G116: 418.08 | H116: 434.28 | I116: 437.42 | J116: 442.38 | K116: 432.45 | L116: 424.35 | M116: 19.19495
A117: 108 | B117: DBCORP | C117: 169.25 | D117: 168.83 | E117: 165.52 | F117: 161.78 | G117: 158.47 | H117: 172.57 | I117: 175.88 | J117: 179.62 | K117: 172.15 | L117: 165.1 | M117: 0.43656
A118: 109 | B118: DBL | C118: 327.7 | D118: 328.32 | E118: 322.13 | F118: 316.57 | G118: 310.38 | H118: 333.88 | I118: 340.07 | J118: 345.63 | K118: 334.5 | L118: 322.75 | M118: 1.10215
A119: 110 | B119: DBREALTY | C119: 24.35 | D119: 24.55 | E119: 23.90 | F119: 23.45 | G119: 22.80 | H119: 25.00 | I119: 25.65 | J119: 26.10 | K119: 25.2 | L119: 24.1 | M119: 0.56177
A120: 111 | B120: DCAL | C120: 204.55 | D120: 206.85 | E120: 200.70 | F120: 196.85 | G120: 190.70 | H120: 210.70 | I120: 216.85 | J120: 220.70 | K120: 213 | L120: 203 | M120: 2.82377
A121: 112 | B121: DCBBANK | C121: 177.35 | D121: 176.62 | E121: 174.83 | F121: 172.32 | G121: 170.53 | H121: 179.13 | I121: 180.92 | J121: 183.43 | K121: 178.4 | L121: 174.1 | M121: 19.88752
A122: 113 | B122: DCMSHRIRAM | C122: 327.25 | D122: 325.12 | E122: 313.38 | F122: 299.52 | G122: 287.78 | H122: 338.98 | I122: 350.72 | J122: 364.58 | K122: 336.85 | L122: 311.25 | M122: 4.80616
A123: 114 | B123: DEEPAKFERT | C123: 113.85 | D123: 114.07 | E123: 112.38 | F123: 110.92 | G123: 109.23 | H123: 115.53 | I123: 117.22 | J123: 118.68 | K123: 115.75 | L123: 112.6 | M123: 2.50159
A124: 115 | B124: DELTACORP | C124: 226.05 | D124: 226.47 | E124: 224.58 | F124: 223.12 | G124: 221.23 | H124: 227.93 | I124: 229.82 | J124: 231.28 | K124: 228.35 | L124: 225 | M124: 3.35382
A125: 116 | B125: DEN | C125: 71.25 | D125: 71.30 | E125: 71.15 | F125: 71.05 | G125: 70.90 | H125: 71.40 | I125: 71.55 | J125: 71.65 | K125: 71.45 | L125: 71.2 | M125: 1.39257
A126: 117 | B126: DENABANK | C126: 12.65 | D126: 12.68 | E126: 12.47 | F126: 12.28 | G126: 12.07 | H126: 12.87 | I126: 13.08 | J126: 13.27 | K126: 12.9 | L126: 12.5 | M126: 10.50946
A127: 118 | B127: DHFL | C127: 161.45 | D127: 161.53 | E127: 153.47 | F127: 145.48 | G127: 137.42 | H127: 169.52 | I127: 177.58 | J127: 185.57 | K127: 169.6 | L127: 153.55 | M127: 573.07542
A128: 119 | B128: DISHTV | C128: 24.05 | D128: 23.17 | E128: 21.88 | F128: 19.72 | G128: 18.43 | H128: 25.33 | I128: 26.62 | J128: 28.78 | K128: 24.45 | L128: 21 | M128: 602.60998
A129: 120 | B129: DIVISLAB | C129: 1503.15 | D129: 1502.72 | E129: 1492.48 | F129: 1481.82 | G129: 1471.58 | H129: 1513.38 | I129: 1523.62 | J129: 1534.28 | K129: 1512.95 | L129: 1492.05 | M129: 2.18871
A130: 121 | B130: DIXON | C130: 2222.95 | D130: 2220.53 | E130: 2196.07 | F130: 2169.18 | G130: 2144.72 | H130: 2247.42 | I130: 2271.88 | J130: 2298.77 | K130: 2245 | L130: 2193.65 | M130: 0.02694
A131: 122 | B131: DLF | C131: 164.2 | D131: 163.55 | E131: 160.70 | F131: 157.20 | G131: 154.35 | H131: 167.05 | I131: 169.90 | J131: 173.40 | K131: 166.4 | L131: 160.05 | M131: 43.79914
A132: 123 | B132: DMART | C132: 1374.2 | D132: 1378.73 | E132: 1360.47 | F132: 1346.73 | G132: 1328.47 | H132: 1392.47 | I132: 1410.73 | J132: 1424.47 | K132: 1397 | L132: 1365 | M132: 2.3806
A133: 124 | B133: DREDGECORP | C133: 401.5 | D133: 397.97 | E133: 384.13 | F133: 366.77 | G133: 352.93 | H133: 415.33 | I133: 429.17 | J133: 446.53 | K133: 411.8 | L133: 380.6 | M133: 4.28415
A134: 125 | B134: DRREDDY | C134: 2665.4 | D134: 2660.95 | E134: 2641.90 | F134: 2618.40 | G134: 2599.35 | H134: 2684.45 | I134: 2703.50 | J134: 2727.00 | K134: 2680 | L134: 2637.45 | M134: 6.57014
A135: 126 | B135: ECLERX | C135: 1042.4 | D135: 1041.47 | E135: 1025.93 | F135: 1009.47 | G135: 993.93 | H135: 1057.93 | I135: 1073.47 | J135: 1089.93 | K135: 1057 | L135: 1025 | M135: 0.06643
A136: 127 | B136: EDELWEISS | C136: 154.8 | D136: 154.65 | E136: 152.80 | F136: 150.80 | G136: 148.95 | H136: 156.65 | I136: 158.50 | J136: 160.50 | K136: 156.5 | L136: 152.65 | M136: 28.7378
A137: 128 | B137: EICHERMOT | C137: 18919.15 | D137: 18938.02 | E137: 18781.13 | F137: 18643.12 | G137: 18486.23 | H137: 19076.03 | I137: 19232.92 | J137: 19370.93 | K137: 19094.9 | L137: 18800 | M137: 1.02632
A138: 129 | B138: EIDPARRY | C138: 201.05 | D138: 202.33 | E138: 198.72 | F138: 196.38 | G138: 192.77 | H138: 204.67 | I138: 208.28 | J138: 210.62 | K138: 205.95 | L138: 200 | M138: 0.62241
A139: 130 | B139: EIHOTEL | C139: 180.2 | D139: 180.07 | E139: 178.23 | F139: 176.27 | G139: 174.43 | H139: 182.03 | I139: 183.87 | J139: 185.83 | K139: 181.9 | L139: 178.1 | M139: 0.65164
A140: 131 | B140: EMAMILTD | C140: 415.75 | D140: 413.00 | E140: 401.05 | F140: 386.35 | G140: 374.40 | H140: 427.70 | I140: 439.65 | J140: 454.35 | K140: 424.95 | L140: 398.3 | M140: 2.5961
A141: 132 | B141: ENDURANCE | C141: 1126.2 | D141: 1123.05 | E141: 1116.05 | F141: 1105.90 | G141: 1098.90 | H141: 1133.20 | I141: 1140.20 | J141: 1150.35 | K141: 1130.05 | L141: 1112.9 | M141: 0.07052
A142: 133 | B142: ENGINERSIN | C142: 114.85 | D142: 114.88 | E142: 113.97 | F142: 113.08 | G142: 112.17 | H142: 115.77 | I142: 116.68 | J142: 117.57 | K142: 115.8 | L142: 114 | M142: 5.98267
A143: 134 | B143: EQUITAS | C143: 118.7 | D143: 117.80 | E143: 116.45 | F143: 114.20 | G143: 112.85 | H143: 120.05 | I143: 121.40 | J143: 123.65 | K143: 119.15 | L143: 115.55 | M143: 10.31579
A144: 135 | B144: ERIS | C144: 645.2 | D144: 656.73 | E144: 629.57 | F144: 613.93 | G144: 586.77 | H144: 672.37 | I144: 699.53 | J144: 715.17 | K144: 683.9 | L144: 641.1 | M144: 0.19172
A145: 136 | B145: EROSMEDIA | C145: 79 | D145: 79.13 | E145: 78.07 | F145: 77.13 | G145: 76.07 | H145: 80.07 | I145: 81.13 | J145: 82.07 | K145: 80.2 | L145: 78.2 | M145: 2.98207
A146: 137 | B146: ESCORTS | C146: 657.65 | D146: 654.05 | E146: 645.60 | F146: 633.55 | G146: 625.10 | H146: 666.10 | I146: 674.55 | J146: 686.60 | K146: 662.5 | L146: 642 | M146: 21.98248
A147: 138 | B147: EVEREADY | C147: 214.2 | D147: 214.40 | E147: 209.80 | F147: 205.40 | G147: 200.80 | H147: 218.80 | I147: 223.40 | J147: 227.80 | K147: 219 | L147: 210 | M147: 0.51473
A148: 139 | B148: EXIDEIND | C148: 222.6 | D148: 221.42 | E148: 218.88 | F148: 215.17 | G148: 212.63 | H148: 225.13 | I148: 227.67 | J148: 231.38 | K148: 223.95 | L148: 217.7 | M148: 47.76065
A149: 140 | B149: FCONSUMER | C149: 40 | D149: 39.73 | E149: 39.27 | F149: 38.53 | G149: 38.07 | H149: 40.47 | I149: 40.93 | J149: 41.67 | K149: 40.2 | L149: 39 | M149: 16.94457
A150: 141 | B150: FEDERALBNK | C150: 86.5 | D150: 86.08 | E150: 85.07 | F150: 83.63 | G150: 82.62 | H150: 87.52 | I150: 88.53 | J150: 89.97 | K150: 87.1 | L150: 84.65 | M150: 76.28375
A151: 142 | B151: FINCABLES | C151: 418.1 | D151: 418.63 | E151: 413.22 | F151: 408.33 | G151: 402.92 | H151: 423.52 | I151: 428.93 | J151: 433.82 | K151: 424.05 | L151: 413.75 | M151: 0.20596
A152: 143 | B152: FINPIPE | C152: 525.3 | D152: 527.78 | E152: 521.12 | F152: 516.93 | G152: 510.27 | H152: 531.97 | I152: 538.63 | J152: 542.82 | K152: 534.45 | L152: 523.6 | M152: 0.30179
A153: 144 | B153: FLFL | C153: 417.7 | D153: 416.97 | E153: 410.93 | F153: 404.17 | G153: 398.13 | H153: 423.73 | I153: 429.77 | J153: 436.53 | K153: 423 | L153: 410.2 | M153: 0.29117
A154: 145 | B154: FSL | C154: 47 | D154: 47.07 | E154: 46.43 | F154: 45.87 | G154: 45.23 | H154: 47.63 | I154: 48.27 | J154: 48.83 | K154: 47.7 | L154: 46.5 | M154: 13.04212
A155: 146 | B155: GAIL | C155: 321.6 | D155: 323.03 | E155: 318.47 | F155: 315.33 | G155: 310.77 | H155: 326.17 | I155: 330.73 | J155: 333.87 | K155: 327.6 | L155: 319.9 | M155: 61.59363
A156: 147 | B156: GATI | C156: 74.6 | D156: 74.32 | E156: 72.68 | F156: 70.77 | G156: 69.13 | H156: 76.23 | I156: 77.87 | J156: 79.78 | K156: 75.95 | L156: 72.4 | M156: 4.74951
A157: 148 | B157: GDL | C157: 99.3 | D157: 100.20 | E157: 96.90 | F157: 94.50 | G157: 91.20 | H157: 102.60 | I157: 105.90 | J157: 108.30 | K157: 103.5 | L157: 97.8 | M157: 11.69612
A158: 149 | B158: GEPIL | C158: 781.75 | D158: 788.15 | E158: 767.10 | F158: 752.45 | G158: 731.40 | H158: 802.80 | I158: 823.85 | J158: 838.50 | K158: 809.2 | L158: 773.5 | M158: 0.21127
A159: 150 | B159: GESHIP | C159: 302.25 | D159: 296.33 | E159: 286.42 | F159: 270.58 | G159: 260.67 | H159: 312.17 | I159: 322.08 | J159: 337.92 | K159: 306.25 | L159: 280.5 | M159: 0.52434
A160: 151 | B160: GET&D | C160: 294.4 | D160: 295.23 | E160: 288.87 | F160: 283.33 | G160: 276.97 | H160: 300.77 | I160: 307.13 | J160: 312.67 | K160: 301.6 | L160: 289.7 | M160: 0.28201
A161: 152 | B161: GHCL | C161: 245.35 | D161: 246.25 | E161: 242.60 | F161: 239.85 | G161: 236.20 | H161: 249.00 | I161: 252.65 | J161: 255.40 | K161: 249.9 | L161: 243.5 | M161: 0.70126
A162: 153 | B162: GICRE | C162: 242.95 | D162: 243.98 | E162: 239.97 | F162: 236.98 | G162: 232.97 | H162: 246.97 | I162: 250.98 | J162: 253.97 | K162: 248 | L162: 241 | M162: 0.3217
A163: 154 | B163: GILLETTE | C163: 6499.45 | D163: 6507.80 | E163: 6466.65 | F163: 6433.85 | G163: 6392.70 | H163: 6540.60 | I163: 6581.75 | J163: 6614.55 | K163: 6548.95 | L163: 6475 | M163: 0.19774
A164: 155 | B164: GLAXO | C164: 1426.6 | D164: 1423.65 | E164: 1403.30 | F164: 1380.00 | G164: 1359.65 | H164: 1446.95 | I164: 1467.30 | J164: 1490.60 | K164: 1444 | L164: 1400.35 | M164: 0.10102
A165: 156 | B165: GLENMARK | C165: 638.6 | D165: 637.98 | E165: 630.87 | F165: 623.13 | G165: 616.02 | H165: 645.72 | I165: 652.83 | J165: 660.57 | K165: 645.1 | L165: 630.25 | M165: 3.67742
A166: 157 | B166: GMDCLTD | C166: 87.05 | D166: 87.02 | E166: 85.73 | F166: 84.42 | G166: 83.13 | H166: 88.33 | I166: 89.62 | J166: 90.93 | K166: 88.3 | L166: 85.7 | M166: 0.50272
A167: 158 | B167: GMRINFRA | C167: 15.55 | D167: 15.52 | E167: 15.33 | F167: 15.12 | G167: 14.93 | H167: 15.73 | I167: 15.92 | J167: 16.13 | K167: 15.7 | L167: 15.3 | M167: 171.56388
A168: 159 | B168: GNFC | C168: 325.2 | D168: 323.40 | E168: 320.00 | F168: 314.80 | G168: 311.40 | H168: 328.60 | I168: 332.00 | J168: 337.20 | K168: 326.8 | L168: 318.2 | M168: 2.90423
A169: 160 | B169: GODFRYPHLP | C169: 936.3 | D169: 935.02 | E169: 926.23 | F169: 916.17 | G169: 907.38 | H169: 945.08 | I169: 953.87 | J169: 963.93 | K169: 943.8 | L169: 924.95 | M169: 1.47406
A170: 161 | B170: GODREJAGRO | C170: 489.7 | D170: 491.73 | E170: 483.97 | F170: 478.23 | G170: 470.47 | H170: 497.47 | I170: 505.23 | J170: 510.97 | K170: 499.5 | L170: 486 | M170: 2.92038
A171: 162 | B171: GODREJCP | C171: 693.5 | D171: 705.33 | E171: 671.47 | F171: 649.43 | G171: 615.57 | H171: 727.37 | I171: 761.23 | J171: 783.27 | K171: 739.2 | L171: 683.3 | M171: 45.95384
A172: 163 | B172: GODREJIND | C172: 494.75 | D172: 499.78 | E172: 487.57 | F172: 480.38 | G172: 468.17 | H172: 506.97 | I172: 519.18 | J172: 526.37 | K172: 512 | L172: 492.6 | M172: 3.88464
A173: 164 | B173: GODREJPROP | C173: 745.3 | D173: 748.52 | E173: 739.78 | F173: 734.27 | G173: 725.53 | H173: 754.03 | I173: 762.77 | J173: 768.28 | K173: 757.25 | L173: 743 | M173: 1.01779
A174: 165 | B174: GPPL | C174: 85.65 | D174: 86.67 | E174: 84.03 | F174: 82.42 | G174: 79.78 | H174: 88.28 | I174: 90.92 | J174: 92.53 | K174: 89.3 | L174: 85.05 | M174: 2.01891
A175: 166 | B175: GRANULES | C175: 92.35 | D175: 93.02 | E175: 90.03 | F175: 87.72 | G175: 84.73 | H175: 95.33 | I175: 98.32 | J175: 100.63 | K175: 96 | L175: 90.7 | M175: 44.17308
A176: 167 | B176: GRAPHITE | C176: 514.15 | D176: 503.62 | E176: 493.08 | F176: 472.02 | G176: 461.48 | H176: 524.68 | I176: 535.22 | J176: 556.28 | K176: 514.15 | L176: 482.55 | M176: 36.15224
A177: 168 | B177: GRASIM | C177: 725 | D177: 728.00 | E177: 715.00 | F177: 705.00 | G177: 692.00 | H177: 738.00 | I177: 751.00 | J177: 761.00 | K177: 741 | L177: 718 | M177: 14.72628
A178: 169 | B178: GREAVESCOT | C178: 120 | D178: 119.17 | E178: 117.93 | F178: 115.87 | G178: 114.63 | H178: 121.23 | I178: 122.47 | J178: 124.53 | K178: 120.4 | L178: 117.1 | M178: 1.17952
A179: 170 | B179: GREENPLY | C179: 129.3 | D179: 129.60 | E179: 127.75 | F179: 126.20 | G179: 124.35 | H179: 131.15 | I179: 133.00 | J179: 134.55 | K179: 131.45 | L179: 128.05 | M179: 0.81541
A180: 171 | B180: GRUH | C180: 212.35 | D180: 213.65 | E180: 209.30 | F180: 206.25 | G180: 201.90 | H180: 216.70 | I180: 221.05 | J180: 224.10 | K180: 218 | L180: 210.6 | M180: 10.66505
A181: 172 | B181: GSFC | C181: 94.65 | D181: 94.88 | E181: 93.97 | F181: 93.28 | G181: 92.37 | H181: 95.57 | I181: 96.48 | J181: 97.17 | K181: 95.8 | L181: 94.2 | M181: 8.23758
A182: 173 | B182: GSKCONS | C182: 7190.25 | D182: 7214.22 | E182: 7149.48 | F182: 7108.72 | G182: 7043.98 | H182: 7254.98 | I182: 7319.72 | J182: 7360.48 | K182: 7278.95 | L182: 7173.45 | M182: 0.07573
A183: 174 | B183: GSPL | C183: 177.95 | D183: 177.08 | E183: 175.17 | F183: 172.38 | G183: 170.47 | H183: 179.87 | I183: 181.78 | J183: 184.57 | K183: 179 | L183: 174.3 | M183: 3.87821
A184: 175 | B184: GUJALKALI | C184: 489.7 | D184: 487.07 | E184: 480.63 | F184: 471.57 | G184: 465.13 | H184: 496.13 | I184: 502.57 | J184: 511.63 | K184: 493.5 | L184: 478 | M184: 0.16801
A185: 176 | B185: GUJFLUORO | C185: 850.3 | D185: 851.40 | E185: 843.90 | F185: 837.50 | G185: 830.00 | H185: 857.80 | I185: 865.30 | J185: 871.70 | K185: 858.9 | L185: 845 | M185: 0.24738
A186: 177 | B186: GUJGASLTD | C186: 128.95 | D186: 127.95 | E186: 126.20 | F186: 123.45 | G186: 121.70 | H186: 130.70 | I186: 132.45 | J186: 135.20 | K186: 129.7 | L186: 125.2 | M186: 1.19035
A187: 178 | B187: GULFOILLUB | C187: 900.95 | D187: 890.02 | E187: 870.03 | F187: 839.12 | G187: 819.13 | H187: 920.93 | I187: 940.92 | J187: 971.83 | K187: 910 | L187: 859.1 | M187: 0.22974
A188: 179 | B188: GVKPIL | C188: 6.65 | D188: 6.63 | E188: 6.57 | F188: 6.48 | G188: 6.42 | H188: 6.72 | I188: 6.78 | J188: 6.87 | K188: 6.7 | L188: 6.55 | M188: 8.10388
A189: 180 | B189: HATHWAY | C189: 31.85 | D189: 31.88 | E189: 31.82 | F189: 31.78 | G189: 31.72 | H189: 31.92 | I189: 31.98 | J189: 32.02 | K189: 31.95 | L189: 31.85 | M189: 6.35528
A190: 181 | B190: HATSUN | C190: 652.8 | D190: 660.67 | E190: 634.13 | F190: 615.47 | G190: 588.93 | H190: 679.33 | I190: 705.87 | J190: 724.53 | K190: 687.2 | L190: 642 | M190: 7.41231
A191: 182 | B191: HAVELLS | C191: 703.35 | D191: 702.50 | E191: 696.85 | F191: 690.35 | G191: 684.70 | H191: 709.00 | I191: 714.65 | J191: 721.15 | K191: 708.15 | L191: 696 | M191: 8.61622
A192: 183 | B192: HCC | C192: 12.5 | D192: 12.63 | E192: 12.27 | F192: 12.03 | G192: 11.67 | H192: 12.87 | I192: 13.23 | J192: 13.47 | K192: 13 | L192: 12.4 | M192: 28.07894
A193: 184 | B193: HCL-INSYS | C193: 20.1 | D193: 20.13 | E193: 19.77 | F193: 19.43 | G193: 19.07 | H193: 20.47 | I193: 20.83 | J193: 21.17 | K193: 20.5 | L193: 19.8 | M193: 6.63995
A194: 185 | B194: HCLTECH | C194: 1018.4 | D194: 1018.30 | E194: 1001.60 | F194: 984.80 | G194: 968.10 | H194: 1035.10 | I194: 1051.80 | J194: 1068.60 | K194: 1035 | L194: 1001.5 | M194: 70.26674
A195: 186 | B195: HDFC | C195: 1885.8 | D195: 1894.87 | E195: 1860.43 | F195: 1835.07 | G195: 1800.63 | H195: 1920.23 | I195: 1954.67 | J195: 1980.03 | K195: 1929.3 | L195: 1869.5 | M195: 41.27767
A196: 187 | B196: HDFCBANK | C196: 2034.7 | D196: 2039.98 | E196: 2022.72 | F196: 2010.73 | G196: 1993.47 | H196: 2051.97 | I196: 2069.23 | J196: 2081.22 | K196: 2057.25 | L196: 2028 | M196: 46.2854
A197: 188 | B197: HDIL | C197: 26.15 | D197: 26.28 | E197: 25.72 | F197: 25.28 | G197: 24.72 | H197: 26.72 | I197: 27.28 | J197: 27.72 | K197: 26.85 | L197: 25.85 | M197: 25.24454
A198: 189 | B198: HEG | C198: 2175.5 | D198: 2108.27 | E198: 2038.23 | F198: 1900.97 | G198: 1830.93 | H198: 2245.53 | I198: 2315.57 | J198: 2452.83 | K198: 2178.3 | L198: 1971 | M198: 14.51959
A199: 190 | B199: HEIDELBERG | C199: 146.4 | D199: 146.13 | E199: 145.22 | F199: 144.03 | G199: 143.12 | H199: 147.32 | I199: 148.23 | J199: 149.42 | K199: 147.05 | L199: 144.95 | M199: 0.35332
A200: 191 | B200: HERITGFOOD | C200: 483.35 | D200: 482.47 | E200: 466.93 | F200: 450.52 | G200: 434.98 | H200: 498.88 | I200: 514.42 | J200: 530.83 | K200: 498 | L200: 466.05 | M200: 1.78273
A201: 192 | B201: HEROMOTOCO | C201: 2611 | D201: 2617.53 | E201: 2585.07 | F201: 2559.13 | G201: 2526.67 | H201: 2643.47 | I201: 2675.93 | J201: 2701.87 | K201: 2650 | L201: 2591.6 | M201: 6.96557
A202: 193 | B202: HEXAWARE | C202: 322.6 | D202: 324.98 | E202: 315.02 | F202: 307.43 | G202: 297.47 | H202: 332.57 | I202: 342.53 | J202: 350.12 | K202: 334.95 | L202: 317.4 | M202: 11.09975
A203: 194 | B203: HFCL | C203: 22.7 | D203: 22.30 | E203: 21.70 | F203: 20.70 | G203: 20.10 | H203: 23.30 | I203: 23.90 | J203: 24.90 | K203: 22.9 | L203: 21.3 | M203: 34.63508
A204: 195 | B204: HIMATSEIDE | C204: 205.55 | D204: 205.68 | E204: 203.92 | F204: 202.28 | G204: 200.52 | H204: 207.32 | I204: 209.08 | J204: 210.72 | K204: 207.45 | L204: 204.05 | M204: 0.12093
A205: 196 | B205: HINDALCO | C205: 205.8 | D205: 204.15 | E205: 202.05 | F205: 198.30 | G205: 196.20 | H205: 207.90 | I205: 210.00 | J205: 213.75 | K205: 206.25 | L205: 200.4 | M205: 56.19506
A206: 197 | B206: HINDCOPPER | C206: 45.95 | D206: 45.83 | E206: 45.42 | F206: 44.88 | G206: 44.47 | H206: 46.37 | I206: 46.78 | J206: 47.32 | K206: 46.25 | L206: 45.3 | M206: 3.66756
... 304 more rows

Sheet Bulk Deals
E6: Back To Main Page
A7: Subject : | B7: BULK DEAL | D7: =Main!B10 -> 2019-01-31
A9: Date | B9: Scrip code | C9: Scrip Name | D9: Client Name | E9: Buy / Sell | F9: Quantity Traded | G9: Trade Price / Wt.Avg.trade price | H9: Exchange
A10: 2019-01-30 | B10: 539122 | C10: BODHTREE | D10: VANDANA DAGA | E10: BUY | F10: 203,400 | G10: 42.5 | H10: BSE
A11: 2019-01-30 | B11: 530067 | C11: CSLFINANCE | D11: AJAY RELAN | E11: BUY | F11: 33,000 | G11: 318.91 | H11: BSE
A12: 2019-01-30 | B12: 530067 | C12: CSLFINANCE | D12: RADHIKA SHARMA | E12: SELL | F12: 33,000 | G12: 318.91 | H12: BSE
A13: 2019-01-30 | B13: 539009 | C13: GBLIL | D13: BUDDHADEB LAHA | E13: SELL | F13: 61,360 | G13: 98.55 | H13: BSE
A14: 2019-01-30 | B14: 539009 | C14: GBLIL | D14: HIGHGROWTH VINCOM PRIVATE LIMITED | E14: SELL | F14: 44,900 | G14: 98.65 | H14: BSE
A15: 2019-01-30 | B15: 539009 | C15: GBLIL | D15: SUNIL LAXMINARAYAN JHA | E15: BUY | F15: 46,030 | G15: 99.54 | H15: BSE
A16: 2019-01-30 | B16: 539009 | C16: GBLIL | D16: RAKHIBEN PARESHBHAI PATEL | E16: BUY | F16: 52,807 | G16: 99.65 | H16: BSE
A17: 2019-01-30 | B17: 539009 | C17: GBLIL | D17: SUNIL LAXMINARAYAN JHA | E17: SELL | F17: 20,242 | G17: 98.6 | H17: BSE
A18: 2019-01-30 | B18: 539009 | C18: GBLIL | D18: RAKHIBEN PARESHBHAI PATEL | E18: SELL | F18: 24,000 | G18: 98.59 | H18: BSE
A19: 2019-01-30 | B19: 539009 | C19: GBLIL | D19: GLORIOUS VINCOM PRIVATE LIMITED | E19: BUY | F19: 140,569 | G19: 99.77 | H19: BSE
A20: 2019-01-30 | B20: 539009 | C20: GBLIL | D20: GLORIOUS VINCOM PRIVATE LIMITED | E20: SELL | F20: 145,135 | G20: 98.91 | H20: BSE
A21: 2019-01-30 | B21: 532951 | C21: GSS | D21: JIGNESHBHAI HIRALAL SHAH | E21: BUY | F21: 85,000 | G21: 108.15 | H21: BSE
A22: 2019-01-30 | B22: 506640 | C22: GUJCMDS | D22: VISHWAMURTE TRAD INVEST PE LTD | E22: BUY | F22: 2,634 | G22: 109 | H22: BSE
A23: 2019-01-30 | B23: 506640 | C23: GUJCMDS | D23: TARULATABEN AJAYKUMAR PATEL | E23: SELL | F23: 2,609 | G23: 109 | H23: BSE
A24: 2019-01-30 | B24: 530047 | C24: MOHOTAIND | D24: VIKRAMKUMAR KARANRAJ SAKARIA HUF | E24: BUY | F24: 74,457 | G24: 46 | H24: BSE
A25: 2019-01-30 | B25: 530047 | C25: MOHOTAIND | D25: VIKRAMKUMAR KARANRAJ SAKARIA HUF | E25: SELL | F25: 2,594 | G25: 45.02 | H25: BSE
A26: 2019-01-30 | B26: 530047 | C26: MOHOTAIND | D26: JHAVERI TRADING & INVESTMENT PVT LTD | E26: SELL | F26: 78,906 | G26: 46.05 | H26: BSE
A27: 2019-01-30 | B27: 530047 | C27: MOHOTAIND | D27: ANILBHAI V DANGAR | E27: SELL | F27: 165,000 | G27: 46.91 | H27: BSE
A28: 2019-01-30 | B28: 530047 | C28: MOHOTAIND | D28: JIGNESHBHAI HIRALAL SHAH | E28: BUY | F28: 223,000 | G28: 46.75 | H28: BSE
A29: 2019-01-30 | B29: 539229 | C29: MRSS | D29: RIKHAV SECURITIES LIMITED | E29: SELL | F29: 65,400 | G29: 38.89 | H29: BSE
A30: 2019-01-30 | B30: 540243 | C30: NEWLIGHT | D30: WEALTH CAPITAL ADVISORS | E30: BUY | F30: 12,650 | G30: 43.47 | H30: BSE
A31: 2019-01-30 | B31: 504335 | C31: PAZEL | D31: REALSTEP VINIMAY PRIVATE LIMITED | E31: SELL | F31: 906,832 | G31: 1.16 | H31: BSE
A32: 2019-01-30 | B32: 540796 | C32: RATNABHUMI | D32: SHAH MUKESHKUMAR BABULAL | E32: SELL | F32: 70,000 | G32: 109.57 | H32: BSE
A33: 2019-01-30 | B33: 531952 | C33: RIBATEX | D33: MANISH KUMAR GUPTA | E33: BUY | F33: 52003 | G33: 108.01 | H33: BSE
A34: 2019-01-30 | B34: 539520 | C34: SHAILJA | D34: RAMESH KOCHHAR | E34: SELL | F34: 37000 | G34: 15.07 | H34: BSE
A35: 2019-01-30 | B35: 539520 | C35: SHAILJA | D35: BRAJA GOPAL PAL | E35: BUY | F35: 56150 | G35: 15.33 | H35: BSE
A36: 2019-01-30 | B36: 539520 | C36: SHAILJA | D36: ARVIND SHANTILAL SHAH | E36: BUY | F36: 40000 | G36: 15.18 | H36: BSE
A37: 2019-01-30 | B37: 539520 | C37: SHAILJA | D37: PRAVINA VINOD SHAH | E37: BUY | F37: 24000 | G37: 15.17 | H37: BSE
A38: 2019-01-30 | B38: 540084 | C38: SPICY | D38: JAYKUMAR PITAMBARBHAI CHAUHAN | E38: BUY | F38: 100000 | G38: 19.8 | H38: BSE
A39: 2019-01-30 | B39: 540084 | C39: SPICY | D39: JAYKUMAR PITAMBARBHAI CHAUHAN | E39: SELL | F39: 70000 | G39: 19.83 | H39: BSE
A40: 2019-01-30 | B40: 530419 | C40: SUMEDHA | D40: PARTH INFIN BROKERS PVT. LTD. | E40: BUY | F40: 54978 | G40: 18.01 | H40: BSE
A41: 2019-01-30 | B41: 530419 | C41: SUMEDHA | D41: PARTH INFIN BROKERS PVT. LTD. | E41: SELL | F41: 913 | G41: 17.76 | H41: BSE
A42: 2019-01-30 | B42: 530419 | C42: SUMEDHA | D42: CRONY VYAPAR PVT LTD | E42: SELL | F42: 54065 | G42: 18 | H42: BSE
A43: 2019-01-30 | B43: AKG | C43: AKG Exim Limited | D43: PIYUSH CHANDRAKANT RATHI | E43: BUY | F43: 144000 | G43: 34.77 | H43: NSE
A44: 2019-01-30 | B44: BHARATFIN | C44: Bharat Fin. Inc. Ltd. | D44: ADITYA BIRLA SUN LIFE MUTUAL FUND - BIRLA SUN LIFE BANKING AND FINANCIAL SERVICES FUND | E44: BUY | F44: 829,610 | G44: 932.3 | H44: NSE
A45: 2019-01-30 | B45: DHFL | C45: Dewan Housing Fin Corp | D45: CHANDARANA INTERMEDIARIES BROKERS PRIVATE LIMITED | E45: BUY | F45: 1,853,797 | G45: 162.16 | H45: NSE
A46: 2019-01-30 | B46: DHFL | C46: Dewan Housing Fin Corp | D46: CROSSLAND TRADING CO | E46: BUY | F46: 1,761,615 | G46: 161.13 | H46: NSE
A47: 2019-01-30 | B47: DHFL | C47: Dewan Housing Fin Corp | D47: TOWER RESEARCH CAPITAL MARKETS INDIA PRIVATE LIMITED | E47: BUY | F47: 4,027,726 | G47: 161.11 | H47: NSE
A48: 2019-01-30 | B48: GEOJITFSL | C48: Geojit Fin Serv Ltd | D48: COPTHALL MAURITIUS INVESTMENT LIMITED | E48: BUY | F48: 2,254,364 | G48: 35.5 | H48: NSE
A49: 2019-01-30 | B49: IRISDOREME | C49: Iris Clothings Limited | D49: GAURANG SHASHIKANT VASANI HUF | E49: BUY | F49: 33,600 | G49: 91.48 | H49: NSE
A50: 2019-01-30 | B50: JETAIRWAYS | C50: Jet Airways (India) Ltd. | D50: TOWER RESEARCH CAPITAL MARKETS INDIA PRIVATE LIMITED | E50: BUY | F50: 653,330 | G50: 239.99 | H50: NSE
A51: 2019-01-30 | B51: RAJMET | C51: Rajnandini Metal Limited | D51: NEERU KALRA | E51: BUY | F51: 60,000 | G51: 25.88 | H51: NSE
A52: 2019-01-30 | B52: TRIDENT | C52: Trident Limited | D52: MADHURAJ FOUNDATION | E52: BUY | F52: 3,200,000 | G52: 66.3 | H52: NSE
A53: 2019-01-30 | B53: TRIDENT | C53: Trident Limited | D53: TRIDENT GROUP LIMITED | E53: BUY | F53: 3,400,000 | G53: 66.3 | H53: NSE
A54: 2019-01-30 | B54: AKG | C54: AKG Exim Limited | D54: ACE STONECRAFT LIMITED | E54: SELL | F54: 140,000 | G54: 34.76 | H54: NSE
A55: 2019-01-30 | B55: BHARATFIN | C55: Bharat Fin. Inc. Ltd. | D55: ADITYA BIRLA SUN LIFE MUTUAL FUND - BIRLA SUN LIFE BANKING AND FINANCIAL SERVICES FUND | E55: SELL | F55: 826,613 | G55: 932.3 | H55: NSE
A56: 2019-01-30 | B56: DHFL | C56: Dewan Housing Fin Corp | D56: CHANDARANA INTERMEDIARIES BROKERS PRIVATE LIMITED | E56: SELL | F56: 399,068 | G56: 161.72 | H56: NSE
A57: 2019-01-30 | B57: DHFL | C57: Dewan Housing Fin Corp | D57: CROSSLAND TRADING CO | E57: SELL | F57: 1,761,615 | G57: 161.21 | H57: NSE
A58: 2019-01-30 | B58: DHFL | C58: Dewan Housing Fin Corp | D58: TOWER RESEARCH CAPITAL MARKETS INDIA PRIVATE LIMITED | E58: SELL | F58: 4027726 | G58: 161.2 | H58: NSE
A59: 2019-01-30 | B59: GEOJITFSL | C59: Geojit Fin Serv Ltd | D59: HSBC GLOBAL INVESTMENT FUNDS-ASIA EX JAPAN EQUITY SMALLER COMPANIES | E59: SELL | F59: 2475971 | G59: 35.59 | H59: NSE
A60: 2019-01-30 | B60: GODHA | C60: Godha Cabcon Insulat Ltd | D60: MARK CORPORATE ADVIOSRS PVT LTD | E60: SELL | F60: 80000 | G60: 29.25 | H60: NSE
A61: 2019-01-30 | B61: IRISDOREME | C61: Iris Clothings Limited | D61: CHOICE EQUITY BROKING PRIVATE LIMITED | E61: SELL | F61: 32000 | G61: 91 | H61: NSE
A62: 2019-01-30 | B62: JETAIRWAYS | C62: Jet Airways (India) Ltd. | D62: TOWER RESEARCH CAPITAL MARKETS INDIA PRIVATE LIMITED | E62: SELL | F62: 653330 | G62: 239.87 | H62: NSE
A63: 2019-01-30 | B63: RAJMET | C63: Rajnandini Metal Limited | D63: RAMESH KUMAR | E63: SELL | F63: 60000 | G63: 25.88 | H63: NSE
A64: 2019-01-30 | B64: TRIDENT | C64: Trident Limited | D64: RAJINDER GUPTA | E64: SELL | F64: 6600000 | G64: 66.3 | H64: NSE

Sheet Call Tracker (Equity & F&O)
M5: Back To Main Page
A6: Retail Research Technical Calls & Fundamental Performance Report for the month of January -2019
M7: =Main!B10 -> 2019-01-31
B8: Positional Call
A9: Sr.no | B9: Date | D9: Company | E9: Rec | F9: Rec Price | G9: Stop Loss*** | H9: Call Closed At | I9: Target | J9: Remark | K9: Profit / Loss per Share | L9: Gain / Loss % | M9: Status | N9: Closed Date | O9: NSE Closed Price
A10: 1 | B10: 2018-12-21 | D10: TATAGLOBAL | E10: Buy{} | F10: 217 | G10: 209 | H10: 217 | I10: 235-240 | J10: Neutral | K10: =H10-F10 -> 0 | L10: =K10/F10 -> 0.00% | M10: Neutral | N10: 2019-01-25 | R10: H
A11: 2 | B11: 2018-12-24 | D11: JSWSTEEL | E11: Buy | F11: 299.5 | G11: 289 | H11: 285.5 | I11: 320-325 | J11: Loss of Rs.14/- | K11: -14 | L11: -4.67% | M11: Unsuccessful | N11: 2019-01-03 | R11: H
A12: 3 | B12: 2018-12-24 | D12: TATAPOWER | E12: Buy | F12: 77.3 | G12: 73.7 | H12: 73.5 | I12: 83-84 | J12: Loss of Rs.3.8/- | K12: =H12-F12 -> -3.8 | L12: =K12/F12 -> -4.92% | M12: Unsuccessful | N12: 2019-01-28 | R12: R
A13: 4 | B13: 2018-12-27 | D13: TVSMOTOR | E13: Buy | F13: 552.5 | G13: 519 | H13: 571.75 | I13: 600-620 | J13: Profit of Rs.19.25/- | K13: =H13-F13 -> 19.25 | L13: =K13/F13 -> 3.48% | M13: Successful | N13: 2019-01-02 | R13: H
A14: 5 | B14: 2019-01-01 | D14: ASHOKLEY | E14: Buy | F14: 101 | G14: 96 | H14: 94.5 | I14: 110-112 | J14: Loss of Rs.6.5/- | K14: -6.5 | L14: -6.44% | M14: Unsuccessful | N14: 2019-01-07 | R14: R
A15: 6 | B15: 2019-01-03 | D15: PEL | E15: Buy | F15: 2345 | G15: 2222.2 | H15: 2210 | I15: 2565-2585 | J15: Loss of Rs.135/- | K15: =H15-F15 -> -135 | L15: =K15/F15 -> -5.76% | M15: Unsuccessful | N15: 2019-01-28 | R15: R
A16: 7 | B16: 2019-01-04 | D16: M&M | E16: Buy | F16: 719 | G16: 688 | H16: 688 | I16: 770-780 | J16: Loss of Rs.31/- | K16: =H16-F16 -> -31 | L16: =K16/F16 -> -4.31% | M16: Unsuccessful | N16: 2019-01-25 | R16: H
A17: 8 | B17: 2019-01-16 | D17: BHARTIARTL | E17: Sell | F17: 339 | G17: 356.6 | H17: 324.75 | I17: 310-305 | J17: Profit of Rs.14.25/- | K17: =F17-H17 -> 14.25 | L17: =K17/F17 -> 4.20% | M17: Successful | N17: 2019-01-18 | R17: R
A18: 9 | B18: 2019-01-18 | D18: TORNTPHARM | E18: Sell | F18: 1905 | G18: 1990 | H18: 1847.5 | I18: 1780-1740 | J18: Profit of Rs.57.50/- | K18: =F18-H18 -> 57.5 | L18: =K18/F18 -> 3.02% | M18: Successful | N18: 2019-01-28 | R18: H
A19: 10 | B19: 2019-01-24 | D19: ITC | E19: Buy | F19: 279-281 | G19: 268 | I19: 305 | J19: Open | O19: =VLOOKUP(D19,Sheet2!A10:M1505,6,0) -> 275.5 | R19: R
A20: 11 | B20: 2019-01-25 | D20: UBL | E20: Sell | F20: 1435 | G20: 1510 | H20: 1392.5 | I20: 1300-1280 | J20: Part Profit of Rs.42.50/- | K20: =F20-H20 -> 42.5 | L20: =K20/F20 -> 2.96% | M20: Successful | N20: 2019-01-28 | R20: H
A21: 12 | B21: 2019-01-29 | D21: MARUTI | E21: Buy | F21: 6570-6580 | G21: 6290 | I21: 7000-7100 | J21: Open | O21: =VLOOKUP(D21,Sheet2!A12:M1507,6,0) -> 6548.25 | R21: R
A22: 13 | B22: 2019-01-30 | D22: ULTRACEMCO | E22: Buy | F22: 3390-3410 | G22: 3230 | I22: 3750-3800 | J22: Open | O22: =VLOOKUP(D22,Sheet2!A13:M1808,6,0) -> 3442.2 | R22: H
A26: CLBS = Closing Basis *** | F26: Reinitiated $
A27: Dividend adjusted <> | F27: Revised stoploss #
A28: Part book {}
A29: Master Trade High Risk
A30: Sr.no | B30: Date | D30: Company | E30: Rec | F30: Rec Price | G30: Stop Loss | H30: Call Closed At | I30: Target | J30: Remark | K30: Profit / Loss per share | L30: Gain / Loss per Lot | M30: Lot | N30: Status | O30: Closed Date
A31: 1 | B31: 2018-12-28 | D31: INFY JAN FUT | E31: Buy | F31: 660.5 | G31: 643 | H31: 668.5 | I31: 690 | J31: Profit of Rs. 8.50 /- | K31: =H31-F31 -> 8 | L31: =M31*8.5 -> 10200 | M31: 1200 | N31: Successful | O31: 2019-01-01 | R31: H
D32: INFY JAN 680 CE | E32: Sell | F32: 21 | H32: 20.5 | K32: =F32-H32 -> 0.5 | R32: H
A33: 2 | B33: 2019-01-02 | D33: NIFTY JAN FUT | E33: Buy | F33: 10885 | G33: 10740 | H33: 10740 | I33: 11100 | J33: Loss of Rs.112/- | K33: =H33-F33 -> -145 | L33: =-M33*112 -> -8400 | M33: 75 | N33: UnSuccessful | O33: 2019-01-03 | R33: H
D34: Nifty JAN 11100 CE | E34: Sell | F34: 83 | H34: 50 | K34: =F34-H34 -> 33 | R34: H
A47: Master Trade Medium Risk
A48: Sr.no | B48: Date | D48: Company | E48: Rec | F48: Rec Price | G48: Stop Loss | H48: Call Closed At | I48: Target | J48: Remark | K48: Profit/ Loss per lot | L48: Gain / Loss per Lot | M48: Lot | N48: Status | O48: Closed Date
A49: 1 | B49: 2019-01-09 | D49: NIFTY JAN 10700 PE | E49: Buy | F49: 118 | G49: 80 | H49: 80 | I49: 200 | J49: Loss of Rs.38/- | K49: =H49-F49 -> -38 | L49: =M49*K49 -> -2850 | M49: 75 | N49: UnSuccessful | O49: 2019-01-11 | R49: A
A50: 2 | B50: 2019-01-16 | D50: IDFCFIRSTB JAN 46 PE | E50: Buy | F50: 0.35 | H50: 0.6 | I50: 1-1.20 | J50: Profit of Rs.0.25/- | K50: 0.25 | L50: 3000 | M50: 12000 | N50: Successful | O50: 2019-01-17 | R50: R
A51: 3 | B51: 2019-01-17 | D51: BANKNIFTY 17-JAN 27600 CE | E51: Buy | F51: 18 | G51: 0 | H51: 0 | I51: 50 | J51: Loss of Rs.18/- | K51: =H51-F51 -> -18 | L51: -360 | M51: 20 | N51: UnSuccessful | O51: 2019-01-17 | R51: A
A52: 4 | B52: 2019-01-17 | D52: HDFCBANK 2120 JAN CE | E52: Buy | F52: 36 | G52: 17 | H52: 42.5 | I52: 60-70 | J52: Profit of Rs.6.50/- | K52: =H52-F52 -> 6.5 | L52: 1625 | M52: 250 | N52: Successful | O52: 2019-01-17 | R52: H
A53: 5 | B53: 2019-01-18 | D53: HDFCBANK 2120 JAN CE | E53: Buy | F53: 34 | G53: 17 | H53: 40.5 | I53: 55-60 | J53: Profit of Rs.6.50/- | K53: =H53-F53 -> 6.5 | L53: 1625 | M53: 250 | N53: Successful | O53: 2019-01-18 | R53: H
A54: 6 | B54: 2019-01-21 | D54: ACC 1440 JAN PE | E54: Buy | F54: 26 | G54: 14 | H54: 32.5 | I54: 40-50 | J54: Profit of Rs.6.50/- | K54: =H54-F54 -> 6.5 | L54: 2600 | M54: 400 | N54: Successful | O54: 2019-01-21 | R54: H
A55: 7 | B55: 2019-01-21 | D55: TATASTEEL 480 JAN CE | E55: Buy | F55: 9.5 | G55: 4.5 | H55: 5.5 | I55: 17-20 | J55: Loss of Rs.4/- | K55: -4 | L55: =M55*K55 -> -4244 | M55: 1061 | N55: UnSuccessful | O55: 2019-01-22 | R55: H
A56: 8 | B56: 2019-01-22 | D56: NIFTY 10900 CE JAN | E56: Buy | F56: 105 | G56: 70 | H56: 123.5 | I56: 160-170 | J56: Profit of Rs.18.50/- | K56: =H56-F56 -> 18.5 | L56: 1387.5 | M56: 75 | N56: Successful | O56: 2019-01-22 | R56: R
A57: 9 | B57: 2019-01-23 | D57: LT 1320 JAN CE | E57: Buy | F57: 19 | G57: 8 | H57: 24.5 | I57: 35-40 | J57: Profit of Rs.5.5/- | K57: =H57-F57 -> 5.5 | L57: =M57*K57 -> 2062.5 | M57: 375 | N57: Successful | O57: 2019-01-25 | R57: H
A58: 10 | B58: 2019-01-23 | D58: NIFTY 10900 CE JAN | E58: Buy | F58: 102.5 | G58: 78 | H58: 78 | I58: 150 | J58: Loss of Rs.24.5/- | K58: =H58-F58 -> -24.5 | L58: =M58*K58 -> -1837.5 | M58: 75 | N58: UnSuccessful | O58: 2019-01-23 | R58: R
A59: 11 | B59: 2019-01-24 | D59: NIFTY 10900 CE JAN | E59: Buy | F59: 66.5 | G59: 40 | H59: 77 | I59: 130 | J59: Profit of Rs.10.50/- | K59: 10.5 | L59: 787.5 | M59: 75 | N59: Successful | O59: 2019-01-24 | R59: H
A60: 12 | B60: 2019-01-24 | D60: NIFTY 10850 CE JAN | E60: Buy | F60: 92.5 | G60: 68 | H60: 104 | I60: 140 | J60: Profit of Rs.11.50/- | K60: =H60-F60 -> 11.5 | L60: =M60*K60 -> 862.5 | M60: 75 | N60: Successful | O60: 2019-01-24 | R60: H
A61: 13 | B61: 2019-01-25 | D61: NIFTY 10800 CE JAN | E61: Buy | F61: 105.5 | G61: 70 | H61: 70 | I61: 160 | J61: Loss of Rs.35.50/- | K61: -35.5 | L61: -2662.5 | M61: 75 | N61: UnSuccessful | O61: 2019-01-25 | R61: R
A62: 14 | B62: 2019-01-28 | D62: BAJFINANCE 2650 JAN CE | E62: Buy | F62: 48.5 | G62: 18 | H62: 29 | I62: 80 | J62: Loss of Rs.19.50/- | K62: =H62-F62 -> -19.5 | L62: =M62*K62 -> -4875 | M62: 250 | N62: UnSuccessful | O62: 2019-01-28 | R62: H
A63: 15 | B63: 2019-01-28 | D63: NIFTY 10700 CE JAN | E63: Buy | F63: 103 | G63: 58 | H63: 58 | I63: 190 | J63: Loss of Rs.45/- | K63: -45 | L63: -3375 | M63: 75 | N63: UnSuccessful | O63: 2019-01-28 | R63: R
A64: 16 | B64: 2019-01-30 | D64: NIFTY JAN 10700 CE | E64: Buy | F64: 36-38 | I64: 100 | J64: Open | R64: H
B67: Smart Delivery Trade
A68: Sr.no | B68: Date | D68: Company | E68: Rec | F68: Rec Price | G68: Stop Loss*** | H68: Call Closed At | I68: Target | J68: Remark | K68: Profit / Loss per Share | L68: Gain / Loss % | M68: Status | N68: Closed Date | O68: NSE Closed Price
A69: 1 | B69: 2018-12-20 | D69: AUROPHARMA | E69: Buy | F69: 732.5 | G69: 709.3 | H69: 752 | I69: 775-785 | J69: Profit of Rs.19.5/- | K69: =H69-F69 -> 19.5 | L69: =K69/F69 -> 2.66% | M69: Successful | N69: 2019-01-08 | R69: R
A70: 2 | B70: 2018-12-27 | D70: HCLTECH | E70: Buy | F70: 946 | G70: 918 | H70: 972 | I70: 1000 | J70: Profit of Rs.26/- | K70: =H70-F70 -> 26 | L70: =K70/F70 -> 2.75% | M70: Successful | N70: 2019-01-21 | R70: H
A71: 3 | B71: 2018-12-28 | D71: JUBLFOOD | E71: Buy | F71: 1244 | G71: 1204 | H71: 1192.5 | I71: 1300-1320 | J71: Loss of Rs.51.5/- | K71: -51.5 | L71: -4.14% | M71: UnSuccessful | N71: 2019-01-21 | R71: R
A72: 4 | B72: 2019-01-01 | D72: DLF | E72: Buy | F72: 181 | G72: 174.7 | H72: 173.5 | I72: 192-194 | J72: Loss of Rs.7.5/- | K72: =H72-F72 -> -7.5 | L72: =K72/F72 -> -4.14% | M72: UnSuccessful | N72: 2019-01-02 | R72: R
A73: 5 | B73: 2019-01-02 | D73: MCDOWELL-N | E73: Buy | F73: 622.5 | G73: 603 | H73: 603 | I73: 650-660 | J73: Loss of Rs.19.5/- | K73: =H73-F73 -> -19.5 | L73: =K73/F73 -> -3.13% | M73: UnSuccessful | N73: 2019-01-08 | R73: R
A74: 6 | B74: 2019-01-02 | D74: PIDILITIND | E74: Buy | F74: 1102.5 | G74: 1068.7 | H74: 1128 | I74: 1165-1175 | J74: Profit of Rs.25.5/- | K74: 25.5 | L74: 2.31% | M74: Successful | N74: 2019-01-08 | R74: R
A75: 7 | B75: 2019-01-03 | D75: DABUR | E75: Buy | F75: 420.5 | G75: 407.7 | H75: 431 | I75: 444-448 | J75: Profit of Rs.10.50/- | K75: =H75-F75 -> 10.5 | L75: =K75/F75 -> 2.50% | M75: Successful | N75: 2019-01-14 | R75: R
A76: 8 | B76: 2019-01-04 | D76: RELIANCE | E76: Buy | F76: 1092.5 | G76: 1058.8 | H76: 1120 | I76: 1150-1160 | J76: Profit of Rs.27.50/- | K76: =H76-F76 -> 27.5 | L76: =K76/F76 -> 2.52% | M76: Successful | N76: 2019-01-15 | R76: R
A77: 9 | B77: 2019-01-04 | D77: ADANIPORTS | E77: Buy | F77: 379 | G77: 369 | H77: 388.5 | I77: 400 | J77: Profit of Rs.9.50/- | K77: =H77-F77 -> 9.5 | L77: =K77/F77 -> 2.51% | M77: Successful | N77: 2019-01-16 | R77: H
A78: 10 | B78: 2019-01-08 | D78: VGUARD | E78: Buy | F78: 207-208 | G78: 200.7 | I78: 220-223 | J78: Open | O78: =VLOOKUP(D78,Sheet2!A12:N1637,6,0) -> 206.8 | R78: R
A79: 11 | B79: 2019-01-18 | D79: SBIN | E79: Sell | F79: 298.5 | G79: 310 | H79: 290.5 | I79: 285-280 | J79: Profit of Rs.8/- | K79: =F79-H79 -> 8 | L79: =K79/F79 -> 2.68% | M79: Successful | N79: 2019-01-22 | R79: H
A80: 12 | B80: 2019-01-22 | D80: BAJFINANCE | E80: Buy | F80: 2580 | G80: 2490 | H80: 2652.5 | I80: 2700-2750 | J80: Profit of Rs.72.5/- | K80: =H80-F80 -> 72.5 | L80: =K80/F80 -> 2.81% | M80: Successful | N80: 2019-01-23 | R80: H
A81: 13 | B81: 2019-01-25 | D81: ENGINERSIN | E81: Buy | F81: 119 | G81: 113.8 | H81: 113 | I81: 122-124 | J81: Loss of Rs.6/- | K81: -6 | L81: -5.04% | M81: UnSuccessful | N81: 2019-01-25 | R81: R
A82: 14 | B82: 2019-01-25 | D82: JSWSTEEL | E82: Buy | F82: 281 | G82: 272 | H82: 270 | I82: 295-300 | J82: Loss of Rs.11/- | K82: -11 | L82: -3.91% | M82: UnSuccessful | N82: 2019-01-28 | R82: R
A83: 15 | B83: 2019-01-25 | D83: RADICO | E83: Buy | F83: 437.5 | G83: 419 | H83: 423 | I83: 470-480 | J83: Loss of Rs.14.50/- | K83: =H83-F83 -> -14.5 | L83: =K83/F83 -> -3.31% | M83: UnSuccessful | N83: 2019-01-25 | R83: H
A84: 16 | B84: 2019-01-25 | D84: ASIANPAINT | E84: Sell | F84: 1395 | G84: 1444.4 | H84: 1352.5 | I84: 1330-1320 | J84: Profit of Rs.42.50/- | K84: =F84-H84 -> 42.5 | L84: =K84/F84 -> 3.05% | M84: Successful | N84: 2019-01-25 | R84: R
A85: 17 | B85: 2019-01-25 | D85: GAIL | E85: Buy | F85: 334 | G85: 322.7 | H85: 321 | I85: 350-355 | J85: Loss of Rs.13/- | K85: =H85-F85 -> -13 | L85: -3.89% | M85: UnSuccessful | N85: 2019-01-29 | R85: R
A86: 18 | B86: 2019-01-29 | D86: UNIONBANK | E86: Buy | F86: 80-81 | G86: 77 | I86: 87-88 | J86: Open | R86: H
A89: CLBS = Closing Basis *** | F89: Reinitiated $
A90: Dividend adjusted <> | F90: Revised stoploss #
B93: Momentum Call
A94: Sr.no | B94: Date | D94: Company | E94: Rec | F94: Rec Price | G94: Stop Loss | H94: Call Closed At | I94: Target | J94: Remark | K94: Profit / Loss per Share/Lot | L94: Gain / Loss % | M94: Gain / Loss per Lot | N94: Lot | O94: Status | P94: Closed Date
A95: 1 | B95: 2018-12-31 | D95: DRREDDY JAN FUT | E95: Buy | F95: 2662.5 | G95: 2620 | H95: 2615 | I95: 2750 | J95: Loss of Rs.47.5/- | K95: =H95-F95 -> -47.5 | M95: =N95*K95 -> -11875 | N95: 250 | O95: UnSuccessful | P95: 2019-01-02 | R95: R
A96: 2 | B96: 2018-12-31 | D96: COLPAL JAN FUT | E96: Sell | F96: 1333 | G96: 1353 | H96: 1325.5 | I96: 1300 | J96: Profit of Rs.7.5/- | K96: =F96-H96 -> 7.5 | M96: =N96*K96 -> 5250 | N96: 700 | O96: Successful | P96: 2019-01-01 | R96: H
A97: 3 | B97: 2018-12-31 | D97: SUNTV | E97: Buy | F97: 612.5 | G97: 594 | H97: 590.5 | I97: 635-645 | J97: Loss of Rs 22/- | K97: =H97-F97 -> -22 | L97: =K97/F97 -> -3.59% | O97: UnSuccessful | P97: 2019-01-03 | R97: H
A98: 4 | B98: 2019-01-01 | D98: TATACHEM JAN FUT | E98: Buy | F98: 709 | G98: 693 | H98: 698.5 | I98: 740 | J98: Loss of Rs.10.50/- | K98: =H98-F98 -> -10.5 | M98: =N98*K98 -> -7875 | N98: 750 | O98: UnSuccessful | P98: 2019-01-15 | R98: N
A99: 5 | B99: 2019-01-02 | D99: TCS JAN FUT | E99: Buy | F99: 1920 | G99: 1875 | H99: 1946.5 | I99: 2000 | J99: Profit of Rs.26.5/- | K99: =H99-F99 -> 26.5 | M99: =N99*K99 -> 6625 | N99: 250 | O99: Successful | P99: 2019-01-03 | R99: H
A100: 6 | B100: 2019-01-02 | D100: AMBUJACEM JAN FUT | E100: Buy | F100: 222 | G100: 217 | H100: 217 | I100: 232 | J100: Loss of Rs.5/- | K100: -5 | M100: -12500 | N100: 2500 | O100: UnSuccessful | P100: 2019-01-03 | R100: N
A101: 7 | B101: 2019-01-02 | D101: IOC | E101: Buy | F101: 137.5 | G101: 134 | H101: 134 | I101: 143-145 | J101: Loss of Rs 3.5/- | K101: -3.5 | L101: =K101/F101 -> -2.55% | O101: UnSuccessful | P101: 2019-01-03 | R101: H
A102: 8 | B102: 2019-01-03 | D102: ADANIPORTS JAN FUT | E102: Buy | F102: 384.5 | G102: 379 | H102: 380.5 | I102: 395 | J102: Loss of Rs.4/- | K102: -4 | M102: =N102*K102 -> -10000 | N102: 2500 | O102: UnSuccessful | P102: 2019-01-03 | R102: H
A103: 9 | B103: 2019-01-04 | D103: EXIDEIND JAN FUT | E103: Buy | F103: 260 | G103: 254 | H103: 263.5 | I103: 270 | J103: Profit of Rs.3.5/- | K103: 3.5 | M103: 7000 | N103: 2000 | O103: Successful | P103: 2019-01-07 | R103: N
A104: 10 | B104: 2019-01-04 | D104: VIPIND | E104: Buy | F104: 514.5 | G104: 508.7 | H104: 523.5 | I104: 525 | J104: Profit of Rs.9/- | K104: 9 | L104: =K104/F104 -> 1.75% | O104: Successful | P104: 2019-01-04 | R104: R
A105: 11 | B105: 2019-01-07 | D105: BHARTIARTL JAN FUT | E105: Buy | F105: 326 | G105: 319 | H105: 330.5 | I105: 340 | J105: Profit of Rs.4.5/- | K105: =H105-F105 -> 4.5 | M105: =N105*K105 -> 7650 | N105: 1700 | O105: Successful | P105: 2019-01-08 | R105: N
A106: 12 | B106: 2019-01-07 | D106: AJANTPHARM JAN FUT | E106: Buy | F106: 1142.5 | G106: 1118 | H106: 1159 | I106: 1190 | J106: Profit of Rs.16.5/- | K106: =H106-F106 -> 16.5 | M106: =N106*K106 -> 8250 | N106: 500 | O106: Successful | P106: 2019-01-07 | R106: N
A107: 13 | B107: 2019-01-08 | D107: CESC JAN FUT | E107: Sell | F107: 657.5 | G107: 680 | H107: 680 | I107: 625 | J107: Loss of Rs 22.5/- | K107: =F107-H107 -> -22.5 | M107: =N107*K107 -> -12375 | N107: 550 | O107: UnSuccessful | P107: 2019-01-11 | R107: N
A108: 14 | B108: 2019-01-08 | D108: UBL JAN FUT | E108: Buy | F108: 1394 | G108: 1377 | H108: 1406 | I108: 1430 | J108: Profit of Rs.12/- | K108: =H108-F108 -> 12 | M108: =N108*K108 -> 8400 | N108: 700 | O108: Successful | P108: 2019-01-08 | R108: N
A109: 15 | B109: 2019-01-08 | D109: UPL JAN FUT | E109: Buy | F109: 755.5 | G109: 746 | H109: 761.5 | I109: 775 | J109: Profit of Rs.6/- | K109: =H109-F109 -> 6 | M109: =N109*K109 -> 7200 | N109: 1200 | O109: Successful | P109: 2019-01-09 | R109: N
A110: 16 | B110: 2019-01-08 | D110: IRB JAN FUT | E110: Sell | F110: 161.5 | G110: 165 | H110: 158.5 | I110: 154 | J110: Profit of Rs.3/- | K110: =F110-H110 -> 3 | M110: 9600 | N110: 3200 | O110: Successful | P110: 2019-01-09 | R110: N
A111: 17 | B111: 2019-01-09 | D111: APOLLOHOSP JAN FUT | E111: Buy | F111: 1260 | G111: 1235 | H111: 1275 | I111: 1300 | J111: Profit of Rs.15/- | K111: =H111-F111 -> 15 | M111: =N111*K111 -> 7500 | N111: 500 | O111: Successful | P111: 2019-01-09 | R111: N
A112: 18 | B112: 2019-01-09 | D112: UJJIVAN | E112: Buy | F112: 289 | G112: 280 | H112: 295.5 | I112: 310 | J112: Profit of Rs.6.15/- | K112: 6.5 | L112: =K112/F112 -> 2.25% | O112: Successful | P112: 2019-01-15 | R112: R
A113: 19 | B113: 2019-01-09 | D113: EXIDEIND JAN FUT | E113: Buy | F113: 262 | G113: 256 | H113: 256 | I113: 273 | J113: Loss of Rs.6/- | K113: =H113-F113 -> -6 | M113: =N113*K113 -> -12000 | N113: 2000 | O113: UnSuccessful | P113: 2019-12-14 | R113: N
A114: 20 | B114: 2019-01-09 | D114: GODREJIND JAN FUT | E114: Buy | F114: 537 | G114: 529 | H114: 542.5 | I114: 550 | J114: Profit of Rs.5.5/- | K114: =H114-F114 -> 5.5 | M114: =N114*K114 -> 8250 | N114: 1500 | O114: Successful | P114: 2019-01-10 | R114: N
A115: 21 | B115: 2019-01-10 | D115: RAYMOND JAN FUT | E115: Buy | F115: 812 | G115: 796 | H115: 824 | I115: 835 | J115: Profit of Rs.12/- | K115: =H115-F115 -> 12 | M115: =N115*K115 -> 9600 | N115: 800 | O115: Successful | P115: 2019-01-11 | R115: N
A116: 22 | B116: 2019-01-14 | D116: APOLLOHOSP JAN FUT | E116: Buy | F116: 1296 | G116: 1268 | H116: 1314 | I116: 1340 | J116: Profit of Rs.18/- | K116: =H116-F116 -> 18 | M116: =N116*K116 -> 9000 | N116: 500 | O116: Successful | P116: 2019-01-14 | R116: R
A117: 23 | B117: 2019-01-14 | D117: UBL JAN FUT | E117: Buy | F117: 1378 | G117: 1363 | H117: 1392 | I117: 1420 | J117: Profit of Rs.14/- | K117: =H117-F117 -> 14 | M117: =N117*K117 -> 9800 | N117: 700 | O117: Successful | P117: 2019-01-14 | R117: N
A118: 24 | B118: 2019-01-14 | D118: ICICIBANK | E118: Buy | F118: 374 | G118: 364 | H118: 364 | I118: 390-395 | J118: Loss of Rs 10/- | K118: -10 | L118: =K118/F118 -> -2.67% | O118: UnSuccessful | P118: 2019-01-24 | R118: R
A119: 25 | B119: 2019-01-14 | D119: UPL JAN FUT | E119: Buy | F119: 773 | G119: 763 | H119: 781.5 | I119: 790 | J119: Profit of Rs.8.50/- | K119: =H119-F119 -> 8.5 | M119: =N119*K119 -> 10200 | N119: 1200 | O119: Successful | P119: 2019-01-15 | R119: N
A120: 26 | B120: 2019-01-15 | D120: BIOCON JAN FUT | E120: Buy | F120: 649 | G120: 636 | H120: 657.5 | I120: 670 | J120: Profit of Rs.8.50/- | K120: =H120-F120 -> 8.5 | M120: =N120*K120 -> 7650 | N120: 900 | O120: Successful | P120: 2019-01-17 | R120: N
A121: 27 | B121: 2019-01-15 | D121: TORNTPHARM JAN FUT | E121: Buy | F121: 1890 | G121: 1867 | H121: 1908 | I121: 1940 | J121: Profit of Rs.18/- | K121: =H121-F121 -> 18 | M121: =N121*K121 -> 9000 | N121: 500 | O121: Successful | P121: 2019-01-15 | R121: N
A122: 28 | B122: 2019-01-15 | D122: NIITTECH JAN FUT | E122: Sell | F122: 1192 | G122: 1208 | H122: 1208 | I122: 1160 | J122: Loss of Rs 16/- | K122: =F122-H122 -> -16 | M122: =N122*K122 -> -12000 | N122: 750 | O122: UnSuccessful | P122: 2019-01-16 | R122: R
A123: 29 | B123: 2019-01-15 | D123: ESCORTS JAN FUT | E123: Sell | F123: 759 | G123: 771 | H123: 752.5 | I123: 740 | J123: Profit of Rs.6.5/- | K123: =F123-H123 -> 6.5 | M123: =N123*K123 -> 7150 | N123: 1100 | O123: Successful | P123: 2019-01-16 | R123: R
A124: 30 | B124: 2019-01-16 | D124: TORNTPOWER JAN FUT | E124: Buy | F124: 269.5 | G124: 265 | H124: 266 | I124: 278 | J124: Loss of Rs.3.5/- | K124: =H124-F124 -> -3.5 | M124: =N124*K124 -> -10500 | N124: 3000 | O124: UnSuccessful | P124: 2019-01-16 | R124: N
A125: 31 | B125: 2019-01-16 | D125: SRTRANSFIN JAN FUT | E125: Buy | F125: 1202 | G125: 1179 | H125: 1179 | I125: 1240 | J125: Loss of Rs.23/- | K125: =H125-F125 -> -23 | M125: =N125*K125 -> -13800 | N125: 600 | O125: UnSuccessful | P125: 2019-01-17 | R125: R
A126: 32 | B126: 2019-01-17 | D126: EXIDEIND JAN FUT | E126: Buy | F126: 252.5 | G126: 246.5 | H126: 246.5 | I126: 262 | J126: Loss of Rs.6/- | K126: -6 | M126: -12000 | N126: 2000 | O126: UnSuccessful | P126: 2019-01-21 | R126: N
A127: 33 | B127: 2019-01-17 | D127: ZEEL | E127: Buy | F127: 447.5 | G127: 434 | H127: 432 | I127: 465-470 | J127: Loss of Rs 15.5/- | K127: -15.5 | L127: =K127/F127 -> -3.46% | O127: UnSuccessful | P127: 2019-01-22 | R127: H
A128: 34 | B128: 2019-01-18 | D128: RAYMOND JAN FUT | E128: Buy | F128: 810 | G128: 795 | H128: 801.5 | I128: 835 | J128: Loss of Rs.8.5/- | K128: =H128-F128 -> -8.5 | M128: =N128*K128 -> -6800 | N128: 800 | O128: UnSuccessful | P128: 2019-01-21 | R128: N
A129: 35 | B129: 2019-01-18 | D129: RECLTD JAN FUT | E129: Sell | F129: 127.5 | G129: 130.3 | H129: 126 | I129: 122-120 | J129: Profit of Rs.1.50/- | K129: =F129-H129 -> 1.5 | M129: =N129*K129 -> 9000 | N129: 6000 | O129: Successful | P129: 2019-01-18 | R129: H
A130: 36 | B130: 2019-01-18 | D130: BFUTILITIE | E130: Buy | F130: 225 | G130: 218.3 | H130: 215 | I130: 236-240 | J130: Loss of Rs 10/- | K130: =H130-F130 -> -10 | L130: =K130/F130 -> -4.44% | O130: UnSuccessful | P130: 2019-01-18 | R130: R
A131: 37 | B131: 2019-01-18 | D131: NIFTY JAN FUT | E131: Buy | F131: 10885 | G131: 10830 | H131: 10935 | I131: 10970-11000 | J131: Profit of Rs.50/- | K131: =H131-F131 -> 50 | M131: =N131*K131 -> 3750 | N131: 75 | O131: Successful | P131: 2019-01-18 | R131: R
A132: 38 | B132: 2019-01-21 | D132: LT JAN FUT | E132: Buy | F132: 1302.5 | G132: 1285 | H132: 1330 | I132: 1350-1360 | J132: Profit of Rs.27.50/- | K132: 27.5 | M132: 10312.5 | N132: 375 | O132: Successful | P132: 2019-01-21 | R132: H
A133: 39 | B133: 2019-01-21 | D133: JUBLFOOD JAN FUT | E133: Buy | F133: 1222.5 | G133: 1200 | H133: 1200 | I133: 1260-1270 | J133: Loss of Rs.22.5/- | K133: -22.5 | M133: -11250 | N133: 500 | O133: UnSuccessful | P133: 2019-01-21 | R133: N
A134: 40 | B134: 2019-01-21 | D134: NIFTY JAN FUT | E134: Sell | F134: 10985 | G134: 11060 | H134: 10935 | I134: 10850-10880 | J134: Profit of Rs.50/- | K134: =F134-H134 -> 50 | M134: 3750 | N134: 75 | O134: Successful | P134: 2019-01-22 | R134: R
A135: 41 | B135: 2019-01-22 | D135: BATAINDIA JAN FUT | E135: Buy | F135: 1153.5 | G135: 1135 | H135: 1166.5 | I135: 1190-1200 | J135: Profit of Rs.13/- | K135: =H135-F135 -> 13 | M135: 7150 | N135: 550 | O135: Successful | P135: 2019-01-23 | R135: R
A136: 42 | B136: 2019-01-22 | D136: TITAN JAN FUT | E136: Buy | F136: 968 | G136: 952 | H136: 978 | I136: 995 | J136: Profit of Rs.10/- | K136: =H136-F136 -> 10 | M136: =N136*K136 -> 7500 | N136: 750 | O136: Successful | P136: 2019-01-22 | R136: N
A137: 43 | B137: 2019-01-22 | D137: RBLBANK JAN FUT | E137: Buy | F137: 583.5 | G137: 573.5 | H137: 573.5 | I137: 605 | J137: Loss of Rs.10/- | K137: -10 | M137: -12000 | N137: 1200 | O137: UnSuccessful | P137: 2019-01-22 | R137: N
A138: 44 | B138: 2019-01-22 | D138: AMBUJACEM JAN FUT | E138: Buy | F138: 213.5 | G138: 208 | H138: 208.5 | I138: 225 | J138: Loss of Rs.5/- | K138: =H138-F138 -> -5 | M138: =N138*K138 -> -12500 | N138: 2500 | O138: UnSuccessful | P138: 2019-01-25 | R138: N
A139: 45 | B139: 2019-01-22 | D139: ACC JAN FUT | E139: Buy | F139: 1440 | G139: 1415 | H139: 1415 | I139: 1480-1500 | J139: Loss of Rs.25/- | K139: -25 | M139: -10000 | N139: 400 | O139: UnSuccessful | P139: 2019-01-25 | R139: H
A140: 46 | B140: 2019-01-23 | D140: SBIN JAN FUT | E140: Buy | F140: 292 | G140: 288 | H140: 288 | I140: 300 | J140: Loss of Rs.4/- | K140: =H140-F140 -> -4 | M140: =N140*K140 -> -12000 | N140: 3000 | O140: UnSuccessful | P140: 2019-01-23 | R140: H
A141: 47 | B141: 2019-01-23 | D141: ESCORTS JAN FUT | E141: Buy | F141: 728 | G141: 718 | H141: 736.5 | I141: 745 | J141: Profit of Rs.8.5/- | K141: 8.5 | M141: 9350 | N141: 1100 | O141: Successful | P141: 2019-01-23 | R141: R
A142: 48 | B142: 2019-01-23 | D142: AJANTPHARM JAN FUT | E142: Buy | F142: 1168.5 | G142: 1145 | H142: 1145 | I142: 1220 | J142: Loss of Rs.23.5/- | K142: -23.5 | M142: -11750 | N142: 500 | O142: UnSuccessful | P142: 2019-01-25 | R142: N
A143: 49 | B143: 2019-01-24 | D143: HDFC JAN FUT | E143: Buy | F143: 1956 | G143: 1935 | H143: 1969 | I143: 2000 | J143: Profit of Rs.13/- | K143: =H143-F143 -> 13 | M143: =N143*K143 -> 6500 | N143: 500 | O143: Successful | P143: 2019-01-24 | R143: H
A144: 50 | B144: 2019-01-25 | D144: HDFC JAN FUT | E144: Buy | F144: 1972.5 | G144: 1945 | H144: 1990 | I144: 2020 | J144: Profit of Rs.17.5/- | K144: =H144-F144 -> 17.5 | M144: =N144*K144 -> 8750 | N144: 500 | O144: Successful | P144: 2019-01-25 | R144: H
A145: 51 | B145: 2019-01-25 | D145: AXISBANK JAN FUT | E145: Sell | F145: 673 | G145: 684 | H145: 666.5 | I145: 650 | J145: Profit of Rs.6.50/- | K145: =F145-H145 -> 6.5 | M145: 7800 | N145: 1200 | O145: Successful | P145: 2019-01-25 | R145: R
A146: 52 | B146: 2019-01-25 | D146: HDFC JAN FUT | E146: Buy | F146: 1972.5 | G146: 1945 | H146: 1950 | I146: 2020 | J146: Loss of Rs.22.5/- | K146: =H146-F146 -> -22.5 | M146: -11250 | N146: 500 | O146: UnSuccessful | P146: 2019-01-28 | R146: H
A147: 53 | B147: 2019-01-28 | D147: TATACHEM JAN FUT | E147: Buy | F147: 683 | G147: 668 | H147: 668 | I147: 710 | J147: Loss of Rs.15/- | K147: =H147-F147 -> -15 | M147: =N147*K147 -> -11250 | N147: 750 | O147: UnSuccessful | P147: 2019-01-28 | R147: N
A148: 54 | B148: 2019-01-29 | D148: TITAN JAN FUT | E148: Buy | F148: 962 | G148: 946 | H148: 973 | I148: 990 | J148: Profit of Rs.11/- | K148: =H148-F148 -> 11 | M148: 8250 | N148: 750 | O148: Successful | P148: 2019-01-30 | R148: N
A149: 55 | B149: 2019-01-29 | D149: ASIANPAINT JAN FUT | E149: Sell | F149: 1394 | G149: 1415 | H149: 1381 | I149: 1360 | J149: Profit of Rs.13/- | K149: =F149-H149 -> 13 | M149: 7800 | N149: 600 | O149: Successful | P149: 2019-01-30 | R149: R
A150: 56 | B150: 2019-01-29 | D150: KOTAKBANK JAN FUT | E150: Buy | F150: 1266 | G150: 1252 | H150: 1248.5 | I150: 1290-1300 | J150: Loss of Rs.17.5/- | K150: =H150-F150 -> -17.5 | M150: =N150*K150 -> -14000 | N150: 800 | O150: UnSuccessful | P150: 2019-01-30 | R150: R
A151: 57 | B151: 2019-01-30 | D151: BIOCON FEB FUT | E151: Buy | F151: 649-651 | G151: 638 | I151: 675 | J151: Open | R151: N
A152: 58 | B152: 2019-01-30 | D152: HINDUNILVR FEB FUT | E152: Buy | F152: 1759 | G152: 1740 | H152: 1740 | I152: 1800 | J152: Loss of Rs.19/- | K152: =H152-F152 -> -19 | M152: =N152*K152 -> -11400 | N152: 600 | O152: UnSuccessful | P152: 2019-01-30 | R152: H
A153: 59 | B153: 2019-01-30 | D153: AMARAJABAT FEB FUT | E153: Buy | F153: 750-753 | G153: 735 | I153: 780 | J153: Open | R153: H
A154: 60 | B154: 2019-01-30 | D154: RAYMOND FEB FUT | E154: Buy | F154: 759-761 | G154: 745 | I154: 790 | J154: Open | R154: N
A159: CLBS = Closing Basis ***
A160: Dividend adjusted <> | F160: Reinitiated $
F161: Revised stoploss #
B162: Quick Pick Intraday
A163: Sr.no | B163: Date | D163: Company | E163: Rec | F163: Rec Price | G163: Stop Loss*** | H163: Call Closed At | I163: Target | J163: Remark | K163: Profit / Loss per Share | L163: Status | M163: Closed Date
A177: Techno -Funda (positional)
A178: Sr.no | B178: Date | D178: Company | E178: Rec | F178: Rec Price | G178: Stop Loss*** | H178: Call Closed At | I178: Target | J178: Remark | K178: Profit / Loss per Share | L178: Gain / Loss % | M178: Status | N178: Closed Date | O178: NSE Closed Price
A181: CLBS = Closing Basis *** | F181: Reinitiated $
A182: Dividend adjusted <> | F182: Revised stoploss #
B187: Investment Idea
A188: Sr.no | B188: Date | D188: Company | E188: Rec | F188: Rec Price | G188: Point of Review | H188: Close Rate | I188: Target | J188: Remark | K188: Profit / Loss per Share | L188: Gain / Loss % | M188: Status | N188: Closed Date
A189: 1 | B189: 2013-11-01 | D189: L&T Finance Holding | E189: Accu | F189: 82.00 | G189: - | H189: 100 | I189: 100.00 | J189: Target Achieved | K189: =H189-F189 -> 18.00 | L189: =K189/F189 -> 21.95% | M189: Successful | N189: 2016-10-14
A190: 2 | B190: 2014-06-04 | D190: Finolex Inds | E190: Buy | F190: 257.00 | G190: - | H190: 300 | I190: 300.00 | J190: Target Achieved | K190: =H190-F190 -> 43.00 | L190: 16.73% | M190: Successful | N190: 2014-07-02
A191: =1+A190 -> 3 | B191: 2014-07-08 | D191: JK Cement | E191: Buy | F191: 393.00 | G191: - | H191: 468 | I191: 468.00 | J191: Target Achieved | K191: =H191-F191 -> 75.00 | L191: 19.08% | M191: Successful | N191: 2014-08-12
A192: 4 | B192: 2014-08-06 | D192: Finolex Cables | E192: Buy | F192: 205.00 | G192: - | H192: 275 | I192: 250.00 | J192: Target Achieved | K192: 70.00 | L192: 34.15% | M192: Successful | N192: 2014-11-19
A193: 5 | B193: 2014-09-04 | D193: Exide Inds | E193: Buy | F193: 162.00 | G193: - | H193: 190 | I193: 190.00 | J193: Target Achieved | K193: 28.00 | L193: 17.28% | M193: Successful | N193: 2015-01-02
A194: 6 | B194: 2014-09-04 | D194: Deepak Nitrite | E194: Buy | F194: 75.00 | G194: - | H194: 91.5 | I194: 95-100 | J194: Profit of Rs.16.50/- | K194: 16.50 | L194: 22.00% | M194: Successful | N194: 2014-11-11
A195: 7 | B195: 2014-10-01 | D195: Mercks | E195: Buy | F195: 850.00 | G195: - | H195: 982.5 | I195: 1050.00 | J195: Profit of Rs.132.50/- | K195: 132.50 | L195: 15.59% | M195: Successful | N195: 2015-02-04
A196: 8 | B196: 2014-10-01 | D196: Grindwell Norton | E196: Buy | F196: 475.00 | G196: - | H196: 515 | I196: 600.00 | J196: Profit of Rs.40/- | K196: 40.00 | L196: 8.42% | M196: Successful | N196: 2014-10-27
A197: 9 | B197: 2014-10-01 | D197: Snowman Logistics | E197: Buy | F197: 86.00 | G197: - | H197: 99 | I197: 140.00 | J197: Profit of Rs.13.00/- | K197: 13.00 | L197: 15.12% | M197: Successful | N197: 2014-10-27
A198: 10 | B198: 2014-10-14 | D198: Birla Corp | E198: Buy | F198: 496.60 | G198: - | H198: 621 | I198: 580.00 | J198: Target Achieved | K198: 124.40 | L198: 25.05% | M198: Successful | N198: 2016-08-23
A199: 11 | B199: 2014-10-14 | D199: Ultratech Cem | E199: Buy | F199: 2481.90 | G199: - | H199: 2840 | I199: 2870.00 | J199: Profit of Rs.358.10/- | K199: 358.10 | L199: 14.43% | M199: Successful | N199: 2015-01-13
A200: =1+A197 -> 10 | B200: 2014-10-16 | D200: Sintex Inds | E200: Buy | F200: 84.50 | G200: - | H200: 93 | I200: 110.00 | J200: Profit of Rs.8.50/- | K200: 8.50 | L200: 10.06% | M200: Successful | N200: 2014-10-27
A201: =1+A200 -> 11 | B201: 2014-10-16 | D201: HSIL | E201: Buy | F201: 401.00 | G201: - | H201: 428 | I201: 450.00 | J201: Profit of Rs.27.00/- | K201: 27.00 | L201: 6.73% | M201: Successful | N201: 2015-01-16
A202: 12 | B202: 2014-10-16 | D202: Eveready Inds | E202: Buy | F202: 101.00 | G202: - | H202: 112 | I202: 120.00 | J202: Profit of Rs.11.00/- | K202: 11.00 | L202: 10.89% | M202: Successful | N202: 2014-10-27
A203: 13 | B203: 2014-11-11 | D203: Pennar Inds | E203: Buy | F203: 59.00 | G203: - | H203: 76 | I203: 76.00 | J203: Target Achieved | K203: 17.00 | L203: 28.81% | M203: Successful | N203: 2017-10-24
A204: 14 | B204: 2014-11-11 | D204: Snowman Logistics | E204: Buy | F204: 99.00 | G204: - | H204: 120 | I204: 120.00 | J204: Profit of Rs.21/- | K204: 21.00 | L204: 21.21% | M204: Successful | N204: 2014-11-17
A205: 15 | B205: 2014-11-13 | D205: Dharamsi Morarji Chem | E205: Buy | F205: 22.00 | G205: - | H205: 33.55 | I205: 32.00 | J205: Profit of Rs 11.55/- | K205: 11.55 | L205: 52.50% | M205: Successful | N205: 2015-07-03
A206: 16 | B206: 2014-12-03 | D206: Tatachem | E206: Buy | F206: 440.00 | G206: - | H206: 520 | I206: 520.00 | J206: Profit of Rs 80.00/- | K206: 80.00 | L206: 18.18% | M206: Successful | N206: 2015-07-23
A207: 17 | B207: 2014-12-03 | D207: Advanta | E207: Buy | F207: 360.00 | G207: - | H207: 427 | I207: 425.00 | J207: Profit of Rs.67.00/- | K207: 67.00 | L207: 18.61% | M207: Successful | N207: 2015-02-23
A208: 18 | B208: 2015-01-08 | D208: GDL | E208: Buy | F208: 360.00 | G208: - | H208: 455 | I208: 420.00 | J208: Profit of Rs.95.00/- | K208: 95.00 | L208: 26.39% | M208: Successful | N208: 2015-01-20
A209: 19 | B209: 2015-01-08 | D209: NRB Bearing | E209: Buy | F209: 130.00 | H209: 175.5 | I209: 165.00 | J209: Profit of Rs 45.50/- | K209: 45.50 | L209: 35.00% | M209: Successful | N209: 2017-12-19
A210: 20 | B210: 2015-02-05 | D210: GSFC | E210: Accu | F210: 98.00 | H210: 120 | I210: 120.00 | J210: Target Achieved | K210: 22.00 | L210: 22.45% | M210: Successful | N210: 2017-01-18
A211: 21 | B211: 2015-02-05 | D211: Sundrmfast | E211: Accu | F211: 196.00 | H211: 262 | I211: 255.00 | J211: Target Achieved | K211: 66.00 | L211: 33.67% | M211: Successful | N211: 2016-08-17
A212: 22 | B212: 2015-03-04 | D212: GPPL | E212: Accu | F212: 230-240 | I212: 280-285 | J212: Open
A213: 23 | B213: 2015-03-04 | D213: ORIENTCEM | E213: Accu | F213: 185.00 | H213: 224 | I213: 220-225 | J213: Target Achieved | K213: 39.00 | L213: =K213/F213 -> 21.08% | M213: Successful | N213: 2016-10-04
A214: 24 | B214: 2015-03-27 | D214: PFS | E214: Accu | F214: 49-50 | I214: 67.00 | J214: Open
A215: 25 | B215: 2015-03-30 | D215: Walchandnagar Ind Ltd | E215: Accu | F215: 183.50 | H215: 219 | I215: 218.00 | J215: Profit of Rs.35.50/- | K215: 35.50 | L215: =K215/F215 -> 19.35% | M215: Successful | N215: 2015-04-09
A216: 26 | B216: 2015-04-20 | D216: Kalpataru Power Transmission Ltd | E216: Accu | F216: =(227+237)/2 -> 232.00 | H216: 298 | I216: 298.00 | J216: Target Achieved | K216: 66.00 | L216: 28.45% | M216: Successful | N216: 2017-03-29
A217: 27 | B217: 2015-05-04 | D217: Mastek Ltd | E217: Buy | F217: 385.00 | H217: =212.5+331 -> 543.5 | I217: 510.00 | J217: Profit of Rs 158.50/- | K217: 158.50 | L217: 41.17% | M217: Successful | N217: 2015-08-19
A218: 28 | B218: 2015-05-04 | D218: Suprajit Eng | E218: Buy | F218: 115.50 | H218: 146 | I218: 142.00 | J218: Profit of Rs 30.50/- | K218: 30.50 | L218: 26.41% | M218: Successful | N218: 2015-07-17
A219: 29 | B219: 2015-05-27 | D219: TCI | E219: Buy | F219: 237.50 | H219: 279.5 | I219: 278.00 | J219: Target Achieved | K219: 42.00 | L219: 17.68% | M219: Successful | N219: 2015-08-06
A220: 30 | B220: 2015-06-19 | D220: HSIL | E220: Accu | F220: 340.00 | H220: 448 | I220: 448.00 | J220: Target Achieved | K220: 108.00 | L220: 31.76% | M220: Successful | N220: 2017-10-10
A221: 31 | B221: 2015-07-06 | D221: Capital First | E221: Accu | F221: 390.00 | H221: 460 | I221: 460.00 | J221: Target Achieved | K221: 70.00 | L221: 17.95% | M221: Successful | N221: 2016-04-18
A222: 32 | B222: 2015-07-10 | D222: Dolphin OffShore | E222: Accu | F222: 122.5 | H222: 61.00 | I222: 172.00 | J222: Loss of Rs.61.50/- | K222: -61.50 | L222: -50.20% | M222: Unsuccessful | N222: 2018-08-21
A223: 33 | B223: 2015-08-03 | D223: Allcargo logistics | E223: Accu | F223: 297.50 | H223: 350 | I223: 360.00 | J223: Profit of Rs 52.50/- | K223: 52.50 | L223: =K223/F223 -> 17.65% | M223: Successful | N223: 2015-08-16
A224: 34 | B224: 2015-08-03 | D224: Camline Fine | E224: Accu | F224: 115.50 | H224: 149 | I224: 140.00 | J224: Profit of Rs 33.50/- | K224: 33.50 | L224: 29.00% | M224: Successful | N224: 2017-01-05
A225: 35 | B225: 2015-09-04 | D225: TCI | E225: Accu | F225: 226.00 | H225: 292 | I225: 292.00 | J225: Target Achieved | K225: 66.00 | L225: 29.20% | M225: Successful | N225: 2015-10-09
A226: 36 | B226: 2015-09-07 | D226: Kalpataru Power Transmission Ltd | E226: Accu | F226: 232.50 | H226: 312.5 | I226: 310.00 | J226: Target Achieved | K226: 80.00 | L226: 34.41% | M226: Successful | N226: 2017-03-29
A227: 37 | B227: 2015-09-21 | D227: LLOYD ELECTRIC & ENG LTD | E227: Accu | F227: 196.50 | H227: 238 | I227: 238.00 | J227: Target Achieved | K227: 41.50 | L227: 21.12% | M227: Successful | N227: 2015-10-14
A228: 38 | B228: 2015-09-24 | D228: L&T Finance Holding | E228: Accu | F228: 65.00 | H228: 82 | I228: 82.00 | J228: Target Achieved | K228: 17.00 | L228: 26.15% | M228: Successful | N228: 2016-07-27
A229: 39 | B229: 2015-10-14 | D229: KEC International ltd | E229: Accu | F229: 144.00 | H229: 182.5 | I229: 181.00 | J229: Target Achieved | K229: 38.50 | L229: 26.74% | M229: Successful | N229: 2017-03-23
A230: 40 | B230: 2015-10-14 | D230: Gruh Finance | E230: Accu | F230: 264.00 | H230: 311 | I230: 311.00 | J230: Target Achieved | K230: 47.00 | L230: 17.80% | M230: Successful | N230: 2016-08-22
A231: 41 | B231: 2015-11-10 | D231: Pidilitind | E231: Buy | F231: 549.50 | H231: 630 | I231: 630.00 | J231: Target Achieved | K231: 80.50 | L231: 14.65% | M231: Successful | N231: 2016-02-19
A232: 42 | B232: 2015-12-04 | D232: Zensar Technology | E232: Accu | F232: 1027.50 | H232: 1315 | I232: 1250.00 | J232: Target Achieved | K232: =H232-F232 -> 287.50 | L232: 27.98% | M232: Successful | N232: 2018-05-24
A233: 43 | B233: 2015-12-29 | D233: Vinati Organics Ltd | E233: Accu | F233: 465.00 | H233: 540 | I233: 540.00 | J233: Target Achieved | K233: 75.00 | L233: =K233/F233 -> 16.13% | M233: Successful | N233: 2016-06-09
A234: 44 | B234: 2016-01-11 | D234: GSFC | E234: Buy | F234: 81.00 | H234: 110 | I234: 110.00 | J234: Target Achieved | K234: 29.00 | L234: 35.80% | M234: Successful | N234: 2017-01-10
A235: 45 | B235: 2016-01-13 | D235: SSWL | E235: Buy | F235: 417.50 | H235: 547 | I235: 535.00 | J235: Target Achieved | K235: 129.50 | L235: 31.02% | M235: Successful | N235: 2016-07-27
A236: 46 | B236: 2016-02-08 | D236: Persistent System Ltd | E236: Accu | F236: 650.00 | H236: 800 | I236: 800.00 | J236: Target Achieved | K236: 150.00 | L236: 23.08% | M236: Successful | N236: 2018-02-23
A237: 47 | B237: 2016-03-04 | D237: UPL | E237: Accu | F237: 437.50 | H237: 504.5 | I237: 522.00 | J237: Profit of Rs.67/- | K237: 67.00 | L237: 15.31% | M237: Successful | N237: 2016-04-20
A238: 48 | B238: 2016-03-09 | D238: Ashoka Buildcon Ltd | E238: Accu | F238: 189.50 | H238: 218 | I238: 218.00 | J238: Target Achieved | K238: 28.50 | L238: 15.04% | M238: Successful | N238: 2017-10-26
A239: 49 | B239: 2016-04-11 | D239: PTC INDIA FIN SERV LTD | E239: Accu | F239: 36-37 | I239: 60.00 | J239: Open
A240: 50 | B240: 2016-04-12 | D240: CAMLINFINE $ | E240: Accu | F240: 93.00 | H240: 149 | I240: 140.00 | J240: Profit of Rs 56/- | K240: 56.00 | L240: =K240/F240 -> 60.22% | M240: Successful | N240: 2017-01-05
A241: 51 | B241: 2016-04-12 | D241: Greaves Cotton Ltd. | E241: Accu | F241: 130.00 | H241: 150 | I241: 150-155 | J241: Target Achieved | K241: 20.00 | L241: 15.38% | M241: Successful | N241: 2016-07-13
A242: 52 | B242: 2016-04-13 | D242: DHFL | E242: Accu | F242: 196.00 | H242: 299 | I242: 299.00 | J242: Target Achieved | K242: 103.00 | L242: 52.55% | M242: Successful | N242: 2016-09-07
A243: 53 | B243: 2016-04-13 | D243: Magma | E243: Accu | F243: 88.00 | H243: 103 | I243: 103.00 | J243: Target Achieved | K243: 15.00 | L243: 17.05% | M243: Successful | N243: 2016-06-09
A244: 54 | B244: 2016-05-02 | D244: KEC International ltd $ | E244: Accu | F244: 127.50 | H244: 148 | I244: 148-150 | J244: Target Achieved | K244: 20.50 | L244: 16.08% | M244: Successful | N244: 2016-07-13
A245: 55 | B245: 2016-05-03 | D245: Mindtree | E245: Accu | F245: 675.00 | H245: 815 | I245: 790-800 | J245: Target Achieved | K245: 140.00 | L245: 20.74% | M245: Successful | N245: 2018-02-23
A246: 56 | B246: 2016-06-01 | D246: Atulauto | E246: Accu | F246: 495-505 | I246: 565-570 | J246: Open
A247: 57 | B247: 2016-06-06 | D247: TRITURBINE | E247: Accu | F247: 110.00 | H247: 126.5 | I247: 125.00 | J247: Profit of Rs.16.50/- | K247: 16.50 | L247: =K247/F247 -> 15.00% | M247: Successful | N247: 2016-07-01
A248: 58 | B248: 2016-06-17 | D248: Pennar Industries Ltd | E248: Accu | F248: 44.00 | H248: 69.5 | I248: 69.50 | J248: Profit of Rs.25.50/- | K248: 25.50 | L248: =K248/F248 -> 57.95% | M248: Successful | N248: 2017-08-30
... 89 more rows

Sheet Sheet2 (hidden)
A1: SYMBOL | B1: SERIES | C1: OPEN | D1: HIGH | E1: LOW | F1: CLOSE | G1: LAST | H1: PREVCLOSE | I1: TOTTRDQTY | J1: TOTTRDVAL | K1: TIMESTAMP | L1: TOTALTRADES | M1: ISIN | N1: ISIN
A2: 20MICRONS | B2: EQ | C2: 37.95 | D2: 39.2 | E2: 37.45 | F2: 38 | G2: 38 | H2: 37.8 | I2: 15054 | J2: 574126.25 | K2: 2019-01-30 | L2: 271 | M2: INE144J01027
A3: 21STCENMGM | B3: EQ | C3: 21.95 | D3: 21.95 | E3: 21.95 | F3: 21.95 | G3: 21.95 | H3: 22.35 | I3: 101 | J3: 2216.95 | K3: 2019-01-30 | L3: 3 | M3: INE253B01015
A4: 3IINFOTECH | B4: EQ | C4: 3.3 | D4: 3.45 | E4: 3.3 | F4: 3.3 | G4: 3.35 | H4: 3.3 | I4: 2502318 | J4: 8398940.65 | K4: 2019-01-30 | L4: 680 | M4: INE748C01020
A5: 3MINDIA | B5: EQ | C5: 20052.3 | D5: 20299.95 | E5: 20032.05 | F5: 20146.45 | G5: 20170 | H5: 20082.75 | I5: 2197 | J5: 44228742.05 | K5: 2019-01-30 | L5: 277 | M5: INE470A01017
A6: 3PLAND | B6: EQ | C6: 11.4 | D6: 11.4 | E6: 10 | F6: 10.5 | G6: 10.5 | H6: 10.75 | I6: 2508 | J6: 26387.3 | K6: 2019-01-30 | L6: 14 | M6: INE105C01023
A7: 5PAISA | B7: EQ | C7: 241.35 | D7: 247 | E7: 241.35 | F7: 244.1 | G7: 246.9 | H7: 241.35 | I7: 2264 | J7: 553095.6 | K7: 2019-01-30 | L7: 175 | M7: INE618L01018
A8: 63MOONS | B8: EQ | C8: 81.65 | D8: 96.9 | E8: 81.5 | F8: 91.75 | G8: 91.55 | H8: 82.1 | I8: 1361538 | J8: 123570199.2 | K8: 2019-01-30 | L8: 15997 | M8: INE111B01023
A9: 8KMILES | B9: EQ | C9: 120 | D9: 120 | E9: 116.05 | F9: 120 | G9: 120 | H9: 114.3 | I9: 78243 | J9: 9377781.85 | K9: 2019-01-30 | L9: 598 | M9: INE650K01021
A10: A2ZINFRA | B10: EQ | C10: 9.5 | D10: 9.9 | E10: 9.5 | F10: 9.9 | G10: 9.9 | H10: 9.45 | I10: 152132 | J10: 1477163.75 | K10: 2019-01-30 | L10: 387 | M10: INE619I01012
A11: AARTIDRUGS | B11: EQ | C11: 582 | D11: 608 | E11: 571.5 | F11: 591.25 | G11: 590.3 | H11: 585.35 | I11: 19396 | J11: 11276050.15 | K11: 2019-01-30 | L11: 1235 | M11: INE767A01016
A12: AARTIIND | B12: EQ | C12: 1560 | D12: 1609 | E12: 1560 | F12: 1600.6 | G12: 1608 | H12: 1550 | I12: 191966 | J12: 305515913.4 | K12: 2019-01-30 | L12: 15455 | M12: INE769A01020
A13: AARVEEDEN | B13: EQ | C13: 23.5 | D13: 24 | E13: 23.1 | F13: 23.5 | G13: 23.5 | H13: 23.45 | I13: 6133 | J13: 143343.15 | K13: 2019-01-30 | L13: 183 | M13: INE273D01019
A14: AAVAS | B14: EQ | C14: 828.05 | D14: 837.7 | E14: 828 | F14: 830.75 | G14: 831.7 | H14: 828.65 | I14: 80331 | J14: 66705721.15 | K14: 2019-01-30 | L14: 417 | M14: INE216P01012
A15: ABAN | B15: EQ | C15: 65.7 | D15: 66.7 | E15: 64.8 | F15: 66.25 | G15: 66.45 | H15: 65.55 | I15: 353788 | J15: 23276493.65 | K15: 2019-01-30 | L15: 4405 | M15: INE421A01028
A16: ABB | B16: EQ | C16: 1260.2 | D16: 1288.7 | E16: 1243 | F16: 1264.65 | G16: 1262 | H16: 1258.9 | I16: 74899 | J16: 94706027.4 | K16: 2019-01-30 | L16: 3803 | M16: INE117A01022
A17: ABBOTINDIA | B17: EQ | C17: 8079.95 | D17: 8080.9 | E17: 8010.3 | F17: 8042.25 | G17: 8074.95 | H17: 8048 | I17: 2067 | J17: 16623311.45 | K17: 2019-01-30 | L17: 632 | M17: INE358A01014
A18: ABCAPITAL | B18: EQ | C18: 82.8 | D18: 83.9 | E18: 82 | F18: 82.3 | G18: 82.05 | H18: 82.7 | I18: 1435100 | J18: 118941162.2 | K18: 2019-01-30 | L18: 14580 | M18: INE674K01013
A19: ABFRL | B19: EQ | C19: 203.2 | D19: 211.3 | E19: 203.2 | F19: 208.5 | G19: 208.9 | H19: 203 | I19: 859652 | J19: 179070953.9 | K19: 2019-01-30 | L19: 16311 | M19: INE647O01011
A20: ABMINTLTD | B20: EQ | C20: 15.65 | D20: 15.65 | E20: 15.65 | F20: 15.65 | G20: 15.65 | H20: 16.45 | I20: 1 | J20: 15.65 | K20: 2019-01-30 | L20: 1 | M20: INE251C01017
A21: ABSLNN50ET | B21: EQ | C21: 292 | D21: 292 | E21: 253 | F21: 289.4 | G21: 289.4 | H21: 275 | I21: 18 | J21: 5040.2 | K21: 2019-01-30 | L21: 3 | M21: INF209KB1B87
A22: ACC | B22: EQ | C22: 1369.5 | D22: 1395 | E22: 1339.4 | F22: 1386.6 | G22: 1385 | H22: 1359.65 | I22: 572247 | J22: 780586388.9 | K22: 2019-01-30 | L22: 27189 | M22: INE012A01025
A23: ACCELYA | B23: EQ | C23: 918.2 | D23: 926 | E23: 910.15 | F23: 922.1 | G23: 925 | H23: 920.05 | I23: 918 | J23: 843077.15 | K23: 2019-01-30 | L23: 123 | M23: INE793A01012
A24: ACE | B24: EQ | C24: 85.35 | D24: 92.4 | E24: 84.3 | F24: 90.45 | G24: 90 | H24: 83.6 | I24: 396921 | J24: 35406001.05 | K24: 2019-01-30 | L24: 5420 | M24: INE731H01025
A25: ADANIENT | B25: EQ | C25: 140.9 | D25: 141.5 | E25: 136.5 | F25: 139.9 | G25: 138.9 | H25: 140.8 | I25: 3102926 | J25: 430573232.4 | K25: 2019-01-30 | L25: 19542 | M25: INE423A01024
A26: ADANIGAS | B26: EQ | C26: 95.7 | D26: 96.7 | E26: 94.05 | F26: 94.7 | G26: 94.75 | H26: 93.65 | I26: 455516 | J26: 43338637.25 | K26: 2019-01-30 | L26: 3792 | M26: INE399L01023
A27: ADANIGREEN | B27: EQ | C27: 35.95 | D27: 38.2 | E27: 34.2 | F27: 37.3 | G27: 37.8 | H27: 34.9 | I27: 529540 | J27: 19395730.1 | K27: 2019-01-30 | L27: 3113 | M27: INE364U01010
A28: ADANIPORTS | B28: EQ | C28: 349.05 | D28: 349.05 | E28: 335.6 | F28: 338.15 | G28: 338 | H28: 349.25 | I28: 7672859 | J28: 2621726589 | K28: 2019-01-30 | L28: 89749 | M28: INE742F01042
A29: ADANIPOWER | B29: EQ | C29: 43.1 | D29: 45.25 | E29: 42.8 | F29: 44.5 | G29: 44.5 | H29: 43.15 | I29: 16323067 | J29: 721364038.9 | K29: 2019-01-30 | L29: 33786 | M29: INE814H01011
A30: ADANITRANS | B30: EQ | C30: 214.9 | D30: 217.85 | E30: 210.1 | F30: 213.9 | G30: 214.6 | H30: 213.95 | I30: 175288 | J30: 37597587.4 | K30: 2019-01-30 | L30: 6114 | M30: INE931S01010
A31: ADFFOODS | B31: EQ | C31: 248.75 | D31: 248.75 | E31: 240.45 | F31: 243.2 | G31: 242 | H31: 246.55 | I31: 13121 | J31: 3197006.9 | K31: 2019-01-30 | L31: 664 | M31: INE982B01019
A32: ADHUNIK | B32: EQ | C32: 2 | D32: 2 | E32: 1.95 | F32: 1.95 | G32: 1.95 | H32: 2.05 | I32: 52188 | J32: 102645.85 | K32: 2019-01-30 | L32: 66 | M32: INE400H01019
A33: ADHUNIKIND | B33: EQ | C33: 44 | D33: 45.1 | E33: 43.2 | F33: 44.15 | G33: 44.45 | H33: 44.05 | I33: 35168 | J33: 1561198.9 | K33: 2019-01-30 | L33: 185 | M33: INE452L01012
A34: ADLABS | B34: EQ | C34: 9.25 | D34: 9.4 | E34: 8.75 | F34: 9.3 | G34: 9.35 | H34: 9.05 | I34: 120768 | J34: 1102762.25 | K34: 2019-01-30 | L34: 350 | M34: INE172N01012
A35: ADORWELD | B35: EQ | C35: 339.85 | D35: 359.8 | E35: 339.85 | F35: 348.7 | G35: 346.05 | H35: 337.95 | I35: 15215 | J35: 5330704.2 | K35: 2019-01-30 | L35: 1118 | M35: INE045A01017
A36: ADROITINFO | B36: EQ | C36: 18.5 | D36: 18.5 | E36: 17 | F36: 17.1 | G36: 17.3 | H36: 16.9 | I36: 3631 | J36: 63950.95 | K36: 2019-01-30 | L36: 40 | M36: INE737B01033
A37: ADSL | B37: EQ | C37: 12.7 | D37: 13.15 | E37: 12.7 | F37: 13 | G37: 13.1 | H37: 12.7 | I37: 6712 | J37: 86920.6 | K37: 2019-01-30 | L37: 28 | M37: INE102I01027
A38: ADVANIHOTR | B38: EQ | C38: 70.55 | D38: 73.45 | E38: 69.5 | F38: 69.65 | G38: 69.75 | H38: 71.5 | I38: 11050 | J38: 780809.15 | K38: 2019-01-30 | L38: 232 | M38: INE199C01026
A39: ADVENZYMES | B39: EQ | C39: 158.85 | D39: 164 | E39: 158.15 | F39: 161.7 | G39: 161.15 | H39: 157.2 | I39: 68030 | J39: 11031256 | K39: 2019-01-30 | L39: 1783 | M39: INE837H01020
A40: AEGISCHEM | B40: EQ | C40: 188.85 | D40: 191.9 | E40: 186.1 | F40: 188.8 | G40: 189.8 | H40: 188.85 | I40: 60776 | J40: 11487181.35 | K40: 2019-01-30 | L40: 4655 | M40: INE208C01025
A41: AGARIND | B41: EQ | C41: 157.05 | D41: 166.35 | E41: 156.4 | F41: 157.75 | G41: 158 | H41: 163 | I41: 416 | J41: 66471.95 | K41: 2019-01-30 | L41: 35 | M41: INE204E01012
A42: AGCNET | B42: EQ | C42: 113.5 | D42: 117.6 | E42: 113.5 | F42: 116.75 | G42: 115.35 | H42: 114 | I42: 8954 | J42: 1032563 | K42: 2019-01-30 | L42: 139 | M42: INE676A01019
A43: AGLSL | B43: EQ | C43: 64.05 | D43: 65.5 | E43: 63.1 | F43: 65 | G43: 65 | H43: 63.85 | I43: 30630 | J43: 1990549.45 | K43: 2019-01-30 | L43: 120 | M43: INE517U01013
A44: AGRITECH | B44: EQ | C44: 54.4 | D44: 55.95 | E44: 53.35 | F44: 53.8 | G44: 54.6 | H44: 54.4 | I44: 4440 | J44: 240771.85 | K44: 2019-01-30 | L44: 103 | M44: INE449G01018
A45: AHLEAST | B45: EQ | C45: 240.55 | D45: 242.5 | E45: 235.5 | F45: 239.45 | G45: 237.3 | H45: 235.4 | I45: 226 | J45: 53973.05 | K45: 2019-01-30 | L45: 116 | M45: INE926K01017
A46: AHLUCONT | B46: EQ | C46: 268.9 | D46: 274 | E46: 267 | F46: 267.8 | G46: 267.9 | H46: 268.85 | I46: 3457 | J46: 931912.95 | K46: 2019-01-30 | L46: 260 | M46: INE758C01029
A47: AHLWEST | B47: EQ | C47: 313 | D47: 320 | E47: 296 | F47: 314.3 | G47: 310 | H47: 297 | I47: 19449 | J47: 6028344.5 | K47: 2019-01-30 | L47: 170 | M47: INE915K01010
A48: AIAENG | B48: EQ | C48: 1600.05 | D48: 1645 | E48: 1600.05 | F48: 1625.05 | G48: 1620.3 | H48: 1619.95 | I48: 19738 | J48: 32044483.4 | K48: 2019-01-30 | L48: 4371 | M48: INE212H01026
A49: AIFL | B49: EQ | C49: 16.55 | D49: 16.55 | E49: 16.55 | F49: 16.55 | G49: 16.55 | H49: 17.4 | I49: 40096 | J49: 663588.8 | K49: 2019-01-30 | L49: 174 | M49: INE428O01016
A50: AIONJSW | B50: EQ | C50: 33.95 | D50: 34.9 | E50: 33.75 | F50: 34.55 | G50: 34.65 | H50: 34 | I50: 14871 | J50: 508625.2 | K50: 2019-01-30 | L50: 109 | M50: INE743C01021
A51: AJANTPHARM | B51: EQ | C51: 1094 | D51: 1107.8 | E51: 1065.9 | F51: 1088.85 | G51: 1074 | H51: 1090.8 | I51: 563045 | J51: 611489707.9 | K51: 2019-01-30 | L51: 32711 | M51: INE031B01049
A52: AJMERA | B52: EQ | C52: 171.7 | D52: 173.9 | E52: 170.2 | F52: 171.25 | G52: 170.65 | H52: 169.05 | I52: 52543 | J52: 9025283.1 | K52: 2019-01-30 | L52: 1901 | M52: INE298G01027
A53: AKSHARCHEM | B53: EQ | C53: 407.2 | D53: 409.6 | E53: 395.3 | F53: 397.85 | G53: 399 | H53: 403.55 | I53: 1795 | J53: 719729.4 | K53: 2019-01-30 | L53: 127 | M53: INE542B01011
A54: AKSHOPTFBR | B54: EQ | C54: 20.45 | D54: 21.35 | E54: 20.4 | F54: 21.1 | G54: 21.3 | H54: 20.3 | I54: 911576 | J54: 19067931.4 | K54: 2019-01-30 | L54: 4103 | M54: INE523B01011
A55: AKZOINDIA | B55: EQ | C55: 1746 | D55: 1746 | E55: 1724.05 | F55: 1728.5 | G55: 1725 | H55: 1725.1 | I55: 3560 | J55: 6144518 | K55: 2019-01-30 | L55: 338 | M55: INE133A01011
A56: ALANKIT | B56: EQ | C56: 28.7 | D56: 29.15 | E56: 28.1 | F56: 29 | G56: 29.15 | H56: 28.45 | I56: 605409 | J56: 17429243.65 | K56: 2019-01-30 | L56: 888 | M56: INE914E01040
A57: ALBERTDAVD | B57: EQ | C57: 370 | D57: 386.85 | E57: 370 | F57: 375.15 | G57: 371 | H57: 375.3 | I57: 3061 | J57: 1147613.2 | K57: 2019-01-30 | L57: 119 | M57: INE155C01010
A58: ALBK | B58: EQ | C58: 43.9 | D58: 45.25 | E58: 43.7 | F58: 44.9 | G58: 44.95 | H58: 43.9 | I58: 4059691 | J58: 180698638.6 | K58: 2019-01-30 | L58: 15102 | M58: INE428A01015
A59: ALCHEM | B59: BE | C59: 2.55 | D59: 2.75 | E59: 2.55 | F59: 2.55 | G59: 2.7 | H59: 2.65 | I59: 4555 | J59: 11844.55 | K59: 2019-01-30 | L59: 19 | M59: INE964B01033
A60: ALEMBICLTD | B60: EQ | C60: 41.6 | D60: 43 | E60: 41.45 | F60: 41.7 | G60: 41.65 | H60: 41.45 | I60: 80630 | J60: 3392393.1 | K60: 2019-01-30 | L60: 764 | M60: INE426A01027
A61: ALICON | B61: EQ | C61: 550.05 | D61: 558.85 | E61: 533.05 | F61: 548.75 | G61: 548.8 | H61: 544.9 | I61: 1176 | J61: 643637.55 | K61: 2019-01-30 | L61: 140 | M61: INE062D01024
A62: ALKALI | B62: EQ | C62: 50.15 | D62: 51.4 | E62: 48.9 | F62: 49.35 | G62: 49.1 | H62: 50.15 | I62: 1027 | J62: 51074.7 | K62: 2019-01-30 | L62: 37 | M62: INE773I01017
A63: ALKEM | B63: EQ | C63: 1893.95 | D63: 1895.15 | E63: 1865 | F63: 1869.5 | G63: 1868 | H63: 1893.95 | I63: 13331 | J63: 24980614.8 | K63: 2019-01-30 | L63: 1931 | M63: INE540L01014
A64: ALKYLAMINE | B64: EQ | C64: 740 | D64: 779 | E64: 728.1 | F64: 750.8 | G64: 750 | H64: 730.7 | I64: 72424 | J64: 54582052.25 | K64: 2019-01-30 | L64: 4105 | M64: INE150B01021
A65: ALLCARGO | B65: EQ | C65: 104.15 | D65: 108 | E65: 104.15 | F65: 106.75 | G65: 107 | H65: 104.8 | I65: 40560 | J65: 4324585.2 | K65: 2019-01-30 | L65: 675 | M65: INE418H01029
A66: ALLSEC | B66: EQ | C66: 182.75 | D66: 188.9 | E66: 180 | F66: 184.7 | G66: 185.95 | H66: 180.55 | I66: 17425 | J66: 3172935.2 | K66: 2019-01-30 | L66: 110 | M66: INE835G01018
A67: ALMONDZ | B67: EQ | C67: 25.7 | D67: 25.7 | E67: 21.2 | F67: 22.15 | G67: 22 | H67: 23.55 | I67: 10563 | J67: 235001.55 | K67: 2019-01-30 | L67: 158 | M67: INE326B01027
A68: ALOKTEXT | B68: EQ | C68: 3.8 | D68: 3.85 | E68: 3.75 | F68: 3.85 | G68: 3.85 | H68: 3.7 | I68: 2306352 | J68: 8837057.8 | K68: 2019-01-30 | L68: 572 | M68: INE270A01011
A69: ALPA | B69: EQ | C69: 23.85 | D69: 24.25 | E69: 23.5 | F69: 23.8 | G69: 23.8 | H69: 23.95 | I69: 12653 | J69: 300693.85 | K69: 2019-01-30 | L69: 162 | M69: INE385I01010
A70: ALPHAGEO | B70: EQ | C70: 483.75 | D70: 494.9 | E70: 468 | F70: 470.9 | G70: 469.6 | H70: 483.75 | I70: 3196 | J70: 1532926.85 | K70: 2019-01-30 | L70: 531 | M70: INE137C01018
A71: AMARAJABAT | B71: EQ | C71: 756.8 | D71: 765.65 | E71: 747.45 | F71: 751.8 | G71: 750.2 | H71: 752.4 | I71: 416778 | J71: 315089475.1 | K71: 2019-01-30 | L71: 14517 | M71: INE885A01032
A72: AMBER | B72: EQ | C72: 743 | D72: 787.2 | E72: 740.05 | F72: 749.2 | G72: 740.05 | H72: 744.1 | I72: 30281 | J72: 22697792 | K72: 2019-01-30 | L72: 2336 | M72: INE371P01015
A73: AMBIKCO | B73: EQ | C73: 1139.95 | D73: 1144.85 | E73: 1132.5 | F73: 1139.25 | G73: 1142 | H73: 1145.05 | I73: 1466 | J73: 1670501.9 | K73: 2019-01-30 | L73: 149 | M73: INE540G01014
A74: AMBUJACEM | B74: EQ | C74: 201.85 | D74: 205.8 | E74: 198.5 | F74: 204.65 | G74: 205.7 | H74: 200.85 | I74: 1461921 | J74: 294798875.9 | K74: 2019-01-30 | L74: 39526 | M74: INE079A01024
A75: AMDIND | B75: EQ | C75: 22.95 | D75: 23 | E75: 21.65 | F75: 22 | G75: 23 | H75: 22.45 | I75: 4089 | J75: 91631.55 | K75: 2019-01-30 | L75: 125 | M75: INE005I01014
A76: AMJLAND | B76: EQ | C76: 19.55 | D76: 19.75 | E76: 19.4 | F76: 19.55 | G76: 19.55 | H76: 19.3 | I76: 4401 | J76: 85887.35 | K76: 2019-01-30 | L76: 37 | M76: INE606A01024
A77: AMRUTANJAN | B77: EQ | C77: 311.95 | D77: 318.6 | E77: 305 | F77: 308.05 | G77: 307.7 | H77: 310.4 | I77: 20776 | J77: 6495723.9 | K77: 2019-01-30 | L77: 1517 | M77: INE098F01031
A78: ANANTRAJ | B78: EQ | C78: 31.85 | D78: 32.4 | E78: 31.85 | F78: 32.1 | G78: 32.05 | H78: 31.8 | I78: 117056 | J78: 3756562.65 | K78: 2019-01-30 | L78: 651 | M78: INE242C01024
A79: ANDHRABANK | B79: EQ | C79: 25.95 | D79: 26.2 | E79: 25.75 | F79: 25.9 | G79: 25.8 | H79: 25.95 | I79: 686682 | J79: 17858031.85 | K79: 2019-01-30 | L79: 2611 | M79: INE434A01013
A80: ANDHRACEMT | B80: EQ | C80: 4.65 | D80: 4.8 | E80: 4.6 | F80: 4.65 | G80: 4.7 | H80: 4.65 | I80: 36614 | J80: 171015.3 | K80: 2019-01-30 | L80: 141 | M80: INE666E01012
A81: ANDHRSUGAR | B81: EQ | C81: 290.05 | D81: 309.9 | E81: 290.05 | F81: 305.05 | G81: 309.9 | H81: 292.5 | I81: 23162 | J81: 6981369.5 | K81: 2019-01-30 | L81: 815 | M81: INE715B01013
A82: ANGIND | B82: BE | C82: 0.9 | D82: 0.9 | E82: 0.85 | F82: 0.9 | G82: 0.9 | H82: 0.85 | I82: 3012 | J82: 2685.8 | K82: 2019-01-30 | L82: 5 | M82: INE017D01010
A83: ANIKINDS | B83: EQ | C83: 18.5 | D83: 19.6 | E83: 16.55 | F83: 17.35 | G83: 17.35 | H83: 17.5 | I83: 16607 | J83: 292841.25 | K83: 2019-01-30 | L83: 171 | M83: INE087B01017
A84: ANKITMETAL | B84: BE | C84: 0.45 | D84: 0.5 | E84: 0.45 | F84: 0.45 | G84: 0.45 | H84: 0.45 | I84: 16882 | J84: 7896.9 | K84: 2019-01-30 | L84: 4 | M84: INE106I01010
A85: ANSALAPI | B85: EQ | C85: 11.7 | D85: 11.7 | E85: 11 | F85: 11.1 | G85: 11.1 | H85: 11.25 | I85: 54507 | J85: 613833 | K85: 2019-01-30 | L85: 286 | M85: INE436A01026
A86: ANSALHSG | B86: EQ | C86: 12.05 | D86: 12.4 | E86: 11.55 | F86: 11.9 | G86: 11.8 | H86: 12 | I86: 96084 | J86: 1151071.25 | K86: 2019-01-30 | L86: 290 | M86: INE880B01015
A87: ANTGRAPHIC | B87: BE | C87: 0.45 | D87: 0.5 | E87: 0.45 | F87: 0.5 | G87: 0.5 | H87: 0.5 | I87: 14317 | J87: 6547.85 | K87: 2019-01-30 | L87: 16 | M87: INE414B01021
A88: APARINDS | B88: EQ | C88: 622 | D88: 623.05 | E88: 609.95 | F88: 615.7 | G88: 615.1 | H88: 621.65 | I88: 6281 | J88: 3864166.75 | K88: 2019-01-30 | L88: 754 | M88: INE372A01015
A89: APCL | B89: EQ | C89: 114.9 | D89: 114.9 | E89: 105.45 | F89: 107.3 | G89: 107.3 | H89: 105.7 | I89: 2105 | J89: 229859.55 | K89: 2019-01-30 | L89: 51 | M89: INE071F01012
A90: APCOTEXIND | B90: EQ | C90: 475.05 | D90: 483.5 | E90: 470 | F90: 472.75 | G90: 470 | H90: 480.65 | I90: 2049 | J90: 974457.9 | K90: 2019-01-30 | L90: 214 | M90: INE116A01024
A91: APEX | B91: EQ | C91: 301.25 | D91: 305 | E91: 293.25 | F91: 297.75 | G91: 296.5 | H91: 300.2 | I91: 38441 | J91: 11497725 | K91: 2019-01-30 | L91: 1684 | M91: INE346W01013
A92: APLAPOLLO | B92: EQ | C92: 1089.25 | D92: 1117 | E92: 1083.05 | F92: 1110.8 | G92: 1110 | H92: 1089.25 | I92: 6144 | J92: 6800767.85 | K92: 2019-01-30 | L92: 562 | M92: INE702C01019
A93: APLLTD | B93: EQ | C93: 600 | D93: 610 | E93: 594 | F93: 599.25 | G93: 595 | H93: 598.15 | I93: 64704 | J93: 39153218.75 | K93: 2019-01-30 | L93: 7271 | M93: INE901L01018
A94: APOLLO | B94: EQ | C94: 117.2 | D94: 118.25 | E94: 115.25 | F94: 116.65 | G94: 116.65 | H94: 116.25 | I94: 12823 | J94: 1495704.1 | K94: 2019-01-30 | L94: 393 | M94: INE713T01010
A95: APOLLOHOSP | B95: EQ | C95: 1299 | D95: 1323 | E95: 1297.5 | F95: 1319.6 | G95: 1323 | H95: 1299.65 | I95: 315858 | J95: 414461187.1 | K95: 2019-01-30 | L95: 20015 | M95: INE437A01024
A96: APOLLOTYRE | B96: EQ | C96: 202.9 | D96: 206.6 | E96: 201.3 | F96: 203.3 | G96: 204.5 | H96: 203.05 | I96: 1409006 | J96: 286809165.1 | K96: 2019-01-30 | L96: 20419 | M96: INE438A01022
A97: APOLSINHOT | B97: BE | C97: 910.05 | D97: 929.85 | E97: 910 | F97: 923.65 | G97: 925 | H97: 917.25 | I97: 275 | J97: 253403.65 | K97: 2019-01-30 | L97: 40 | M97: INE451F01024
A98: APTECHT | B98: EQ | C98: 171 | D98: 173.9 | E98: 166.6 | F98: 169.6 | G98: 169.45 | H98: 169.6 | I98: 147192 | J98: 25083737.7 | K98: 2019-01-30 | L98: 3204 | M98: INE266F01018
A99: ARCHIDPLY | B99: EQ | C99: 36.7 | D99: 37 | E99: 35.9 | F99: 36 | G99: 36 | H99: 36.45 | I99: 10365 | J99: 374364.7 | K99: 2019-01-30 | L99: 252 | M99: INE877I01016
A100: ARCHIES | B100: EQ | C100: 27.1 | D100: 28.25 | E100: 26.95 | F100: 27.7 | G100: 27.7 | H100: 26.85 | I100: 40695 | J100: 1125991.45 | K100: 2019-01-30 | L100: 427 | M100: INE731A01020
A101: ARCOTECH | B101: EQ | C101: 6.15 | D101: 6.15 | E101: 6 | F101: 6 | G101: 6 | H101: 6.3 | I101: 73819 | J101: 443478.9 | K101: 2019-01-30 | L101: 139 | M101: INE574I01035
A102: ARIES | B102: EQ | C102: 88.45 | D102: 89.95 | E102: 88.35 | F102: 88.7 | G102: 88.95 | H102: 88.25 | I102: 11821 | J102: 1054441.15 | K102: 2019-01-30 | L102: 267 | M102: INE298I01015
A103: ARIHANT | B103: EQ | C103: 34 | D103: 35.5 | E103: 32.05 | F103: 33.15 | G103: 34 | H103: 34.5 | I103: 1328 | J103: 44442.6 | K103: 2019-01-30 | L103: 29 | M103: INE413D01011
A104: ARIHANTSUP | B104: EQ | C104: 51.45 | D104: 53.3 | E104: 50.25 | F104: 50.95 | G104: 51.45 | H104: 51.25 | I104: 22356 | J104: 1140167.75 | K104: 2019-01-30 | L104: 229 | M104: INE643K01018
A105: ARMANFIN | B105: EQ | C105: 374 | D105: 375.95 | E105: 366.8 | F105: 367 | G105: 366.8 | H105: 371.15 | I105: 1185 | J105: 440834.7 | K105: 2019-01-30 | L105: 62 | M105: INE109C01017
A106: AROGRANITE | B106: EQ | C106: 50.35 | D106: 51.15 | E106: 49.3 | F106: 49.8 | G106: 49.6 | H106: 50.75 | I106: 20495 | J106: 1026124.4 | K106: 2019-01-30 | L106: 228 | M106: INE210C01013
A107: ARROWGREEN | B107: BE | C107: 98.9 | D107: 99.5 | E107: 93.9 | F107: 96.75 | G107: 97.95 | H107: 94.8 | I107: 2759 | J107: 268065.55 | K107: 2019-01-30 | L107: 62 | M107: INE570D01018
A108: ARROWTEX | B108: EQ | C108: 16.5 | D108: 16.9 | E108: 16.15 | F108: 16.25 | G108: 16.15 | H108: 16.05 | I108: 18678 | J108: 307804.2 | K108: 2019-01-30 | L108: 118 | M108: INE933J01015
A109: ARSHIYA | B109: EQ | C109: 28.1 | D109: 30.6 | E109: 27.6 | F109: 28.85 | G109: 28.75 | H109: 28.35 | I109: 148201 | J109: 4320556.5 | K109: 2019-01-30 | L109: 1465 | M109: INE968D01022
A110: ARSSINFRA | B110: EQ | C110: 31.1 | D110: 33.2 | E110: 31 | F110: 31 | G110: 31 | H110: 32.35 | I110: 10139 | J110: 319888.9 | K110: 2019-01-30 | L110: 93 | M110: INE267I01010
A111: ARVIND | B111: EQ | C111: 89.5 | D111: 91.6 | E111: 89.1 | F111: 91 | G111: 91.3 | H111: 89.45 | I111: 1023539 | J111: 92489550.1 | K111: 2019-01-30 | L111: 7892 | M111: INE034A01011
A112: ARVSMART | B112: EQ | C112: 119 | D112: 121.7 | E112: 117.2 | F112: 120 | G112: 120.25 | H112: 118.85 | I112: 20479 | J112: 2443605.45 | K112: 2019-01-30 | L112: 495 | M112: INE034S01021
A113: ASAHIINDIA | B113: EQ | C113: 255.2 | D113: 256.25 | E113: 255 | F113: 255 | G113: 255 | H113: 255 | I113: 7121 | J113: 1817323.75 | K113: 2019-01-30 | L113: 164 | M113: INE439A01020
A114: ASAHISONG | B114: EQ | C114: 191.2 | D114: 191.6 | E114: 185 | F114: 186.7 | G114: 186.75 | H114: 191.55 | I114: 4074 | J114: 763712.7 | K114: 2019-01-30 | L114: 186 | M114: INE228I01012
A115: ASAL | B115: EQ | C115: 53.1 | D115: 55.9 | E115: 52.1 | F115: 55.4 | G115: 55.9 | H115: 53.15 | I115: 5664 | J115: 308923.3 | K115: 2019-01-30 | L115: 107 | M115: INE900C01027
A116: ASHAPURMIN | B116: EQ | C116: 27 | D116: 27 | E116: 26.05 | F116: 26.2 | G116: 26.1 | H116: 26.15 | I116: 31068 | J116: 816645.85 | K116: 2019-01-30 | L116: 268 | M116: INE348A01023
A117: ASHIANA | B117: EQ | C117: 111.2 | D117: 113 | E117: 109.85 | F117: 110.4 | G117: 110 | H117: 111.35 | I117: 22006 | J117: 2449234.15 | K117: 2019-01-30 | L117: 552 | M117: INE365D01021
A118: ASHIMASYN | B118: BE | C118: 14 | D118: 14.6 | E118: 13.5 | F118: 13.6 | G118: 13.7 | H118: 14 | I118: 43833 | J118: 612203.7 | K118: 2019-01-30 | L118: 73 | M118: INE440A01010
A119: ASHOKA | B119: EQ | C119: 122.95 | D119: 123.5 | E119: 121 | F119: 121.85 | G119: 121.8 | H119: 120.8 | I119: 79334 | J119: 9684486.75 | K119: 2019-01-30 | L119: 997 | M119: INE442H01029
A120: ASHOKLEY | B120: EQ | C120: 82.5 | D120: 83.05 | E120: 80.7 | F120: 80.95 | G120: 80.8 | H120: 82.3 | I120: 17250863 | J120: 1404595534 | K120: 2019-01-30 | L120: 85088 | M120: INE208A01029
A121: ASIANHOTNR | B121: EQ | C121: 145 | D121: 145 | E121: 142.05 | F121: 143 | G121: 143 | H121: 145 | I121: 29 | J121: 4141.15 | K121: 2019-01-30 | L121: 10 | M121: INE363A01022
A122: ASIANPAINT | B122: EQ | C122: 1394 | D122: 1416.8 | E122: 1372.1 | F122: 1390.4 | G122: 1390.7 | H122: 1393.3 | I122: 1313152 | J122: 1827969766 | K122: 2019-01-30 | L122: 64536 | M122: INE021A01026
A123: ASIANTILES | B123: EQ | C123: 149 | D123: 159 | E123: 147.5 | F123: 154.55 | G123: 153.9 | H123: 147.35 | I123: 176628 | J123: 27112837.15 | K123: 2019-01-30 | L123: 2864 | M123: INE022I01019
A124: ASPINWALL | B124: EQ | C124: 150 | D124: 158 | E124: 146 | F124: 153.25 | G124: 146 | H124: 149 | I124: 683 | J124: 105054.65 | K124: 2019-01-30 | L124: 79 | M124: INE991I01015
A125: ASSAMCO | B125: EQ | C125: 1.85 | D125: 1.9 | E125: 1.8 | F125: 1.8 | G125: 1.85 | H125: 1.85 | I125: 181912 | J125: 330248.9 | K125: 2019-01-30 | L125: 135 | M125: INE442A01024
A126: ASTEC | B126: EQ | C126: 513.75 | D126: 513.75 | E126: 506 | F126: 507.8 | G126: 507.55 | H126: 507.95 | I126: 4139 | J126: 2106012.6 | K126: 2019-01-30 | L126: 229 | M126: INE563J01010
A127: ASTERDM | B127: EQ | C127: 158.6 | D127: 158.6 | E127: 151.05 | F127: 152.95 | G127: 152.1 | H127: 156.05 | I127: 28782 | J127: 4417296.65 | K127: 2019-01-30 | L127: 773 | M127: INE914M01019
A128: ASTRAL | B128: EQ | C128: 1090 | D128: 1148 | E128: 1080.1 | F128: 1126.35 | G128: 1126 | H128: 1088.1 | I128: 273249 | J128: 307760042.4 | K128: 2019-01-30 | L128: 16791 | M128: INE006I01046
A129: ASTRAMICRO | B129: EQ | C129: 80.65 | D129: 80.7 | E129: 75.55 | F129: 77.35 | G129: 77.6 | H129: 80.35 | I129: 180461 | J129: 14081328.25 | K129: 2019-01-30 | L129: 1843 | M129: INE386C01029
A130: ASTRAZEN | B130: EQ | C130: 1590.7 | D130: 1626.15 | E130: 1586.3 | F130: 1600.95 | G130: 1600 | H130: 1600.75 | I130: 4709 | J130: 7548156.55 | K130: 2019-01-30 | L130: 465 | M130: INE203A01020
A131: ASTRON | B131: EQ | C131: 113.25 | D131: 118.75 | E131: 113.25 | F131: 117.8 | G131: 118.1 | H131: 116.5 | I131: 203392 | J131: 23986700.1 | K131: 2019-01-30 | L131: 2482 | M131: INE646X01014
A132: ATFL | B132: EQ | C132: 567.55 | D132: 567.7 | E132: 545.25 | F132: 548.75 | G132: 548.05 | H132: 557.1 | I132: 3000 | J132: 1659488.6 | K132: 2019-01-30 | L132: 259 | M132: INE209A01019
A133: ATLANTA | B133: EQ | C133: 18.4 | D133: 18.95 | E133: 18.2 | F133: 18.7 | G133: 18.95 | H133: 18.55 | I133: 33048 | J133: 609743.9 | K133: 2019-01-30 | L133: 415 | M133: INE285H01022
A134: ATLASCYCLE | B134: BE | C134: 72.5 | D134: 76.8 | E134: 72.5 | F134: 76.8 | G134: 76.8 | H134: 75.7 | I134: 1263 | J134: 94403.65 | K134: 2019-01-30 | L134: 18 | M134: INE446A01025
A135: ATUL | B135: EQ | C135: 3486 | D135: 3544.95 | E135: 3454.95 | F135: 3497.85 | G135: 3500.15 | H135: 3445.4 | I135: 16675 | J135: 58452904.95 | K135: 2019-01-30 | L135: 6018 | M135: INE100A01010
A136: ATULAUTO | B136: EQ | C136: 308 | D136: 308 | E136: 300.1 | F136: 304.5 | G136: 305.5 | H136: 297.45 | I136: 16637 | J136: 5050667.85 | K136: 2019-01-30 | L136: 732 | M136: INE951D01028
A137: AUBANK | B137: EQ | C137: 592.4 | D137: 594.8 | E137: 581.6 | F137: 586.8 | G137: 587.1 | H137: 593.85 | I137: 248350 | J137: 146202141.1 | K137: 2019-01-30 | L137: 35621 | M137: INE949L01017
A138: AURIONPRO | B138: EQ | C138: 122.2 | D138: 124.25 | E138: 117.55 | F138: 121.4 | G138: 123 | H138: 122.2 | I138: 16464 | J138: 1981491.85 | K138: 2019-01-30 | L138: 551 | M138: INE132H01018
A139: AUROPHARMA | B139: EQ | C139: 764 | D139: 781 | E139: 764 | F139: 778.3 | G139: 778 | H139: 762.9 | I139: 1404668 | J139: 1086917370 | K139: 2019-01-30 | L139: 41335 | M139: INE406A01037
A140: AUSOMENT | B140: EQ | C140: 38.05 | D140: 39.9 | E140: 38 | F140: 39.05 | G140: 38 | H140: 38 | I140: 4388 | J140: 172134.3 | K140: 2019-01-30 | L140: 56 | M140: INE218C01016
A141: AUTOAXLES | B141: EQ | C141: 1086 | D141: 1174 | E141: 1086 | F141: 1144.15 | G141: 1140 | H141: 1085.65 | I141: 21509 | J141: 24525107.2 | K141: 2019-01-30 | L141: 3874 | M141: INE449A01011
A142: AUTOIND | B142: EQ | C142: 59 | D142: 62.45 | E142: 58.45 | F142: 62.25 | G142: 62.45 | H142: 58.75 | I142: 31841 | J142: 1957595.3 | K142: 2019-01-30 | L142: 459 | M142: INE718H01014
A143: AUTOLITIND | B143: EQ | C143: 37.75 | D143: 38 | E143: 37.2 | F143: 37.8 | G143: 37.35 | H143: 37.8 | I143: 864 | J143: 32665.3 | K143: 2019-01-30 | L143: 31 | M143: INE448A01013
A144: AVADHSUGAR | B144: EQ | C144: 343.05 | D144: 368.9 | E144: 342.05 | F144: 363.25 | G144: 363 | H144: 343.45 | I144: 34568 | J144: 12384414.1 | K144: 2019-01-30 | L144: 1529 | M144: INE349W01017
A145: AVANTIFEED | B145: EQ | C145: 310 | D145: 321.7 | E145: 310 | F145: 316.45 | G145: 317 | H145: 309.05 | I145: 309661 | J145: 97747878.55 | K145: 2019-01-30 | L145: 15342 | M145: INE871C01038
A146: AVTNPL | B146: EQ | C146: 23.5 | D146: 23.5 | E146: 21.1 | F146: 22.6 | G146: 22.7 | H146: 23.15 | I146: 52019 | J146: 1163989.75 | K146: 2019-01-30 | L146: 491 | M146: INE488D01021
A147: AXISBANK | B147: EQ | C147: 687.05 | D147: 703.35 | E147: 683.75 | F147: 690.95 | G147: 691 | H147: 660.75 | I147: 46912230 | J147: 3.249514252e+10 | K147: 2019-01-30 | L147: 450032 | M147: INE238A01034
A148: AXISCADES | B148: EQ | C148: 62 | D148: 62 | E148: 58 | F148: 59.75 | G148: 59.5 | H148: 60.75 | I148: 44530 | J148: 2665501.4 | K148: 2019-01-30 | L148: 867 | M148: INE555B01013
A149: AXISGOLD | B149: EQ | C149: 2868 | D149: 2893 | E149: 2862.3 | F149: 2870.4 | G149: 2870.4 | H149: 2868.1 | I149: 392 | J149: 1129308.25 | K149: 2019-01-30 | L149: 56 | M149: INF846K01347
A150: AXISNIFTY | B150: EQ | C150: 1080.35 | D150: 1080.35 | E150: 1080.35 | F150: 1080.35 | G150: 1080.35 | H150: 1084.41 | I150: 53 | J150: 57258.55 | K150: 2019-01-30 | L150: 1 | M150: INF846K01ZL0
A151: AYMSYNTEX | B151: EQ | C151: 34.95 | D151: 36.4 | E151: 34.3 | F151: 34.45 | G151: 34.6 | H151: 34.25 | I151: 8478 | J151: 296793.25 | K151: 2019-01-30 | L151: 123 | M151: INE193B01039
A152: BAFNAPHARM | B152: EQ | C152: 10.5 | D152: 10.8 | E152: 10.25 | F152: 10.7 | G152: 10.8 | H152: 10.25 | I152: 10276 | J152: 108573.95 | K152: 2019-01-30 | L152: 77 | M152: INE878I01014
A153: BAGFILMS | B153: EQ | C153: 4.3 | D153: 4.55 | E153: 4.3 | F153: 4.4 | G153: 4.45 | H153: 4.3 | I153: 133275 | J153: 585948.25 | K153: 2019-01-30 | L153: 213 | M153: INE116D01028
A154: BAJAJ-AUTO | B154: EQ | C154: 2571 | D154: 2653.35 | E154: 2485 | F154: 2499.7 | G154: 2492 | H154: 2567.65 | I154: 2450943 | J154: 6222738180 | K154: 2019-01-30 | L154: 144110 | M154: INE917I01010
A155: BAJAJCON | B155: EQ | C155: 347 | D155: 355.55 | E155: 344 | F155: 351.35 | G155: 349 | H155: 352.15 | I155: 36400 | J155: 12697629.05 | K155: 2019-01-30 | L155: 3217 | M155: INE933K01021
A156: BAJAJELEC | B156: EQ | C156: 429 | D156: 464 | E156: 428.95 | F156: 456.7 | G156: 455 | H156: 426.85 | I156: 189241 | J156: 84443362.15 | K156: 2019-01-30 | L156: 9328 | M156: INE193E01025
A157: BAJAJFINSV | B157: EQ | C157: 6295 | D157: 6368.8 | E157: 6200.35 | F157: 6247.2 | G157: 6212.1 | H157: 6233.05 | I157: 338788 | J157: 2131749751 | K157: 2019-01-30 | L157: 47081 | M157: INE918I01018
A158: BAJAJHIND | B158: EQ | C158: 8.15 | D158: 8.25 | E158: 8.05 | F158: 8.1 | G158: 8.05 | H158: 8.05 | I158: 1022464 | J158: 8309721.15 | K158: 2019-01-30 | L158: 1584 | M158: INE306A01021
A159: BAJAJHLDNG | B159: EQ | C159: 2847.8 | D159: 2894.6 | E159: 2841.3 | F159: 2852.65 | G159: 2850 | H159: 2844.9 | I159: 10198 | J159: 29116605.1 | K159: 2019-01-30 | L159: 1959 | M159: INE118A01012
A160: BAJFINANCE | B160: EQ | C160: 2580 | D160: 2623.7 | E160: 2546 | F160: 2595.5 | G160: 2575 | H160: 2515.55 | I160: 3879707 | J160: 1.005821882e+10 | K160: 2019-01-30 | L160: 182783 | M160: INE296A01024
A161: BALAJITELE | B161: EQ | C161: 85.6 | D161: 88.8 | E161: 85.6 | F161: 86.5 | G161: 86.2 | H161: 85.3 | I161: 30207 | J161: 2639371.55 | K161: 2019-01-30 | L161: 551 | M161: INE794B01026
A162: BALAMINES | B162: EQ | C162: 424.05 | D162: 434.9 | E162: 421.1 | F162: 425.05 | G162: 423 | H162: 423.45 | I162: 14254 | J162: 6089391.75 | K162: 2019-01-30 | L162: 947 | M162: INE050E01027
A163: BALKRISHNA | B163: EQ | C163: 39.6 | D163: 41.15 | E163: 39.25 | F163: 39.85 | G163: 39.5 | H163: 40 | I163: 4138 | J163: 166084.9 | K163: 2019-01-30 | L163: 107 | M163: INE875R01011
A164: BALKRISIND | B164: EQ | C164: 817.7 | D164: 819.75 | E164: 801.35 | F164: 811.55 | G164: 810 | H164: 811.45 | I164: 404674 | J164: 327511184.9 | K164: 2019-01-30 | L164: 22975 | M164: INE787D01026
A165: BALLARPUR | B165: EQ | C165: 3.75 | D165: 3.9 | E165: 3.65 | F165: 3.7 | G165: 3.7 | H165: 3.7 | I165: 851159 | J165: 3196604.25 | K165: 2019-01-30 | L165: 641 | M165: INE294A01037
A166: BALMLAWRIE | B166: EQ | C166: 186 | D166: 187.95 | E166: 185.65 | F166: 186.4 | G166: 186.95 | H166: 185.35 | I166: 11940 | J166: 2228169.25 | K166: 2019-01-30 | L166: 356 | M166: INE164A01016
A167: BALPHARMA | B167: EQ | C167: 74.9 | D167: 75.95 | E167: 73.65 | F167: 74.45 | G167: 74.1 | H167: 74 | I167: 7444 | J167: 555275.05 | K167: 2019-01-30 | L167: 181 | M167: INE083D01012
A168: BALRAMCHIN | B168: EQ | C168: 100.15 | D168: 101.85 | E168: 99.75 | F168: 101.05 | G168: 100.8 | H168: 99.55 | I168: 997748 | J168: 100851762.9 | K168: 2019-01-30 | L168: 8844 | M168: INE119A01028
A169: BANARBEADS | B169: EQ | C169: 44.05 | D169: 46 | E169: 44 | F169: 45 | G169: 45 | H169: 43.2 | I169: 813 | J169: 36876.85 | K169: 2019-01-30 | L169: 9 | M169: INE655B01011
A170: BANARISUG | B170: EQ | C170: 1489 | D170: 1489 | E170: 1428 | F170: 1440.5 | G170: 1445 | H170: 1434.95 | I170: 174 | J170: 254285.75 | K170: 2019-01-30 | L170: 29 | M170: INE459A01010
A171: BANCOINDIA | B171: EQ | C171: 171 | D171: 172.9 | E171: 169.8 | F171: 169.95 | G171: 170 | H171: 171 | I171: 24854 | J171: 4245612.3 | K171: 2019-01-30 | L171: 559 | M171: INE213C01025
A172: BANDHANBNK | B172: EQ | C172: 415 | D172: 415 | E172: 404 | F172: 405.95 | G172: 405 | H172: 409.6 | I172: 687905 | J172: 280417728.1 | K172: 2019-01-30 | L172: 18363 | M172: INE545U01014
A173: BANG | B173: EQ | C173: 54.25 | D173: 55.8 | E173: 54.2 | F173: 55.4 | G173: 55.7 | H173: 55.3 | I173: 17394 | J173: 961804.95 | K173: 2019-01-30 | L173: 188 | M173: INE863I01016
A174: BANKBARODA | B174: EQ | C174: 116.5 | D174: 118.3 | E174: 112.3 | F174: 113.7 | G174: 113.3 | H174: 113.75 | I174: 32710788 | J174: 3752333937 | K174: 2019-01-30 | L174: 106413 | M174: INE028A01039
A175: BANKBEES | B175: EQ | C175: 2722 | D175: 2744.37 | E175: 2715 | F175: 2734.63 | G175: 2733.95 | H175: 2715.84 | I175: 32272 | J175: 88239631.75 | K175: 2019-01-30 | L175: 416 | M175: INF732E01078
A176: BANKINDIA | B176: EQ | C176: 98.1 | D176: 100.2 | E176: 95.55 | F176: 99.15 | G176: 99.5 | H176: 98.15 | I176: 14637481 | J176: 1422300014 | K176: 2019-01-30 | L176: 44715 | M176: INE084A01016
A177: BANSWRAS | B177: EQ | C177: 74 | D177: 74.9 | E177: 70.95 | F177: 71.05 | G177: 72 | H177: 72.75 | I177: 5214 | J177: 371732.8 | K177: 2019-01-30 | L177: 92 | M177: INE629D01012
A178: BARTRONICS | B178: EQ | C178: 6.65 | D178: 6.8 | E178: 6.5 | F178: 6.5 | G178: 6.5 | H178: 6.6 | I178: 12852 | J178: 84066.2 | K178: 2019-01-30 | L178: 32 | M178: INE855F01034
A179: BASF | B179: EQ | C179: 1339.15 | D179: 1369.8 | E179: 1335.25 | F179: 1355.6 | G179: 1360 | H179: 1340.95 | I179: 5801 | J179: 7835506.35 | K179: 2019-01-30 | L179: 926 | M179: INE373A01013
A180: BASML | B180: EQ | C180: 190.15 | D180: 194.95 | E180: 190.15 | F180: 194.45 | G180: 194.45 | H180: 190.5 | I180: 94 | J180: 18272.4 | K180: 2019-01-30 | L180: 16 | M180: INE186H01014
A181: BATAINDIA | B181: EQ | C181: 1106.1 | D181: 1118 | E181: 1080.75 | F181: 1103.8 | G181: 1097 | H181: 1103.5 | I181: 574214 | J181: 631554485.6 | K181: 2019-01-30 | L181: 32121 | M181: INE176A01028
A182: BAYERCROP | B182: EQ | C182: 4331.1 | D182: 4379.85 | E182: 4296.1 | F182: 4356.6 | G182: 4305 | H182: 4357.15 | I182: 4472 | J182: 19406940.15 | K182: 2019-01-30 | L182: 1270 | M182: INE462A01022
A183: BBL | B183: EQ | C183: 1066 | D183: 1110.55 | E183: 1066 | F183: 1090.7 | G183: 1085 | H183: 1080.55 | I183: 2787 | J183: 3044340.65 | K183: 2019-01-30 | L183: 323 | M183: INE464A01028
A184: BBTC | B184: EQ | C184: 1212 | D184: 1229.7 | E184: 1186.2 | F184: 1195.9 | G184: 1203 | H184: 1207.7 | I184: 68877 | J184: 83147237.15 | K184: 2019-01-30 | L184: 4508 | M184: INE050A01025
A185: BCG | B185: EQ | C185: 2.9 | D185: 3 | E185: 2.85 | F185: 2.9 | G185: 2.9 | H185: 2.85 | I185: 351109 | J185: 1020984.65 | K185: 2019-01-30 | L185: 216 | M185: INE425B01027
A186: BDL | B186: EQ | C186: 260 | D186: 263 | E186: 255.3 | F186: 258.65 | G186: 257.5 | H186: 257.35 | I186: 8550 | J186: 2201530.25 | K186: 2019-01-30 | L186: 553 | M186: INE171Z01018
A187: BEARDSELL | B187: EQ | C187: 18.55 | D187: 18.55 | E187: 16.3 | F187: 17.15 | G187: 17.3 | H187: 17.75 | I187: 3119 | J187: 53297.9 | K187: 2019-01-30 | L187: 75 | M187: INE520H01022
A188: BEDMUTHA | B188: EQ | C188: 21.3 | D188: 21.4 | E188: 21.1 | F188: 21.1 | G188: 21.1 | H188: 21.5 | I188: 1079 | J188: 22978.6 | K188: 2019-01-30 | L188: 7 | M188: INE844K01012
A189: BEL | B189: EQ | C189: 82.35 | D189: 84.65 | E189: 82 | F189: 84 | G189: 83.95 | H189: 81.85 | I189: 7771973 | J189: 650943151.8 | K189: 2019-01-30 | L189: 31113 | M189: INE263A01024
A190: BEML | B190: EQ | C190: 800 | D190: 802.8 | E190: 783.85 | F190: 796.35 | G190: 797.95 | H190: 793.2 | I190: 1404372 | J190: 1115637716 | K190: 2019-01-30 | L190: 28147 | M190: INE258A01016
A191: BEPL | B191: EQ | C191: 64.3 | D191: 73.9 | E191: 64.3 | F191: 69.5 | G191: 69.3 | H191: 64.85 | I191: 1061638 | J191: 74607468.55 | K191: 2019-01-30 | L191: 10462 | M191: INE922A01025
A192: BERGEPAINT | B192: EQ | C192: 310.5 | D192: 320.3 | E192: 309.05 | F192: 317 | G192: 319 | H192: 312.55 | I192: 966291 | J192: 305109917.9 | K192: 2019-01-30 | L192: 13835 | M192: INE463A01038
A193: BFINVEST | B193: EQ | C193: 213 | D193: 218.95 | E193: 211.6 | F193: 214 | G193: 214 | H193: 212.1 | I193: 75321 | J193: 16210570.85 | K193: 2019-01-30 | L193: 2262 | M193: INE878K01010
A194: BFUTILITIE | B194: EQ | C194: 195.9 | D194: 202 | E194: 195.1 | F194: 197.05 | G194: 196.8 | H194: 194.7 | I194: 383429 | J194: 75822205.85 | K194: 2019-01-30 | L194: 7860 | M194: INE243D01012
A195: BGLOBAL | B195: BE | C195: 2.55 | D195: 2.75 | E195: 2.55 | F195: 2.75 | G195: 2.75 | H195: 2.65 | I195: 2871 | J195: 7525 | K195: 2019-01-30 | L195: 12 | M195: INE224M01013
A196: BGRENERGY | B196: EQ | C196: 52.6 | D196: 55.9 | E196: 52.6 | F196: 54.35 | G196: 54.45 | H196: 52.75 | I196: 52859 | J196: 2873730.25 | K196: 2019-01-30 | L196: 840 | M196: INE661I01014
A197: BHAGERIA | B197: EQ | C197: 234.95 | D197: 240 | E197: 228.05 | F197: 237 | G197: 240 | H197: 232 | I197: 11546 | J197: 2703172.2 | K197: 2019-01-30 | L197: 525 | M197: INE354C01027
A198: BHAGYANGR | B198: EQ | C198: 36 | D198: 36 | E198: 32.5 | F198: 33.05 | G198: 33.1 | H198: 34.1 | I198: 2145 | J198: 71497.9 | K198: 2019-01-30 | L198: 59 | M198: INE458B01036
A199: BHAGYAPROP | B199: EQ | C199: 30.95 | D199: 30.95 | E199: 28.5 | F199: 28.85 | G199: 28.7 | H199: 29.05 | I199: 26732 | J199: 771970.35 | K199: 2019-01-30 | L199: 24 | M199: INE363W01018
A200: BHANDARI | B200: EQ | C200: 1.9 | D200: 2 | E200: 1.85 | F200: 1.95 | G200: 1.95 | H200: 1.85 | I200: 192930 | J200: 377687.7 | K200: 2019-01-30 | L200: 127 | M200: INE474E01029
... 1428 more rows

Sheet Sheet1 (hidden)

Sheet Sheet3 (hidden)
